{"text_format":"1","workbook":"xlsx","n_sheets":6,"sheets":["T&E Cover ","Journals","DE+AT_corporate hospitality","DE+AT_business hospitality","Datos","Centros"],"not_rendered":{"charts":0,"images":1,"macros":1,"external_links":0,"defined_names":61,"comments":1,"pivot_tables":0},"unopened":[],"bounds":{"document_bytes":16777216,"sheet_cells":100000,"rows_first":2000,"rows_last":500,"rows_between":2000,"halvings":0,"cell_chars":16384,"cell_head_chars":4096},"cells_cut":0,"cells_raw":0,"read":"whole","date_system":"1900"}

{"sheet":"T&E Cover ","index":0,"n_rows":61,"n_cols":10,"rows_kept":61,"cut":false,"hidden":false,"merged":[[6,1,6,9],[54,3,54,5],[55,3,55,5],[56,3,56,5],[57,3,57,5],[49,3,49,5],[50,3,50,5],[51,3,51,5],[52,3,52,5],[53,3,53,5],[44,3,44,5],[45,3,45,5],[46,3,46,5],[47,3,47,5],[48,3,48,5],[39,3,39,5],[41,3,41,5],[42,3,42,5],[43,3,43,5],[34,3,34,5],[35,3,35,5],[36,3,36,5],[37,3,37,5],[38,3,38,5],[1,0,2,9],[21,3,21,5],[58,1,58,8],[22,3,22,5],[23,3,23,5],[24,3,24,5],[25,3,25,5],[26,3,26,5],[27,3,27,5],[28,3,28,5],[29,3,29,5],[30,3,30,5],[31,3,31,5],[32,3,32,5],[33,3,33,5],[40,3,40,5]]}
[null,null,null,null,null,null,null,null,null,"MD164-DBOCT2023"]
[]
[]
[]
[]
[null,"Travel Expenses Report",null,null,"Version: Jan 2024"]
[null,"To be flled in by the employee. All fields are mandatory. A receipt will be required per line on the expense report\nAll expenses reported must correspond to business travels previously approved according to the NHHG Travel Policy\nIs highly recommended that the employee inform to her/his responsible, before sending the template to the SSC to avoid further rejections\nIn Germany and Austria, employees must also fill in the mandatory tabs DE+AT_corporate hospitality and/or DE+AT_business hospitality when applicable\n(Journals Tag will be filled in by the SSC)"]
[]
[null,"Please. send this report and a pdf file with all attached support documentation to this email address",null,null,null,"TE_NH@digitalsharedservices.com"]
[null,"Team members with a nominative SAP User must report their travel expenses using TRIP transaction in SAP so only the rest of team members sould use this template"]
[null,"Center Type","Please select",null,"Employee Name"]
[null,"Business Unit","Please select",null,"Employee Number"]
[null,"Country","Please select",null,"Place /Destination"]
[null,"Hotel /Center","Please select",null,"Purpose/Reason"]
[null,"Company Code",{"$f":"IFERROR(VLOOKUP($C$14,Centros!B:N,5,FALSE),\"-\")","v":"-"},null,"Year"]
[null,"Business Area",{"$f":"IFERROR(VLOOKUP($C$14,Centros!B:N,7,FALSE),\"-\")","v":"-"},null,"Month"]
[null,"Department","Please select",null,"Date (dd.mm.yyyy)"]
[null,"Head of Department",null,null,"Currency",{"$f":"IFERROR(VLOOKUP($C$14,Centros!B:N,13,FALSE),\"-\")","v":"-"}]
[null,"Cost Center",{"$f":"IFERROR(VLOOKUP(C17,Datos!E88:F149,2,FALSE),\"\")","v":""},null,"IBAN Account Number"]
[]
[]
[null,"Date","Concept","Comments",null,null,"Total Amount Expense Currency","Expense Currency","Exchange Rate","Total Amount Local Currency"]
[null,null,"Please select"]
[null,null,"Please select"]
[null,null,"Please select"]
[null,null,"Please select"]
[null,null,"Please select"]
[null,null,"Please select"]
[null,null,"Please select"]
[null,null,"Please select"]
[null,null,"Please select"]
[null,null,"Please select"]
[null,null,"Please select"]
[null,null,"Please select"]
[null,null,"Please select"]
[null,null,"Please select"]
[null,null,"Please select"]
[null,null,"Please select"]
[null,null,"Please select"]
[null,null,"Please select"]
[null,null,"Please select"]
[null,null,"Please select"]
[null,null,"Please select"]
[null,null,"Please select"]
[null,null,"Please select"]
[null,null,"Please select"]
[null,null,"Please select"]
[null,null,"Please select"]
[null,null,"Please select"]
[null,null,"Please select"]
[null,null,"Please select"]
[null,null,"Please select"]
[null,null,"Please select"]
[null,null,"Please select"]
[null,null,"Please select"]
[null,null,"Please select"]
[null,null,"Please select"]
[null,null,"Please select"]
[null,"TOTAL",null,null,null,null,null,null,null,{"$f":"SUM(J23:J58)","v":0}]
[]
[null,{"$f":"CONCATENATE(C11,\"CECO\")","v":"Please selectCECO"}]

{"sheet":"Journals","index":1,"n_rows":39,"n_cols":45,"rows_kept":39,"cut":false,"hidden":false,"merged":[]}
["BUKRS","BLART","BUDAT","BLDAT","XBLNR","WAERS","BKTXT","BUZEI","BSCHL","UMSKZ","KUNNR","LIFNR","HKONT","GSBER","KOSTL","WRBTR","ZUONR","SGTXT","XREF2","NEWBK","ZTERM","XREF1","LONG_TEXT","VBUND","PRCTR","VATDATE","XMWST","KURSF","WWERT","MWSKZ","AUFNR","SEGMENT","XREF3","ZLSCH","BVTYP","ZFBDT","HBKID","HKTID","WITHT","QSSKZ","QSSHB","VERTT ","VERTN","MATNR","WERKS"]
["Company Code (4)","Document Type (2)","Posting Date (8)","Document Date (8)","Reference (16)","Currency (3)","Doc. Header Text (25)","Position (3)","Posting Key (2)","SGL Ind (1)","Customer (10)","Vendor (10)","GL Account (10)","Business Area (4)","Cost Center (10)","Amount (13)","Assignment (18)","Text (50)","Reference Key  2 (12)","New Company Code (4)","Payment Terms (4)","Reference Key 1 (12)","Long Text (500)","Trading Partner (6)","Profit Center (6)","VAT Date (8)","Calculate Tax (1)","Rate (5dec)","Traslation Date (8)","Tax Code (2)","Order (12)","Segment (10)","Reference Key 3 (12)","Payment Method (2)","Part. Bank (4)","Bline date (8)","House Bank (5)","Account ID (5)","Withholding Tax Type ()","Withholding Tax Code (2)","Withholding Tax base amount (13)","Contract Type (1)","Contract (13)","Material (18)","Plant (4)"]
[{"$f":"'T&E Cover '!$C$15","v":"-"},"KU",{"$f":"TODAY()","v":"2024-01-17"},{"$f":"'T&E Cover '!$F$17","v":"00:00:00"},{"$f":"CONCATENATE(\"TRIP\",\" \",'T&E Cover '!$F$17)","v":"TRIP "},{"$f":"'T&E Cover '!$F$18","v":"-"},null,1,31,null,null,null,null,{"$f":"'T&E Cover '!$C$16","v":"-"},null,{"$f":"'T&E Cover '!J59","v":0},null,{"$f":"CONCATENATE(\"TRIP\",\" \",'T&E Cover '!$F$17)","v":"TRIP "}]
[{"$f":"'T&E Cover '!$C$15","v":"-"},"KU",{"$f":"TODAY()","v":"2024-01-17"},{"$f":"'T&E Cover '!$F$17","v":"00:00:00"},{"$f":"CONCATENATE(\"TRIP\",\" \",'T&E Cover '!$F$17)","v":"TRIP "},{"$f":"'T&E Cover '!$F$18","v":"-"},null,2,"40",null,null,null,62940000,{"$f":"'T&E Cover '!$C$16","v":"-"},{"$f":"'T&E Cover '!$C$19","v":""},{"$f":"'T&E Cover '!J23","v":0},null,{"$f":"CONCATENATE(\"TRIP\",\" \",'T&E Cover '!$F$17)","v":"TRIP "}]
[{"$f":"'T&E Cover '!$C$15","v":"-"},"KU","2024-01-17",{"$f":"'T&E Cover '!$F$17","v":"00:00:00"},{"$f":"CONCATENATE(\"TRIP\",\" \",'T&E Cover '!$F$17)","v":"TRIP "},{"$f":"'T&E Cover '!$F$18","v":"-"},null,3,"40",null,null,null,62940000,{"$f":"'T&E Cover '!$C$16","v":"-"},{"$f":"'T&E Cover '!$C$19","v":""},{"$f":"'T&E Cover '!J24","v":0},null,{"$f":"CONCATENATE(\"TRIP\",\" \",'T&E Cover '!$F$17)","v":"TRIP "}]
[{"$f":"'T&E Cover '!$C$15","v":"-"},"KU","2024-01-17",{"$f":"'T&E Cover '!$F$17","v":"00:00:00"},{"$f":"CONCATENATE(\"TRIP\",\" \",'T&E Cover '!$F$17)","v":"TRIP "},{"$f":"'T&E Cover '!$F$18","v":"-"},null,4,"40",null,null,null,62940000,{"$f":"'T&E Cover '!$C$16","v":"-"},{"$f":"'T&E Cover '!$C$19","v":""},{"$f":"'T&E Cover '!J25","v":0},null,{"$f":"CONCATENATE(\"TRIP\",\" \",'T&E Cover '!$F$17)","v":"TRIP "}]
[{"$f":"'T&E Cover '!$C$15","v":"-"},"KU","2024-01-17",{"$f":"'T&E Cover '!$F$17","v":"00:00:00"},{"$f":"CONCATENATE(\"TRIP\",\" \",'T&E Cover '!$F$17)","v":"TRIP "},{"$f":"'T&E Cover '!$F$18","v":"-"},null,5,"40",null,null,null,62940000,{"$f":"'T&E Cover '!$C$16","v":"-"},{"$f":"'T&E Cover '!$C$19","v":""},{"$f":"'T&E Cover '!J26","v":0},null,{"$f":"CONCATENATE(\"TRIP\",\" \",'T&E Cover '!$F$17)","v":"TRIP "}]
[{"$f":"'T&E Cover '!$C$15","v":"-"},"KU","2024-01-17",{"$f":"'T&E Cover '!$F$17","v":"00:00:00"},{"$f":"CONCATENATE(\"TRIP\",\" \",'T&E Cover '!$F$17)","v":"TRIP "},{"$f":"'T&E Cover '!$F$18","v":"-"},null,6,"40",null,null,null,62940000,{"$f":"'T&E Cover '!$C$16","v":"-"},{"$f":"'T&E Cover '!$C$19","v":""},{"$f":"'T&E Cover '!J27","v":0},null,{"$f":"CONCATENATE(\"TRIP\",\" \",'T&E Cover '!$F$17)","v":"TRIP "}]
[{"$f":"'T&E Cover '!$C$15","v":"-"},"KU","2024-01-17",{"$f":"'T&E Cover '!$F$17","v":"00:00:00"},{"$f":"CONCATENATE(\"TRIP\",\" \",'T&E Cover '!$F$17)","v":"TRIP "},{"$f":"'T&E Cover '!$F$18","v":"-"},null,7,"40",null,null,null,62940000,{"$f":"'T&E Cover '!$C$16","v":"-"},{"$f":"'T&E Cover '!$C$19","v":""},{"$f":"'T&E Cover '!J28","v":0},null,{"$f":"CONCATENATE(\"TRIP\",\" \",'T&E Cover '!$F$17)","v":"TRIP "}]
[{"$f":"'T&E Cover '!$C$15","v":"-"},"KU","2024-01-17",{"$f":"'T&E Cover '!$F$17","v":"00:00:00"},{"$f":"CONCATENATE(\"TRIP\",\" \",'T&E Cover '!$F$17)","v":"TRIP "},{"$f":"'T&E Cover '!$F$18","v":"-"},null,8,"40",null,null,null,62940000,{"$f":"'T&E Cover '!$C$16","v":"-"},{"$f":"'T&E Cover '!$C$19","v":""},{"$f":"'T&E Cover '!J29","v":0},null,{"$f":"CONCATENATE(\"TRIP\",\" \",'T&E Cover '!$F$17)","v":"TRIP "}]
[{"$f":"'T&E Cover '!$C$15","v":"-"},"KU","2024-01-17",{"$f":"'T&E Cover '!$F$17","v":"00:00:00"},{"$f":"CONCATENATE(\"TRIP\",\" \",'T&E Cover '!$F$17)","v":"TRIP "},{"$f":"'T&E Cover '!$F$18","v":"-"},null,9,"40",null,null,null,62940000,{"$f":"'T&E Cover '!$C$16","v":"-"},{"$f":"'T&E Cover '!$C$19","v":""},{"$f":"'T&E Cover '!J30","v":0},null,{"$f":"CONCATENATE(\"TRIP\",\" \",'T&E Cover '!$F$17)","v":"TRIP "}]
[{"$f":"'T&E Cover '!$C$15","v":"-"},"KU","2024-01-17",{"$f":"'T&E Cover '!$F$17","v":"00:00:00"},{"$f":"CONCATENATE(\"TRIP\",\" \",'T&E Cover '!$F$17)","v":"TRIP "},{"$f":"'T&E Cover '!$F$18","v":"-"},null,10,"40",null,null,null,62940000,{"$f":"'T&E Cover '!$C$16","v":"-"},{"$f":"'T&E Cover '!$C$19","v":""},{"$f":"'T&E Cover '!J31","v":0},null,{"$f":"CONCATENATE(\"TRIP\",\" \",'T&E Cover '!$F$17)","v":"TRIP "}]
[{"$f":"'T&E Cover '!$C$15","v":"-"},"KU","2024-01-17",{"$f":"'T&E Cover '!$F$17","v":"00:00:00"},{"$f":"CONCATENATE(\"TRIP\",\" \",'T&E Cover '!$F$17)","v":"TRIP "},{"$f":"'T&E Cover '!$F$18","v":"-"},null,11,"40",null,null,null,62940000,{"$f":"'T&E Cover '!$C$16","v":"-"},{"$f":"'T&E Cover '!$C$19","v":""},{"$f":"'T&E Cover '!J32","v":0},null,{"$f":"CONCATENATE(\"TRIP\",\" \",'T&E Cover '!$F$17)","v":"TRIP "}]
[{"$f":"'T&E Cover '!$C$15","v":"-"},"KU","2024-01-17",{"$f":"'T&E Cover '!$F$17","v":"00:00:00"},{"$f":"CONCATENATE(\"TRIP\",\" \",'T&E Cover '!$F$17)","v":"TRIP "},{"$f":"'T&E Cover '!$F$18","v":"-"},null,12,"40",null,null,null,62940000,{"$f":"'T&E Cover '!$C$16","v":"-"},{"$f":"'T&E Cover '!$C$19","v":""},{"$f":"'T&E Cover '!J33","v":0},null,{"$f":"CONCATENATE(\"TRIP\",\" \",'T&E Cover '!$F$17)","v":"TRIP "}]
[{"$f":"'T&E Cover '!$C$15","v":"-"},"KU","2024-01-17",{"$f":"'T&E Cover '!$F$17","v":"00:00:00"},{"$f":"CONCATENATE(\"TRIP\",\" \",'T&E Cover '!$F$17)","v":"TRIP "},{"$f":"'T&E Cover '!$F$18","v":"-"},null,13,"40",null,null,null,62940000,{"$f":"'T&E Cover '!$C$16","v":"-"},{"$f":"'T&E Cover '!$C$19","v":""},{"$f":"'T&E Cover '!J34","v":0},null,{"$f":"CONCATENATE(\"TRIP\",\" \",'T&E Cover '!$F$17)","v":"TRIP "}]
[{"$f":"'T&E Cover '!$C$15","v":"-"},"KU","2024-01-17",{"$f":"'T&E Cover '!$F$17","v":"00:00:00"},{"$f":"CONCATENATE(\"TRIP\",\" \",'T&E Cover '!$F$17)","v":"TRIP "},{"$f":"'T&E Cover '!$F$18","v":"-"},null,14,"40",null,null,null,62940000,{"$f":"'T&E Cover '!$C$16","v":"-"},{"$f":"'T&E Cover '!$C$19","v":""},{"$f":"'T&E Cover '!J35","v":0},null,{"$f":"CONCATENATE(\"TRIP\",\" \",'T&E Cover '!$F$17)","v":"TRIP "}]
[{"$f":"'T&E Cover '!$C$15","v":"-"},"KU","2024-01-17",{"$f":"'T&E Cover '!$F$17","v":"00:00:00"},{"$f":"CONCATENATE(\"TRIP\",\" \",'T&E Cover '!$F$17)","v":"TRIP "},{"$f":"'T&E Cover '!$F$18","v":"-"},null,15,"40",null,null,null,62940000,{"$f":"'T&E Cover '!$C$16","v":"-"},{"$f":"'T&E Cover '!$C$19","v":""},{"$f":"'T&E Cover '!J36","v":0},null,{"$f":"CONCATENATE(\"TRIP\",\" \",'T&E Cover '!$F$17)","v":"TRIP "}]
[{"$f":"'T&E Cover '!$C$15","v":"-"},"KU","2024-01-17",{"$f":"'T&E Cover '!$F$17","v":"00:00:00"},{"$f":"CONCATENATE(\"TRIP\",\" \",'T&E Cover '!$F$17)","v":"TRIP "},{"$f":"'T&E Cover '!$F$18","v":"-"},null,16,"40",null,null,null,62940000,{"$f":"'T&E Cover '!$C$16","v":"-"},{"$f":"'T&E Cover '!$C$19","v":""},{"$f":"'T&E Cover '!J37","v":0},null,{"$f":"CONCATENATE(\"TRIP\",\" \",'T&E Cover '!$F$17)","v":"TRIP "}]
[{"$f":"'T&E Cover '!$C$15","v":"-"},"KU","2024-01-17",{"$f":"'T&E Cover '!$F$17","v":"00:00:00"},{"$f":"CONCATENATE(\"TRIP\",\" \",'T&E Cover '!$F$17)","v":"TRIP "},{"$f":"'T&E Cover '!$F$18","v":"-"},null,17,"40",null,null,null,62940000,{"$f":"'T&E Cover '!$C$16","v":"-"},{"$f":"'T&E Cover '!$C$19","v":""},{"$f":"'T&E Cover '!J38","v":0},null,{"$f":"CONCATENATE(\"TRIP\",\" \",'T&E Cover '!$F$17)","v":"TRIP "}]
[{"$f":"'T&E Cover '!$C$15","v":"-"},"KU","2024-01-17",{"$f":"'T&E Cover '!$F$17","v":"00:00:00"},{"$f":"CONCATENATE(\"TRIP\",\" \",'T&E Cover '!$F$17)","v":"TRIP "},{"$f":"'T&E Cover '!$F$18","v":"-"},null,18,"40",null,null,null,62940000,{"$f":"'T&E Cover '!$C$16","v":"-"},{"$f":"'T&E Cover '!$C$19","v":""},{"$f":"'T&E Cover '!J39","v":0},null,{"$f":"CONCATENATE(\"TRIP\",\" \",'T&E Cover '!$F$17)","v":"TRIP "}]
[{"$f":"'T&E Cover '!$C$15","v":"-"},"KU","2024-01-17",{"$f":"'T&E Cover '!$F$17","v":"00:00:00"},{"$f":"CONCATENATE(\"TRIP\",\" \",'T&E Cover '!$F$17)","v":"TRIP "},{"$f":"'T&E Cover '!$F$18","v":"-"},null,19,"40",null,null,null,62940000,{"$f":"'T&E Cover '!$C$16","v":"-"},{"$f":"'T&E Cover '!$C$19","v":""},{"$f":"'T&E Cover '!J40","v":0},null,{"$f":"CONCATENATE(\"TRIP\",\" \",'T&E Cover '!$F$17)","v":"TRIP "}]
[{"$f":"'T&E Cover '!$C$15","v":"-"},"KU","2024-01-17",{"$f":"'T&E Cover '!$F$17","v":"00:00:00"},{"$f":"CONCATENATE(\"TRIP\",\" \",'T&E Cover '!$F$17)","v":"TRIP "},{"$f":"'T&E Cover '!$F$18","v":"-"},null,20,"40",null,null,null,62940000,{"$f":"'T&E Cover '!$C$16","v":"-"},{"$f":"'T&E Cover '!$C$19","v":""},{"$f":"'T&E Cover '!J41","v":0},null,{"$f":"CONCATENATE(\"TRIP\",\" \",'T&E Cover '!$F$17)","v":"TRIP "}]
[{"$f":"'T&E Cover '!$C$15","v":"-"},"KU","2024-01-17",{"$f":"'T&E Cover '!$F$17","v":"00:00:00"},{"$f":"CONCATENATE(\"TRIP\",\" \",'T&E Cover '!$F$17)","v":"TRIP "},{"$f":"'T&E Cover '!$F$18","v":"-"},null,21,"40",null,null,null,62940000,{"$f":"'T&E Cover '!$C$16","v":"-"},{"$f":"'T&E Cover '!$C$19","v":""},{"$f":"'T&E Cover '!J42","v":0},null,{"$f":"CONCATENATE(\"TRIP\",\" \",'T&E Cover '!$F$17)","v":"TRIP "}]
[{"$f":"'T&E Cover '!$C$15","v":"-"},"KU","2024-01-17",{"$f":"'T&E Cover '!$F$17","v":"00:00:00"},{"$f":"CONCATENATE(\"TRIP\",\" \",'T&E Cover '!$F$17)","v":"TRIP "},{"$f":"'T&E Cover '!$F$18","v":"-"},null,22,"40",null,null,null,62940000,{"$f":"'T&E Cover '!$C$16","v":"-"},{"$f":"'T&E Cover '!$C$19","v":""},{"$f":"'T&E Cover '!J43","v":0},null,{"$f":"CONCATENATE(\"TRIP\",\" \",'T&E Cover '!$F$17)","v":"TRIP "}]
[{"$f":"'T&E Cover '!$C$15","v":"-"},"KU","2024-01-17",{"$f":"'T&E Cover '!$F$17","v":"00:00:00"},{"$f":"CONCATENATE(\"TRIP\",\" \",'T&E Cover '!$F$17)","v":"TRIP "},{"$f":"'T&E Cover '!$F$18","v":"-"},null,23,"40",null,null,null,62940000,{"$f":"'T&E Cover '!$C$16","v":"-"},{"$f":"'T&E Cover '!$C$19","v":""},{"$f":"'T&E Cover '!J44","v":0},null,{"$f":"CONCATENATE(\"TRIP\",\" \",'T&E Cover '!$F$17)","v":"TRIP "}]
[{"$f":"'T&E Cover '!$C$15","v":"-"},"KU","2024-01-17",{"$f":"'T&E Cover '!$F$17","v":"00:00:00"},{"$f":"CONCATENATE(\"TRIP\",\" \",'T&E Cover '!$F$17)","v":"TRIP "},{"$f":"'T&E Cover '!$F$18","v":"-"},null,24,"40",null,null,null,62940000,{"$f":"'T&E Cover '!$C$16","v":"-"},{"$f":"'T&E Cover '!$C$19","v":""},{"$f":"'T&E Cover '!J45","v":0},null,{"$f":"CONCATENATE(\"TRIP\",\" \",'T&E Cover '!$F$17)","v":"TRIP "}]
[{"$f":"'T&E Cover '!$C$15","v":"-"},"KU","2024-01-17",{"$f":"'T&E Cover '!$F$17","v":"00:00:00"},{"$f":"CONCATENATE(\"TRIP\",\" \",'T&E Cover '!$F$17)","v":"TRIP "},{"$f":"'T&E Cover '!$F$18","v":"-"},null,25,"40",null,null,null,62940000,{"$f":"'T&E Cover '!$C$16","v":"-"},{"$f":"'T&E Cover '!$C$19","v":""},{"$f":"'T&E Cover '!J46","v":0},null,{"$f":"CONCATENATE(\"TRIP\",\" \",'T&E Cover '!$F$17)","v":"TRIP "}]
[{"$f":"'T&E Cover '!$C$15","v":"-"},"KU","2024-01-17",{"$f":"'T&E Cover '!$F$17","v":"00:00:00"},{"$f":"CONCATENATE(\"TRIP\",\" \",'T&E Cover '!$F$17)","v":"TRIP "},{"$f":"'T&E Cover '!$F$18","v":"-"},null,26,"40",null,null,null,62940000,{"$f":"'T&E Cover '!$C$16","v":"-"},{"$f":"'T&E Cover '!$C$19","v":""},{"$f":"'T&E Cover '!J47","v":0},null,{"$f":"CONCATENATE(\"TRIP\",\" \",'T&E Cover '!$F$17)","v":"TRIP "}]
[{"$f":"'T&E Cover '!$C$15","v":"-"},"KU","2024-01-17",{"$f":"'T&E Cover '!$F$17","v":"00:00:00"},{"$f":"CONCATENATE(\"TRIP\",\" \",'T&E Cover '!$F$17)","v":"TRIP "},{"$f":"'T&E Cover '!$F$18","v":"-"},null,27,"40",null,null,null,62940000,{"$f":"'T&E Cover '!$C$16","v":"-"},{"$f":"'T&E Cover '!$C$19","v":""},{"$f":"'T&E Cover '!J48","v":0},null,{"$f":"CONCATENATE(\"TRIP\",\" \",'T&E Cover '!$F$17)","v":"TRIP "}]
[{"$f":"'T&E Cover '!$C$15","v":"-"},"KU","2024-01-17",{"$f":"'T&E Cover '!$F$17","v":"00:00:00"},{"$f":"CONCATENATE(\"TRIP\",\" \",'T&E Cover '!$F$17)","v":"TRIP "},{"$f":"'T&E Cover '!$F$18","v":"-"},null,28,"40",null,null,null,62940000,{"$f":"'T&E Cover '!$C$16","v":"-"},{"$f":"'T&E Cover '!$C$19","v":""},{"$f":"'T&E Cover '!J49","v":0},null,{"$f":"CONCATENATE(\"TRIP\",\" \",'T&E Cover '!$F$17)","v":"TRIP "}]
[{"$f":"'T&E Cover '!$C$15","v":"-"},"KU","2024-01-17",{"$f":"'T&E Cover '!$F$17","v":"00:00:00"},{"$f":"CONCATENATE(\"TRIP\",\" \",'T&E Cover '!$F$17)","v":"TRIP "},{"$f":"'T&E Cover '!$F$18","v":"-"},null,29,"40",null,null,null,62940000,{"$f":"'T&E Cover '!$C$16","v":"-"},{"$f":"'T&E Cover '!$C$19","v":""},{"$f":"'T&E Cover '!J50","v":0},null,{"$f":"CONCATENATE(\"TRIP\",\" \",'T&E Cover '!$F$17)","v":"TRIP "}]
[{"$f":"'T&E Cover '!$C$15","v":"-"},"KU","2024-01-17",{"$f":"'T&E Cover '!$F$17","v":"00:00:00"},{"$f":"CONCATENATE(\"TRIP\",\" \",'T&E Cover '!$F$17)","v":"TRIP "},{"$f":"'T&E Cover '!$F$18","v":"-"},null,30,"40",null,null,null,62940000,{"$f":"'T&E Cover '!$C$16","v":"-"},{"$f":"'T&E Cover '!$C$19","v":""},{"$f":"'T&E Cover '!J51","v":0},null,{"$f":"CONCATENATE(\"TRIP\",\" \",'T&E Cover '!$F$17)","v":"TRIP "}]
[{"$f":"'T&E Cover '!$C$15","v":"-"},"KU","2024-01-17",{"$f":"'T&E Cover '!$F$17","v":"00:00:00"},{"$f":"CONCATENATE(\"TRIP\",\" \",'T&E Cover '!$F$17)","v":"TRIP "},{"$f":"'T&E Cover '!$F$18","v":"-"},null,31,"40",null,null,null,62940000,{"$f":"'T&E Cover '!$C$16","v":"-"},{"$f":"'T&E Cover '!$C$19","v":""},{"$f":"'T&E Cover '!J52","v":0},null,{"$f":"CONCATENATE(\"TRIP\",\" \",'T&E Cover '!$F$17)","v":"TRIP "}]
[{"$f":"'T&E Cover '!$C$15","v":"-"},"KU","2024-01-17",{"$f":"'T&E Cover '!$F$17","v":"00:00:00"},{"$f":"CONCATENATE(\"TRIP\",\" \",'T&E Cover '!$F$17)","v":"TRIP "},{"$f":"'T&E Cover '!$F$18","v":"-"},null,32,"40",null,null,null,62940000,{"$f":"'T&E Cover '!$C$16","v":"-"},{"$f":"'T&E Cover '!$C$19","v":""},{"$f":"'T&E Cover '!J53","v":0},null,{"$f":"CONCATENATE(\"TRIP\",\" \",'T&E Cover '!$F$17)","v":"TRIP "}]
[{"$f":"'T&E Cover '!$C$15","v":"-"},"KU","2024-01-17",{"$f":"'T&E Cover '!$F$17","v":"00:00:00"},{"$f":"CONCATENATE(\"TRIP\",\" \",'T&E Cover '!$F$17)","v":"TRIP "},{"$f":"'T&E Cover '!$F$18","v":"-"},null,33,"40",null,null,null,62940000,{"$f":"'T&E Cover '!$C$16","v":"-"},{"$f":"'T&E Cover '!$C$19","v":""},{"$f":"'T&E Cover '!J54","v":0},null,{"$f":"CONCATENATE(\"TRIP\",\" \",'T&E Cover '!$F$17)","v":"TRIP "}]
[{"$f":"'T&E Cover '!$C$15","v":"-"},"KU","2024-01-17",{"$f":"'T&E Cover '!$F$17","v":"00:00:00"},{"$f":"CONCATENATE(\"TRIP\",\" \",'T&E Cover '!$F$17)","v":"TRIP "},{"$f":"'T&E Cover '!$F$18","v":"-"},null,34,"40",null,null,null,62940000,{"$f":"'T&E Cover '!$C$16","v":"-"},{"$f":"'T&E Cover '!$C$19","v":""},{"$f":"'T&E Cover '!J55","v":0},null,{"$f":"CONCATENATE(\"TRIP\",\" \",'T&E Cover '!$F$17)","v":"TRIP "}]
[{"$f":"'T&E Cover '!$C$15","v":"-"},"KU","2024-01-17",{"$f":"'T&E Cover '!$F$17","v":"00:00:00"},{"$f":"CONCATENATE(\"TRIP\",\" \",'T&E Cover '!$F$17)","v":"TRIP "},{"$f":"'T&E Cover '!$F$18","v":"-"},null,35,"40",null,null,null,62940000,{"$f":"'T&E Cover '!$C$16","v":"-"},{"$f":"'T&E Cover '!$C$19","v":""},{"$f":"'T&E Cover '!J56","v":0},null,{"$f":"CONCATENATE(\"TRIP\",\" \",'T&E Cover '!$F$17)","v":"TRIP "}]
[{"$f":"'T&E Cover '!$C$15","v":"-"},"KU","2024-01-17",{"$f":"'T&E Cover '!$F$17","v":"00:00:00"},{"$f":"CONCATENATE(\"TRIP\",\" \",'T&E Cover '!$F$17)","v":"TRIP "},{"$f":"'T&E Cover '!$F$18","v":"-"},null,36,"40",null,null,null,62940000,{"$f":"'T&E Cover '!$C$16","v":"-"},{"$f":"'T&E Cover '!$C$19","v":""},{"$f":"'T&E Cover '!J57","v":0},null,{"$f":"CONCATENATE(\"TRIP\",\" \",'T&E Cover '!$F$17)","v":"TRIP "}]
[{"$f":"'T&E Cover '!$C$15","v":"-"},"KU","2024-01-17",{"$f":"'T&E Cover '!$F$17","v":"00:00:00"},{"$f":"CONCATENATE(\"TRIP\",\" \",'T&E Cover '!$F$17)","v":"TRIP "},{"$f":"'T&E Cover '!$F$18","v":"-"},null,37,"40",null,null,null,62940000,{"$f":"'T&E Cover '!$C$16","v":"-"},{"$f":"'T&E Cover '!$C$19","v":""},{"$f":"'T&E Cover '!J58","v":0},null,{"$f":"CONCATENATE(\"TRIP\",\" \",'T&E Cover '!$F$17)","v":"TRIP "}]

{"sheet":"DE+AT_corporate hospitality","index":2,"n_rows":37,"n_cols":11,"rows_kept":37,"cut":false,"hidden":false,"merged":[[26,1,26,6],[34,1,34,2],[37,1,37,2],[37,3,37,4],[19,1,19,6],[20,1,20,6],[21,1,21,6],[23,1,23,6],[24,1,24,6],[25,1,25,6],[18,1,18,6],[7,1,7,2],[7,3,7,6],[9,1,9,6],[10,1,10,6],[11,1,11,6],[12,1,12,6],[13,1,13,6],[14,1,14,6],[15,1,15,6],[16,1,16,6],[17,1,17,6]]}
[]
[null,"Bewirtungsbeleg",null,null,null,null,null,null,null,null,"Bewirtungsbeleg - Originalbeleg hier aufkleben"]
[]
[null,"Angaben zum Nachweis der Höhe und der betrieblichen "]
[null,"Veranlassung von Bewirtungsaufwendungen ($4 Abs. 5 Nr. 2 EStG)"]
[]
[null,"Date of Service",null,"Location (genaue Bezeichnung)"]
[]
[null,"participants"]
[]
[]
[]
[]
[]
[]
[]
[]
[]
[]
[]
[]
[]
[null,"Reason of the hospitality"]
[]
[]
[]
[]
[]
[null,"Total amount of the receipt"]
[]
[]
[null,"according to the receipt"]
[]
[]
[null,null,null,"EUR"]
[]
[null,"Location",null,"Date",null,"Signature"]

{"sheet":"DE+AT_business hospitality","index":3,"n_rows":37,"n_cols":11,"rows_kept":37,"cut":false,"hidden":false,"merged":[[26,1,26,6],[34,1,34,2],[37,1,37,2],[37,3,37,4],[19,1,19,6],[20,1,20,6],[21,1,21,6],[23,1,23,6],[24,1,24,6],[25,1,25,6],[18,1,18,6],[7,1,7,2],[7,3,7,6],[9,1,9,6],[10,1,10,6],[11,1,11,6],[12,1,12,6],[13,1,13,6],[14,1,14,6],[15,1,15,6],[16,1,16,6],[17,1,17,6]]}
[]
[null,"Bewirtungsbeleg",null,null,null,null,null,null,null,null,"Bewirtungsbeleg - Originalbeleg hier aufkleben"]
[]
[null,"Angaben zum Nachweis der Höhe und der geschäftlichen "]
[null,"Veranlassung von Bewirtungsaufwendungen ($4 Abs. 5 Nr. 2 EStG)"]
[]
[null,"Date of Service",null,"Location (genaue Bezeichnung)"]
[]
[null,"participants"]
[]
[]
[]
[]
[]
[]
[]
[]
[]
[]
[]
[]
[]
[null,"Reason of the hospitality"]
[]
[]
[]
[]
[]
[null,"Total amount of the receipt"]
[]
[]
[null,"according to the receipt"]
[]
[]
[null,null,null,"EUR"]
[]
[null,"Location",null,"Date",null,"Signature"]

{"sheet":"Datos","index":4,"n_rows":166,"n_cols":45,"rows_kept":166,"cut":false,"hidden":true,"merged":[]}
[]
[null,null,"Type_of_expense","Type_of_Center","HEADQUARTERS","CENTRAL_SERVICES_BU","CS_SOUTHERN_EUROPE","CS_NORTHERN_EUROPE","CS_AMERICA",null,"HOTELS",null,"SOUTHERN_EUROPE","NORTHERN_EUROPE","AMERICA","ANDORRA","SPAIN","PORTUGAL","BELGIUM","FRANCE","LUXEMBOURG","NETHERLANDS","DENMARK","UK","USA","AUSTRIA","CZECH.RPC","GERMANY","HUNGARY","POLAND","ROMANIA","SLOVAKIA","SWITZERLAND","ITALY","ARGENTINA","CHILE",null,"HAITI","MEXICO","URUGUAY","COLOMBIA","ECUADOR","BRASIL","IRELAND","FINLAND"]
[null,null,"Please select","Please select","Please select","Please select","Please select","Please select","Please select",null,"Please select",null,"Please select","Please select","Please select","Please select","Please select","Please select","Please select","Please select","Please select","Please select","Please select","Please select","Please select","Please select","Please select","Please select","Please select","Please select","Please select","Please select","Please select","Please select","Please select","Please select",null,"Please select","Please select","Please select","Please select","Please select","Please select","Please select","Please select"]
[null,null,"CAR RENTAL","HEADQUARTERS","HQ","CS_AMERICA","CS_SPAIN","CS_NETHERLANDS","CS_ARGENTINA",null,"AMERICA",null,"ANDORRA","AUSTRIA","ARGENTINA","NH Andorra la Vella","Anantara Villa Padierna Palace Benahavís Marbella Resort","Anantara Vilamoura Algarve Resort","NH Brugge","Anantara Plaza Nice Hotel","NH Luxembourg","Anantara Grand Hotel Krasnapolsky Amsterdam","NH Collection Copenhagen","nhow London","NH Collection New York Madison Avenue","Anantara Palais Hansen Vienna","NH Collection Olomouc Congress","Avani Frankfurt City Hotel","Anantara New York Palace Budapest Hotel","NH Poznan","NH Timisoara","NH Bratislava Gate One","NH Bern The Bristol","Anantara Convento di Amalfi Grand Hotel","NH Collection Buenos Aires Crillon","NH Antofagasta",null,"NH Haiti El Rancho","Avani Cancún Airport","NH Montevideo Columbia","Avani Royal Zona T Bogota Hotel","NH Collection Quito Royal","NH Curitiba The Five","Anantara The Marker Dublin","NH Collection Helsinki Grand Hansa"]
[null,null,"HOTEL","CENTRAL_SERVICES_BU",null,"CS_NORTHERN_EUROPE","CS_ITALY","CS_GERMANY","CS_COLOMBIA",null,"NORTHERN_EUROPE",null,"FRANCE","BELGIUM","BRASIL","NH Collection Andorra Palomé","Avani Alonso Martinez Madrid Hotel","AVANI Avenida Liberdade Lisbon","NH Brussels Airport","NH Collection Marseille",null,"NH Amersfoort",null,null,null,"NH Collection Salzburg City","NH Collection Prague","NH Berlin Alexanderplatz","NH Budapest City",null,null,null,"NH Geneva Airport","Anantara Palazzo Naiadi Rome Hotel","NH Bariloche Edelweiss","NH Ciudad de Santiago",null,null,"Hilton Aeropuerto",null,"NH Bogotá Pavillon Royal"]
[null,null,"INVITATION","HOTELS","HQ","CS_SOUTHERN_EUROPE","CS_PORTUGAL","CS_AUSTRIA","CS_CHILE",null,"SOUTHERN_EUROPE",null,"ITALY","CZECH.RPC","COLOMBIA",null,"Casino de Madrid","NH Collection Lisboa Liberdade","NH Brussels Carrefour de l’Europe","NH Lyon Airport",null,"NH Amsterdam Caransa",null,null,null,"NH Collection Wien Zentrum","NH Collection Prague Carlo IV","NH Berlin City Ost","NH Collection Budapest City Center",null,null,null,"NH Geneva City","Avani Palazzo Moscova Milan Hotel","NH Buenos Aires 9 de Julio","NH Collection Plaza Santiago",null,null,"NH Coatzacoalcos",null,"NH Bogotá Urban 26 Royal"]
[null,null,"KM-MILEAGE",null,"Please select",null,"CS_FRANCE","CS_BELGIUM","CS_MEXICO",null,null,null,"PORTUGAL","DENMARK","CHILE",null,"Centro de Formación BBVA La Moraleja","NH Collection Porto Batalha","NH Brussels EU Berlaymont","NH Nice",null,"NH Amsterdam Leidseplein",null,null,null,"NH Danube City","NH Prague City","NH Berlin Kurfürstendamm",null,null,null,null,null,"Avani Rio Novo Venice Hotel","NH Buenos Aires City","NH Collection Santiago Casacostanera",null,null,"NH Collection Guadalajara Providencia",null,"NH Bogotá Urban 93 Royal"]
[null,null,"MEALS",null,"HQ_SPAIN",null,null,"CS_SWITZERLAND",null,null,null,null,"SPAIN","GERMANY","ECUADOR",null,"NH Alcorcon","NH Dona Ines Coimbra","NH Brussels Grand Place Arenberg","NH Paris Champs-Elysées",null,"NH Amsterdam Museum Quarter",null,null,null,"NH Graz City",null,"NH Berlin Potsdamer Platz",null,null,null,null,null,"NH Ancona","NH Buenos Aires Florida","NH Iquique",null,null,"NH Collection Mérida Paseo Montejo",null,"NH Cali Boulevard del Rio"]
[null,null,"OTHERS, MISCELLANEOUS",null,null,null,null,null,null,null,null,null,"USA","FINLAND","HAITI",null,"NH Alicante","NH Lisboa Campo Grande","NH Brussels Stéphanie","NH Paris Gare de l´Est",null,"NH Amsterdam Noord",null,null,null,"NH Vienna Airport Conference Center",null,"NH Bingen",null,null,null,null,null,"NH Bergamo","NH Buenos Aires Latino","NH Iquique Pacifico",null,null,"NH Collection Mexico City Airport T2",null,"NH Cali Royal"]
[null,null,"PARKING",null,null,null,null,null,null,null,null,null,null,"HUNGARY","MEXICO",null,"NH Avenida Jerez","NH Marina Portimão Resort","NH Collection Antwerp Centre","NH Paris Opéra Faubourg",null,"NH Amsterdam Schiller",null,null,null,"NH Wien Belvedere",null,"NH Collection Berlin Mitte am Checkpoint Charlie",null,null,null,null,null,"NH Bologna de la Gare","NH Buenos Aires Tango",null,null,null,"NH Collection Mexico City Centro Histórico",null,"NH Cartagena Urban Royal"]
[null,null,"PUBLIC TRANSPORT (BUS, SUBWAY)",null,null,null,null,null,null,null,null,null,null,"IRELAND","URUGUAY",null,"NH Barcelona Diagonal Center","NH Porto Jardim","NH Collection Brussels Centre","NH Toulouse Airport",null,"NH Amsterdam Schiphol Airport",null,null,null,"NH Wien City",null,"NH Collection Berlin Mitte Friedrichstrasse",null,null,null,null,null,"NH Bologna Villanova","NH Collection Buenos Aires Centro Histórico",null,null,null,"NH Collection Mexico City Reforma",null,"NH Collection Barranquilla Smartsuites Royal"]
[null,null,"TAXI",null,null,null,null,null,null,null,null,null,null,"LUXEMBOURG",null,null,"NH Barcelona Eixample","NH Sintra Centro","NH Collection Brussels Grand Sablon","nhow Marseille",null,"NH Amsterdam Zuid",null,null,null,null,null,"NH Collection Dresden Altmarkt",null,null,null,null,null,"NH Caltagirone Villa San Mauro","NH Collection Buenos Aires Jousten",null,null,null,"NH Collection Mexico City Santa Fe",null,"NH Collection Bogotá Andino Royal"]
[null,null,"TOLL",null,null,null,null,null,null,null,null,null,null,"NETHERLANDS",null,null,"NH Barcelona Entenza","The Residences at Victoria Algarve","NH Gent Belfort",null,null,"NH Arnhem Rijnhotel",null,null,null,null,null,"NH Collection Frankfurt Spin Tower",null,null,null,null,null,"NH Catania Centro","NH Collection Buenos Aires Lancaster",null,null,null,"NH Collection Monterrey San Pedro",null,"NH Collection Bogotá Hacienda Royal"]
[null,null,"TRAVEL TICKET (AIRPLAIN, TRAIN)",null,null,null,null,null,null,null,null,null,null,"POLAND",null,null,"NH Barcelona Les Corts","Tivoli Alvor Algarve - All Inclusive Resort","NH Mechelen",null,null,"NH Atlanta Rotterdam",null,null,null,null,null,"NH Collection Hamburg City",null,null,null,null,null,"NH Catania Parco Degli Aragonesi","NH Córdoba Panorama",null,null,null,"NH Mexico City Valle Dorado",null,"NH Collection Bogotá Teleport Royal"]
[null,null,null,null,null,null,null,null,null,null,null,null,null,"ROMANIA",null,null,"NH Barcelona Stadium","Tivoli Avenida Liberdade Lisboa","nhow Brussels Bloom",null,null,"NH Atlantic Den Haag",null,null,null,null,null,"NH Collection Heidelberg",null,null,null,null,null,"NH Collection Firenze Palazzo Gaddi","NH Córdoba Urbano",null,null,null,"NH Monterrey La Fe",null,"NH Collection Bogotá Terra 100 Royal"]
[null,null,null,"HQ_SPAIN","CS_SPAIN","CS_PORTUGAL","CS_FRANCE","CS_ITALY","CS_NETHERLANDS","CS_BELGIUM","CS_GERMANY","CS_AUSTRIA","CS_SWITZERLAND","SLOVAKIA",null,null,"NH Bilbao Deusto","Tivoli Carvoeiro Algarve Resort",null,null,null,"NH Bussum Jan Tabak",null,null,null,null,null,"NH Collection Köln Mediapark",null,null,null,null,null,"NH Collection Firenze Porta Rossa","NH Gran Hotel Provincial",null,null,null,"NH Puebla Centro Histórico",null,"NH Collection Bogotá WTC Royal"]
[null,null,null,"Please select","Please select","Please select","Please select","Please select","Please select","Please select","Please select","Please select","Please select","SWITZERLAND",null,null,"NH Campo Cartagena","Tivoli Coimbra Hotel",null,null,null,"NH Capelle",null,null,null,null,null,"NH Collection München Bavaria",null,null,null,null,null,"NH Collection Genova Marina ","NH Hotel Casino",null,null,null,"NH Puebla Finsa",null,"NH Collection Medellín Royal"]
[null,null,null,"HQ CORPORATE","CS SPAIN MADRID","CS PORTUGAL","CS FRANCE","CS ITALY","CS NH THE NETHERLANDS","CS BELGIUM","CS GERMANY","CS AUSTRIA","CS SWITZERLAND","UK",null,null,"NH Campo de Gibraltar","Tivoli Lagos Algarve Resort",null,null,null,"NH Centre Utrecht",null,null,null,null,null,"NH Collection Nürnberg City",null,null,null,null,null,"NH Collection Milano City Life","NH Mendoza Cordillera",null,null,null,"NH Queretaro"]
[null,null,null,"NH CASH LINK","COPERAMA SPAIN","CS TIVOLI",null,"CS ROCO HOSPITALITY GROUP","COPERAMA BENELUX",null,"CRO-BOOKING OFFICE BERLIN",null,null,null,null,null,"NH Canciller Ayala Vitoria","Tivoli Marina Vilamoura Algarve Resort",null,null,null,"NH City Centre Amsterdam",null,null,null,null,null,"NH Dortmund",null,null,null,null,null,"NH Collection Milano Porta Nuova","NH Santiago del Estero",null,null,null,"NH San Luis Potosí"]
[null,null,null,"COPERAMA HOLDING",null,"COPERAMA PORTUGAL",null,"COPERAMA ITALY",null,null,"COPERAMA CENTRAL EUROPE",null,null,null,null,null,"NH Cartagena","Tivoli Oriente Lisboa Hotel",null,null,null,"NH Collection Amsterdam Barbizon Palace",null,null,null,null,null,"NH Dresden Neustadt",null,null,null,null,null,"NH Collection Milano President"]
[null,null,null,"CRO-CENTRAL DE RESERVAS",null,null,null,null,null,null,null,null,null,null,null,null,"NH Castellón Mindoro",null,null,null,null,"NH Collection Amsterdam Flower Market",null,null,null,null,null,"NH Düsseldorf City",null,null,null,null,null,"NH Collection Milano Touring"]
[null,null,null,null,null,null,null,null,null,null,null,null,null,null,null,null,"NH Ciudad de Cuenca",null,null,null,null,"NH Collection Eindhoven Centre",null,null,null,null,null,"NH Düsseldorf City Nord",null,null,null,null,null,"NH Collection Palazzo Verona"]
[null,null,null,"CS_ARGENTINA","CS_CHILE","CS_MEXICO","CS_COLOMBIA",null,null,null,null,null,null,null,null,null,"NH Ciudad de Santander",null,null,null,null,"NH Den Haag",null,null,null,null,null,"NH Düsseldorf Königsallee ",null,null,null,null,null,"NH Collection Roma Centro"]
[null,null,null,"Please select","Please select","Please select","Please select",null,null,null,null,null,null,null,null,null,"NH Ciudad de Valencia",null,null,null,null,"NH Eindhoven Conference Centre Koningshof",null,null,null,null,null,"NH Erlangen",null,null,null,null,null,"NH Collection Roma Fori Imperiali"]
[null,null,null,"CS ARGENTINA","CS CHILE","SERVICIOS CORPORATIVOS MEXICO","CS ROYAL COLOMBIA",null,null,null,null,null,null,null,null,null,"NH Ciudad de Valladolid",null,null,null,null,"NH Groningen",null,null,null,null,null,"NH Essen",null,null,null,null,null,"NH Collection Roma Giustiniano"]
[null,null,null,"CS ARGENTINA LATAM","CS ROYAL CHILE","CS MEXICO LATAM ","CS LATAM",null,null,null,null,null,null,null,null,null,"NH Ciudad de Zaragoza",null,null,null,null,"NH Maastricht",null,null,null,null,null,"NH Frankfurt Airport",null,null,null,null,null,"NH Collection Roma Palazzo Cinquecento"]
[null,null,null,null,null,"COPERAMA MEXICO","COPERAMA COLOMBIA",null,null,null,null,null,null,null,null,null,"NH Ciudad Real",null,null,null,null,"NH Noordwijk Conference Centre Leeuwenhorst",null,null,null,null,null,"NH Frankfurt Airport West",null,null,null,null,null,"NH Collection Roma Vittorio Veneto"]
[null,null,null,null,null,null,null,null,null,null,null,null,null,null,null,null,"NH Ciutat de Reus",null,null,null,null,"NH Utrecht",null,null,null,null,null,"NH Frankfurt Messe",null,null,null,null,null,"NH Collection Taormina"]
[null,null,null,null,null,null,null,null,null,null,null,null,null,null,null,null,"NH Collection A Coruña Finisterre",null,null,null,null,"NH Veluwe Sparrenhorst",null,null,null,null,null,"NH Frankfurt Niederrad",null,null,null,null,null,"NH Collection Torino Piazza Carlina"]
[null,null,"Country Name target",null,null,null,null,null,null,null,null,null,null,null,null,null,"NH Collection Amistad Córdoba",null,null,null,null,"NH Zandvoort",null,null,null,null,null,"NH Fürth Nürnberg",null,null,null,null,null,"NH Collection Torino Santo Stefano"]
[null,null,"ANDORRA.",null,null,null,null,null,null,null,null,null,null,null,null,null,"NH Collection Barcelona Constanza",null,null,null,null,"NH Zoetermeer",null,null,null,null,null,"NH Hamburg Altona",null,null,null,null,null,"NH Collection Venezia Grand Hotel Palazzo Dei Dogi"]
[null,null,"ARGENTINA.",null,null,null,null,null,null,null,null,null,null,null,null,null,"NH Collection Barcelona Gran Hotel Calderón",null,null,null,null,"nhow Amsterdam Rai",null,null,null,null,null,"NH Hamburg Horner Rennbahn",null,null,null,null,null,"NH Collection Venezia Murano Villa"]
[null,null,"AUSTRIA.",null,null,null,null,null,null,null,null,null,null,null,null,null,"NH Collection Barcelona Pódium",null,null,null,null,"nhow Rotterdam",null,null,null,null,null,"NH Hamburg Mitte",null,null,null,null,null,"NH Firenze"]
[null,null,"BELGIUM.",null,null,null,null,null,null,null,null,null,null,null,null,null,"NH Collection Cáceres Palacio de Oquendo",null,null,null,null,"Tivoli Doelen Amsterdam",null,null,null,null,null,"NH Hannover",null,null,null,null,null,"NH Genova Centro"]
[null,null,"BRAZIL.",null,null,null,null,null,null,null,null,null,null,null,null,null,"NH Collection Gran Hotel de Zaragoza",null,null,null,null,null,null,null,null,null,null,"NH Hirschberg Heidelberg",null,null,null,null,null,"NH La Spezia"]
[null,null,"CZECH.RPC.",null,null,null,null,null,null,null,null,null,null,null,null,null,"NH Collection Granada Victoria",null,null,null,null,null,null,null,null,null,null,"NH Ingolstadt",null,null,null,null,null,"NH Lecco Pontevecchio"]
[null,null,"CHILE.",null,null,null,null,null,null,null,null,null,null,null,null,null,"NH Collection León Plaza Mayor",null,null,null,null,null,null,null,null,null,null,"NH Klösterle Nördlingen",null,null,null,null,null,"NH Linate"]
[null,null,"DOMINICAN_RPC.",null,null,null,null,null,null,null,null,null,null,null,null,null,"NH Collection Madrid Abascal ",null,null,null,null,null,null,null,null,null,null,"NH Köln Altstadt",null,null,null,null,null,"NH Milano 2"]
[null,null,"ECUADOR.",null,null,null,null,null,null,null,null,null,null,null,null,null,"NH Collection Madrid Colón",null,null,null,null,null,null,null,null,null,null,"NH Leipzig Messe",null,null,null,null,null,"NH Milano 2 Residence"]
[null,null,"FRANCE.",null,null,null,null,null,null,null,null,null,null,null,null,null,"NH Collection Madrid Eurobuilding",null,null,null,null,null,null,null,null,null,null,"NH Leipzig Zentrum",null,null,null,null,null,"NH Milano Congress Centre"]
[null,null,"GERMANY.",null,null,null,null,null,null,null,null,null,null,null,null,null,"NH Collection Madrid Gran Vía",null,null,null,null,null,null,null,null,null,null,"NH Ludwigsburg",null,null,null,null,null,"NH Milano Corso Buenos Aires"]
[null,null,"HAITI.",null,null,null,null,null,null,null,null,null,null,null,null,null,"NH Collection Madrid Palacio de Tepa",null,null,null,null,null,null,null,null,null,null,"NH Mannheim",null,null,null,null,null,"NH Milano Fiera"]
[null,null,"HUNGARY.",null,null,null,null,null,null,null,null,null,null,null,null,null,"NH Collection Madrid Paseo del Prado",null,null,null,null,null,null,null,null,null,null,"NH Mannheim Viernheim",null,null,null,null,null,"NH Milano Machiavelli"]
[null,null,"ITALY.",null,null,null,null,null,null,null,null,null,null,null,null,null,"NH Collection Madrid Suecia",null,null,null,null,null,null,null,null,null,null,"NH München Airport",null,null,null,null,null,"NH Napoli Panorama"]
[null,null,"LUXEMBOURG.",null,"HEADQUARTERSCECO","CENTRAL_SERVICES_BUCECO","HOTELSCECO",null,null,null,null,null,null,null,null,null,"NH Collection Palacio de Aranjuez",null,null,null,null,null,null,null,null,null,null,"NH München City Süd",null,null,null,null,null,"NH Orio al Serio"]
[null,null,"MEXICO.",null,"Please select","Please select","Please select",null,null,null,null,null,null,null,null,null,"NH Collection Palacio de Burgos",null,null,null,null,null,null,null,null,null,null,"NH München Messe",null,null,null,null,null,"NH Padova"]
[null,null,"NETHERLANDS.",null,"Administration","Administration","Operations Control",null,null,null,null,null,null,null,null,null,"NH Collection Salamanca Palacio de Castellanos",null,null,null,null,null,null,null,null,null,null,"NH München Ost Conference Center ",null,null,null,null,null,"NH Palermo"]
[null,null,"PANAMA.",null,"Assets, Rents & Expansion","Assets, Rents & Expansion","Administration",null,null,null,null,null,null,null,null,null,"NH Collection San Sebastián Aránzazu",null,null,null,null,null,null,null,null,null,null,"NH München Unterhaching",null,null,null,null,null,"NH Parma"]
[null,null,"POLAND.",null,"Board of Directors","Business Intelligence","Banqueting ",null,null,null,null,null,null,null,null,null,"NH Collection Santiago de Compostela",null,null,null,null,null,null,null,null,null,null,"NH Oberhausen",null,null,null,null,null,"NH Pisa "]
[null,null,"PORTUGAL.",null,"Business Intelligence","Control & Financial Planning","CRM & Loyalty",null,null,null,null,null,null,null,null,null,"NH Collection Sevilla ",null,null,null,null,null,null,null,null,null,null,"NH Potsdam",null,null,null,null,null,"NH Ravenna"]
[null,null,"ROMANIA.",null,"Consolidation","CRM & Loyalty","Front Office",null,null,null,null,null,null,null,null,null,"NH Collection Valencia Colón",null,null,null,null,null,null,null,null,null,null,"NH Stuttgart Airport",null,null,null,null,null,"NH Roma Villa Carpegna"]
[null,null,"SLOVAKIA.",null,"Control & Financial Planning","Development","Global Sales Force",null,null,null,null,null,null,null,null,null,"NH Collection Vigo",null,null,null,null,null,null,null,null,null,null,"NH Stuttgart Sindelfingen",null,null,null,null,null,"NH Savona Darsena"]
[null,null,"SOUTH_AFRICA.",null,"Corporate Affairs","Distribution","Golf",null,null,null,null,null,null,null,null,null,"NH Collection Villa de Bilbao",null,null,null,null,null,null,null,null,null,null,"NH Weinheim",null,null,null,null,null,"NH Siena"]
[null,null,"SPAIN.",null,"CRM & Loyalty","Ecommerce","Housekeeping Common Areas",null,null,null,null,null,null,null,null,null,"NH Córdoba Califa",null,null,null,null,null,null,null,null,null,null,"nhow Berlin",null,null,null,null,null,"NH Torino Centro"]
[null,null,"HESP.SPAIN.",null,"Development","Front Office Project","Housekeeping Rooms",null,null,null,null,null,null,null,null,null,"NH Gijon",null,null,null,null,null,null,null,null,null,null,"nhow Frankfurt",null,null,null,null,null,"NH Torino Lingotto Congress"]
[null,null,"SWITZERLAND.",null,"Digital Sales","General Services","Housekeeping Supervisory",null,null,null,null,null,null,null,null,null,"NH Gran Hotel Casino de Extremadura",null,null,null,null,null,null,null,null,null,null,null,null,null,null,null,null,"NH Trento"]
[null,null,"UK.",null,"Distribution","Global Sales Force","IT Hotel",null,null,null,null,null,null,null,null,null,"NH Imperial Playa",null,null,null,null,null,null,null,null,null,null,null,null,null,null,null,null,"NH Trieste"]
[null,null,"URUGUAY.",null,"Ecommerce","Human Resources","Kitchen",null,null,null,null,null,null,null,null,null,"NH La Avanzada",null,null,null,null,null,null,null,null,null,null,null,null,null,null,null,null,"NH Venezia Laguna Palace"]
[null,null,"US.",null,"Front Office Project","Internal Audit ","Kitchen ext 1",null,null,null,null,null,null,null,null,null,"NH Las Palmas Playa las Canteras",null,null,null,null,null,null,null,null,null,null,null,null,null,null,null,null,"NH Venezia Santa Lucia"]
[null,null,"VENEZUELA.",null,"General Services","IT","Kitchen ext 2",null,null,null,null,null,null,null,null,null,"NH Leganes",null,null,null,null,null,null,null,null,null,null,null,null,null,null,null,null,"nhow Milano"]
[null,null,null,null,"Global Sales Force","Legal","Maintenance",null,null,null,null,null,null,null,null,null,"NH Lleida Pirineos",null,null,null,null,null,null,null,null,null,null,null,null,null,null,null,null,"Tivoli Portopiccolo Sistiana Resort & Spa"]
[null,null,null,null,"Human Resources","Marketing","Restaurant",null,null,null,null,null,null,null,null,null,"NH Logroño Herencia Rioja"]
[null,null,null,null,"Internal Audit ","Operations control","Restaurant ext 1",null,null,null," ",null,null,null,null,null,"NH Luz Huelva"]
[null,null,null,null,"Investment Analysis & Inverstor Relations","Other commercial","Restaurant ext 2",null,null,null,null,null,null,null,null,null,"NH Madrid Atocha"]
[null,null,null,null,"IT","Product & Brand","Revenue Management",null,null,null,null,null,null,null,null,null,"NH Madrid Balboa"]
[null,null,null,null,"Legal","Projects, Constructions, Engineering & Maintenance","RRHH",null,null,null,null,null,null,null,null,null,"NH Madrid Barajas Airport"]
[null,null,null,null,"Management Comitee","Purchasing","Sales",null,null,null,null,null,null,null,null,null,"NH Madrid Chamberí"]
[null,null,null,null,"Marketing","Quality & Competition","Spa",null,null,null,null,null,null,null,null,null,"NH Madrid Lagasca"]
[null,null,null,null,"Operations control","Reservation","Stewarding ",null,null,null,null,null,null,null,null,null,"NH Madrid Las Tablas"]
[null,null,null,null,"Organization","Revenue Management","Stewarding  ext 1",null,null,null,null,null,null,null,null,null,"NH Madrid Nacional"]
[null,null,null,null,"Other commercial","RRPP & Social Media","Stewarding  ext 2",null,null,null,null,null,null,null,null,null,"NH Madrid Paseo de la Habana"]
[null,null,null,null,"Product & Brand","Sales",null,null,null,null,null,null,null,null,null,null,"NH Madrid Príncipe de Vergara"]
[null,null,null,null,"Projects, Constructions, Engineering & Maintenance","Taxes",null,null,null,null,null,null,null,null,null,null,"NH Madrid Ribera del Manzanares"]
[null,null,null,null,"Purchasing","Treasury",null,null,null,null,null,null,null,null,null,null,"NH Madrid Ventas"]
[null,null,null,null,"Quality & Competition",null,null,null,null,null,null,null,null,null,null,null,"NH Madrid Zurbano"]
[null,null,null,null,"Reservation",null,null,null,null,null,null,null,null,null,null,null,"NH Malaga"]
[null,null,null,null,"Revenue Management",null,null,null,null,null,null,null,null,null,null,null,"NH Marbella"]
[null,null,null,null,"RRPP & Social Media",null,null,null,null,null,null,null,null,null,null,null,"NH Ourense"]
[null,null,null,null,"Sales",null,null,null,null,null,null,null,null,null,null,null,"NH Oviedo Principado"]
[null,null,null,null,"Special Investments",null,null,null,null,null,null,null,null,null,null,null,"NH Pamplona Iruña Park"]
[null,null,null,null,"Sustainable Business",null,null,null,null,null,null,null,null,null,null,null,"NH Pozuelo Ciudad de la Imagen"]
[null,null,null,null,"Taxes",null,null,null,null,null,null,null,null,null,null,null,"NH San Pedro de Alcántara"]
[null,null,null,null,"Treasury",null,null,null,null,null,null,null,null,null,null,null,"NH Sants Barcelona"]
[null,null,null,null,null,null,null,null,null,null,null,null,null,null,null,null,"NH Sevilla Plaza de Armas"]
[null,null,null,null,null,null,null,null,null,null,null,null,null,null,null,null,"NH Sport"]
[null,null,null,null,null,null,null,null,null,null,null,null,null,null,null,null,"NH Tenerife"]
[null,null,null,null,null,null,null,null,null,null,null,null,null,null,null,null,"NH Valencia Center"]
[null,null,null,null,"Administration","AD","AD","ADMINISTRATION",null,null,null,null,null,null,null,null,"NH Valencia Las Artes"]
[null,null,null,null,"Administration","AD","AD","ADMINISTRATION",null,null,null,null,null,null,null,null,"NH Valencia Las Ciencias"]
[null,null,null,null,"Assets, Rents & Expansion","AR","AR","ASSETS RENTS EXPANSI",null,null,null,null,null,null,null,null,"NH Valladolid Bálago"]
[null,null,null,null,"Banqueting ",80,80,"BANQUETING",null,null,null,null,null,null,null,null,"NH Zamora Palacio del Duero"]
[null,null,null,null,"Board of Directors","BD","BD","BOARD OF DIRECTORS",null,null,null,null,null,null,null,null,"Tivoli La Caleta Tenerife Resort"]
[null,null,null,null,"Business Intelligence","BI","BI","BUSINESS INTELIGENCE"]
[null,null,null,null,"Control & Financial Planning","CF","CF","CONTROL&FINANCIAL PLANNING"]
[null,null,null,null,"Corporate Affairs","CA","CA","CORPORATE AFFAIRS"]
[null,null,null,null,"Corporate Resposibility","CR"]
[null,null,null,null,"CRM & Loyalty","CL","CL","CRM & LOYALTY"]
[null,null,null,null,"CRM & Loyalty","CL","CL","CRM & LOYALTY"]
[null,null,null,null,"Development","DE","DE","DEVELOPMENT"]
[null,null,null,null,"Digital Sales","DS","DS","DIGITAL SALES"]
[null,null,null,null,"Distribution","DI","DI","DISTRIBUTION"]
[null,null,null,null,"Ecommerce","EC","EC","ECOMMERCE"]
[null,null,null,null,"Front Office","01","01","FRONT OFFICE"]
[null,null,null,null,"Front Office Project","FP","FP","FRONT OFFICE PROJECT"]
[null,null,null,null,"General Services","GS","GS","GENERAL SERVICES"]
[null,null,null,null,"Global Sales Force","SH","SH","GLOBAL SALES FORCES"]
[null,null,null,null,"Golf",91,91,"GOLF"]
[null,null,null,null,"Housekeeping Common Areas","03","02","HOUSEKEEPING ROOMS"]
[null,null,null,null,"Housekeeping Rooms","02","03","HSK COMMON AREAS"]
[null,null,null,null,"Housekeeping Supervisory","04","04","HSK SUPERVISORY"]
[null,null,null,null,"Human Resources","HR","HR","HUMAN RESOURCES"]
[null,null,null,null,"Internal Audit ","IA","IA","INTERNAL AUDIT"]
[null,null,null,null,"Investment Analysis & Inverstor Relations","II","II","INVESTM ANAL INV REL"]
[null,null,null,null,"IT","IT","IT","IT"]
[null,null,null,null,"IT Hotel","IT","IT","IT"]
[null,null,null,null,"Kitchen",10,10,"KITCHEN"]
[null,null,null,null,"Kitchen ext 1",20,20,"KITCHEN EXT REST 1"]
[null,null,null,null,"Kitchen ext 2",30,30,"KITCHEN EXT REST 2"]
[null,null,null,null,"Legal","LE","LE","LEGAL"]
[null,null,null,null,"Maintenance","PM","PM","PRO CON ENG & MAIN"]
[null,null,null,null,"Management Comitee","MC","MC","MANAGEMENT COMMITTEE"]
[null,null,null,null,"Marketing","MK","MK","MARKETING"]
[null,null,null,null,"Operations control","OP","OP","OPERATIONS CONTROL"]
[null,null,null,null,"Operations Control","OP","OP","OPERATIONS CONTROL"]
[null,null,null,null,"Organization","OR","OR","ORGANIZATION"]
[null,null,null,null,"Other commercial","OC","OC","OTHER COMMERCIAL"]
[null,null,null,null,"Other income",99,99,"OTHER INCOME"]
[null,null,null,null,"Product & Brand","PB","PB","PRODUCT & BRAND"]
[null,null,null,null,"Projects, Constructions, Engineering & Maintenance","PM","PM","PRO CON ENG & MAIN"]
[null,null,null,null,"Purchasing","PU","PU","PURCHASING"]
[null,null,null,null,"Quality & Competition","QC","QC","QUALITY COMPETITION"]
[null,null,null,null,"Reservation","RE","RE","RESERVATION"]
[null,null,null,null,"Restaurant",11,11,"RESTAURANT"]
[null,null,null,null,"Restaurant ext 1",21,21,"RESTAURANT EXT 1"]
[null,null,null,null,"Restaurant ext 2",31,31,"RESTAURANT EXT 2"]
[null,null,null,null,"Revenue Management","RV","RV","REVENUE MANAGT"]
[null,null,null,null,"Revenue Management","RV","RV","REVENUE MANAGT"]
[null,null,null,null,"RRHH","HR","HR","HUMAN RESOURCES"]
[null,null,null,null,"RRPP & Social Media","RS","RS","RRPP & SOCIAL MEDIA"]
[null,null,null,null,"Sales","SA","SA","SALES"]
[null,null,null,null,"Sales","SA","SA","SALES"]
[null,null,null,null,"Spa",90,90,"SPA"]
[null,null,null,null,"Special Investments","SI","SI","SPECIAL INVESTMENTS"]
[null,null,null,null,"Stewarding ",12,12,"STEWARDING"]
[null,null,null,null,"Stewarding  ext 1",22,31,"RESTAURANT EXT 2"]
[null,null,null,null,"Stewarding  ext 2",32,32,"STEWARD EXT REST 2"]
[null,null,null,null,"Taxes","FI","FI","TAXES"]
[null,null,null,null,"Treasury","TR","TR","TREASURY"]
[null,null,null,null,"Sustainable Business","SB","SB","SUSTAINABLE BUSINESS"]
[]
[]
[]
[]
[]
[]
[]
[]
[]
[]
[]
[]
[]
[]
[]
[]
[null,null,null,null,null,null,null,null,null,null,null,null,null,null,null,null,null,null,null,null,null,""]

{"sheet":"Centros","index":5,"n_rows":387,"n_cols":26,"rows_kept":387,"cut":false,"hidden":true,"merged":[]}
["CENTER CODE","HOTEL COMMERCIAL NAME","BUSINESS UNIT","Country","CITY","COMPANY CODE","COMPANY","CENTER","FI NAME","CUSTOMER SAP(CENTER)","FI NAME","BU NEW 2022","COUNTRY NAME","CURR","REGION","Contact 1-TO","Contact 2-CC","Contact 3-OTHER","Contact 4-OTHER",null,null,"GENERAL MANAGER NAME","TMS CENTER CODE (II)","GT","GT","SSC"]
["0002","NH Ciudad de Zaragoza","BU Southern Europe","Spain","Zaragoza","ES10","NH HOTELES ESPAÑA, S.A","0002","ES10 NH CIUDAD DE ZARAGOZA",9900000002,"ES10 NH CIUDAD DE ZARAGOZA","BUSE","SPAIN","EUR","Mónica Alcoriza","bp.millan@nh-hotels.com"," ",null,null,null,null,"Carmen Cenzano","ESZZ.CIUZA","GT01","G","Y"]
["0004","NH Collection Gran Hotel de Zaragoza","BU Southern Europe","Spain","Zaragoza","ES10","NH HOTELES ESPAÑA, S.A","0004","ES10 NH COLLECTION GRAN HOTEL",9900000004,"ES10 NH COLLECTION GRAN HOTEL","BUSE","SPAIN","EUR","Mónica Alcoriza","bp.millan@nh-hotels.com"," ",null,null,null,null,"Patricia Val Usón","ESZZ.GRAHO","GT01","G","Y"]
["0005","NH Canciller Ayala Vitoria","BU Southern Europe","Spain","Vitoria","ES10","NH HOTELES ESPAÑA, S.A","0005","ES10NH CANCILLER AYALA VITORIA",9900000005,"ES10NH CANCILLER AYALA VITORIA","BUSE","SPAIN","EUR","Raúl Fernández","mi.gonzalez@nh-hotels.com"," ",null,null,null,null,"Gema Guillerna Monasterio","ESVI.CANAY","GT01","G","Y"]
["0010","Avani Alonso Martinez Madrid Hotel","BU Southern Europe","Spain","Madrid","ES10","NH HOTELES ESPAÑA, S.A","0010","ES10 AVANI ALONSO MARTINEZ",9900000010,"ES10 AVANI ALONSO MARTINEZ","BUSE","SPAIN","EUR","José Ángel Esteban","m.ramirez.intern@nh-hotels.com"," ",null,null,null,null,"María García Valdehíta","ESMD.EMBAJ","GT01","G","Y"]
["0012","NH Madrid Ventas","BU Southern Europe","Spain","Madrid","ES10","NH HOTELES ESPAÑA, S.A","0012","ES10 NH VENTAS",9900000012,"ES10 NH VENTAS","BUSE","SPAIN","EUR","José Ángel Esteban","m.ramirez.intern@nh-hotels.com"," ",null,null,null,null,"Guillermo Mesas","ESMD.PARAV","GT01","G","Y"]
["0014","NH Sevilla Plaza de Armas","BU Southern Europe","Spain","Seville","ES01","NH HOTEL GROUP, S.A","0014","ES01 NH PLAZA DE ARMAS",9900000014,"ES01 NH PLAZA DE ARMAS","BUSE","SPAIN","EUR","Mariví Motilva","m.ramirez.intern@nh-hotels.com"," ",null,null,null,null,"Andrés Castillo Álvarez","ESSE.ARMAS","GT01","G","Y"]
["0017","NH Valencia Center","BU Southern Europe","Spain","Valencia","ES10","NH HOTELES ESPAÑA, S.A","0017","ES10 NH CENTER",9900000017,"ES10 NH CENTER","BUSE","SPAIN","EUR","Mónica Alcoriza","bp.millan@nh-hotels.com"," ",null,null,null,null,"Ricardo López Sarasa","ESVL.CENTE","GT01","G","Y"]
["0018","NH Collection Madrid Abascal ","BU Southern Europe","Spain","Madrid","ES10","NH HOTELES ESPAÑA, S.A","0018","ES10 NH COLLECTION ABASCAL",9900000018,"ES10 NH COLLECTION ABASCAL","BUSE","SPAIN","EUR","José Ángel Esteban","m.ramirez.intern@nh-hotels.com"," ",null,null,null,null,"Concepción Bedoya","ESMD.ABASC","GT01","G","Y"]
["0019","NH Madrid Nacional","BU Southern Europe","Spain","Madrid","ES01","NH HOTEL GROUP, S.A","0019","ES01 NH NACIONAL",9900000019,"ES01 NH NACIONAL","BUSE","SPAIN","EUR","José Ángel Esteban","m.ramirez.intern@nh-hotels.com"," ",null,null,null,null,"Ignacio Lendines","ESMD.NACIO","GT01","G","Y"]
["0027","NH Valencia Las Artes","BU Southern Europe","Spain","Valencia","ES10","NH HOTELES ESPAÑA, S.A","0027","ES10 NH LAS ARTES",9900000027,"ES10 NH LAS ARTES","BUSE","SPAIN","EUR","Mónica Alcoriza","bp.millan@nh-hotels.com"," ",null,null,null,null,"Julio Krebs Muñoz","ESVL.ARTE1","GT01","G","Y"]
["0028","NH Valencia Las Ciencias","BU Southern Europe","Spain","Valencia","ES10","NH HOTELES ESPAÑA, S.A","0028","ES10 NH LAS CIENCIAS",9900000028,"ES10 NH LAS CIENCIAS","BUSE","SPAIN","EUR","Mónica Alcoriza","bp.millan@nh-hotels.com"," ",null,null,null,null,"Julio Krebs Muñoz","ESVL.ARTE2","GT01","G","Y"]
["0032","NH Córdoba Califa","BU Southern Europe","Spain","Cordoba (ES)","ES55","ATLANTA SOLUTIONS, S.L.","0032","ES55 NH CALIFA",9900000032,"ES55 NH CALIFA","BUSE","SPAIN","EUR","Mariví Motilva","m.ramirez.intern@nh-hotels.com"," ",null,null,null,null,"Amparo García Sánchez","ESCO.CALIF","GT01","G","N"]
["0035","NH Collection Sevilla ","BU Southern Europe","Spain","Seville","ES10","NH HOTELES ESPAÑA, S.A","0035","ES10 NH COLLECTION SEVILLA",9900000035,"ES10 NH COLLECTION SEVILLA","BUSE","SPAIN","EUR","Mariví Motilva","m.ramirez.intern@nh-hotels.com"," ",null,null,null,null,"Nacho Ansó","ESSE.CECON","GT01","G","Y"]
["0041","NH Barcelona Eixample","BU Southern Europe","Spain","Barcelona","ES10","NH HOTELES ESPAÑA, S.A","0041","ES10 NH EIXAMPLE",9900000041,"ES10 NH EIXAMPLE","BUSE","SPAIN","EUR","Mónica Alcoriza","bp.millan@nh-hotels.com"," ",null,null,null,null,"David Illa","ESBA.MASTE","GT01","G","Y"]
["0042","NH Madrid Balboa","BU Southern Europe","Spain","Madrid","ES10","NH HOTELES ESPAÑA, S.A","0042","ES10 NH BALBOA",9900000042,"ES10 NH BALBOA","BUSE","SPAIN","EUR","José Ángel Esteban","m.ramirez.intern@nh-hotels.com"," ",null,null,null,null,"Cristina González Gallego","ESMD.BALBO","GT01","G","Y"]
["0043","NH Madrid Príncipe de Vergara","BU Southern Europe","Spain","Madrid","ES10","NH HOTELES ESPAÑA, S.A","0043","ES10 NH PRINCIPE DE VERGARA",9900000043,"ES10 NH PRINCIPE DE VERGARA","BUSE","SPAIN","EUR","José Ángel Esteban","m.ramirez.intern@nh-hotels.com"," ",null,null,null,null,"Oscar Grau","ESMD.PRIVE","GT01","G","Y"]
["0053","NH Sport","BU Southern Europe","Spain","Zaragoza","ES10","NH HOTELES ESPAÑA, S.A","0053","ES10 NH SPORT",9900000053,"ES10 NH SPORT","BUSE","SPAIN","EUR","Mónica Alcoriza","bp.millan@nh-hotels.com"," ",null,null,null,null,"Carmen Cenzano","ESZZ.SPORT","GT01","G","Y"]
["0064","Hilton Aeropuerto","BU America","Mexico","Mexico City","MX12","CHARTWELL DE NUEVO LAREDO, S.A. DE C.V.","0064","MX12 HILTON AEROPUERTO",9900000064,"MX12 HILTON AEROPUERTO","BUAM","MEXICO","MXN","Lorenzo Graciano","ja.diazdeleon@nh-hotels.com","la.graciano@nh-hotels.com",null,null,null,null,"José Adolfo Díaz de León Moreno","MXDF.HILTO","GT22","G","Y"]
["0070","Anantara The Marker Dublin","BU Northern Europe","Ireland","Dublin","IE03","GCS HOTEL LIMITED","0070","IE03ANANTARA THE MARKER DUBLIN",9900000070,"IE03ANANTARA THE MARKER DUBLIN","BUNE","IRELAND","EUR","Sander Creemers","michael.davern@themarker.ie","s.creemers@nh-hotels.com",null,null,null,null,"Michael Davern","IELD.MAKDU","GT25","G","Y"]
["0071","NH Collection Madrid Colón","BU Southern Europe","Spain","Madrid","ES10","NH HOTELES ESPAÑA, S.A","0071","ES10 NH COLLECTION COLON MADRI",9900000071,"ES10 NH COLLECTION COLON MADRI","BUSE","SPAIN","EUR","José Ángel Esteban","m.ramirez.intern@nh-hotels.com"," ",null,null,null,null,"Luis Perea","ESMD.SANVY","GT01","G","Y"]
["0072","NH Madrid Chamberí","BU Southern Europe","Spain","Madrid","ES33","HOTELES Y TURISMO DE LA MESETA, S.L.","0072","ES33 NH CHAMBERÍ",9900000072,"ES33 NH CHAMBERÍ","BUSE","SPAIN","EUR","José Ángel Esteban","m.ramirez.intern@nh-hotels.com"," ",null,null,null,null,"Lidya Barrios Riesgo ","ESMD.BRETO","GT01","G","N"]
["0073","NH Madrid Paseo de la Habana","BU Southern Europe","Spain","Madrid","ES10","NH HOTELES ESPAÑA, S.A","0073","ES10 NH PASEO DE LA HABANA",9900000073,"ES10 NH PASEO DE LA HABANA","BUSE","SPAIN","EUR","José Ángel Esteban","m.ramirez.intern@nh-hotels.com"," ",null,null,null,null,"Leticia Muro ","ESMD.HABAN","GT01","G","Y"]
["0074","NH Collection Mexico City Reforma","BU America","Mexico","Mexico City","MX08","HOTELERA DE LA PARRA, S.A. DE C.V.","0074","MX08 NH COLLE MEX CITY REFORMA",9900000074,"MX08 NH COLLE MEX CITY REFORMA","BUAM","MEXICO","MXN","Lorenzo Graciano","ab.sanchez@nh-hotels.com","la.graciano@nh-hotels.com",null,null,null,null,"Álvaro Barush Sánchez Gamiño","MXDF.MECIT","GT22","G","Y"]
["0076","NH Coatzacoalcos","BU America","Mexico","Coatzacoalcos","MX05","CHARTWELL INMOBILIARIA DE COATZACOALCOS, S.A. DE C","0076","MX05 NH COATZACOALCOS",9900000076,"MX05 NH COATZACOALCOS","BUAM","MEXICO","MXN","Lorenzo Graciano","ae.contreras@nh-hotels.com","la.graciano@nh-hotels.com",null,null,null,null,"Ana Elena Contreras Mauleón","MXVZ.COATZ","GT22","G","Y"]
["0081","NH Collection Barcelona Gran Hotel Calderón","BU Southern Europe","Spain","Barcelona","ES10","NH HOTELES ESPAÑA, S.A","0081","ES10 NH C GRAN HOTEL CALDERON",9900000081,"ES10 NH C GRAN HOTEL CALDERON","BUSE","SPAIN","EUR","Mónica Alcoriza","bp.millan@nh-hotels.com"," ",null,null,null,null,"Roger Grau/Luis  Carlos Berdonces (Ops. Director)","ESBA.CALDE","GT01","G","Y"]
["0082","NH Ciudad de Valencia","BU Southern Europe","Spain","Valencia","ES10","NH HOTELES ESPAÑA, S.A","0082","ES10 NH CIUDAD DE VALENCIA",9900000082,"ES10 NH CIUDAD DE VALENCIA","BUSE","SPAIN","EUR","Mónica Alcoriza","bp.millan@nh-hotels.com"," ",null,null,null,null,"Víctor Monleón","ESVL.VALEN","GT01","G","Y"]
["0083","NH Luz Huelva","BU Southern Europe","Spain","Huelva","ES10","NH HOTELES ESPAÑA, S.A","0083","ES10 NH LUZ HUELVA",9900000083,"ES10 NH LUZ HUELVA","BUSE","SPAIN","EUR","Mariví Motilva","m.ramirez.intern@nh-hotels.com"," ",null,null,null,null,"Jose Jaime Navarro Mateo","ESHV.LUZHU","GT01","G","Y"]
["0091","NH Madrid Zurbano","BU Southern Europe","Spain","Madrid","ES10","NH HOTELES ESPAÑA, S.A","0091","ES10 NH ZURBANO",9900000091,"ES10 NH ZURBANO","BUSE","SPAIN","EUR","José Ángel Esteban","m.ramirez.intern@nh-hotels.com"," ",null,null,null,null,"Lidya Barrios Riesgo ","ESMD.ZURBA","GT01","G","Y"]
["0093","NH Castellón Mindoro","BU Southern Europe","Spain","Castellon","ES10","NH HOTELES ESPAÑA, S.A","0093","ES10 NH MINDORO",9900000093,"ES10 NH MINDORO","BUSE","SPAIN","EUR","Mónica Alcoriza","bp.millan@nh-hotels.com"," ",null,null,null,null,"Aure García Lázaro ","ESCS.MINDO","GT01","G","Y"]
["0094","NH Collection Madrid Eurobuilding","BU Southern Europe","Spain","Madrid","ES10","NH HOTELES ESPAÑA, S.A","0094","ES10NH COLLECTION EUROBUILDING",9900000094,"ES10NH COLLECTION EUROBUILDING","BUSE","SPAIN","EUR","José Ángel Esteban","m.ramirez.intern@nh-hotels.com"," ",null,null,null,null,"Angel Villegas/Ángel Resmella","ESMD.EUROB","GT01","G","Y"]
["0099","NH Collection Lisboa Liberdade","BU Southern Europe","Portugal","Lisbon","PT01","NH HOTEL RALLYE PORTUGAL, LDA","0099","PT01 NH COLLECTION LIBERDADE",9900000099,"PT01 NH COLLECTION LIBERDADE","BUSE","PORTUGAL","EUR","Segundo López","p.frazao@nh-hotels.com"," ",null,null,null,null,"Pedro Frazao","PT11.LIBER","GT04","G","Y"]
["0104","NH Barcelona Les Corts","BU Southern Europe","Spain","Barcelona","ES10","NH HOTELES ESPAÑA, S.A","0104","ES10 NH LES CORTS",9900000104,"ES10 NH LES CORTS","BUSE","SPAIN","EUR","Mónica Alcoriza","bp.millan@nh-hotels.com"," ",null,null,null,null,"Sara Grau Bagà","ESBA.CORTS","GT01","G","Y"]
["0105","NH Sants Barcelona","BU Southern Europe","Spain","Barcelona","ES10","NH HOTELES ESPAÑA, S.A","0105","ES10 NH SANTS BARCELONA",9900000105,"ES10 NH SANTS BARCELONA","BUSE","SPAIN","EUR","Mónica Alcoriza","bp.millan@nh-hotels.com"," ",null,null,null,null,"Ramón Rius","ESBA.NUMAN","GT01","G","Y"]
["0106","NH Barcelona Stadium","BU Southern Europe","Spain","Barcelona","ES10","NH HOTELES ESPAÑA, S.A","0106","ES10 NH BARCELONA STADIUM",9900000106,"ES10 NH BARCELONA STADIUM","BUSE","SPAIN","EUR","Mónica Alcoriza","bp.millan@nh-hotels.com"," ",null,null,null,null,"Xavier Fanlo","ESBA.RALLY","GT01","G","Y"]
["0107","NH Barcelona Entenza","BU Southern Europe","Spain","Barcelona","ES10","NH HOTELES ESPAÑA, S.A","0107","ES10 NH ENTENZA",9900000107,"ES10 NH ENTENZA","BUSE","SPAIN","EUR","Mónica Alcoriza","bp.millan@nh-hotels.com"," ",null,null,null,null,"Oscar Arnaiz ","ESBA.SANTS","GT01","G","Y"]
["0110","NH Collection San Sebastián Aránzazu","BU Southern Europe","Spain","San Sebastian","ES10","NH HOTELES ESPAÑA, S.A","0110","ES10 NH COLLECTION ARANZAZU",9900000110,"ES10 NH COLLECTION ARANZAZU","BUSE","SPAIN","EUR","Raúl Fernández","mi.gonzalez@nh-hotels.com"," ",null,null,null,null,"Cuque Illa","ESSS.ARANZ","GT01","G","Y"]
["0113","NH Ciudad de Santander","BU Southern Europe","Spain","Santander","ES10","NH HOTELES ESPAÑA, S.A","0113","ES10 NH CIUDAD DE SANTANDER",9900000113,"ES10 NH CIUDAD DE SANTANDER","BUSE","SPAIN","EUR","Raúl Fernández","mi.gonzalez@nh-hotels.com"," ",null,null,null,null,"Álvaro Liébana","ESCB.SANTA","GT01","G","Y"]
["0114","NH Collection Salamanca Palacio de Castellanos","BU Southern Europe","Spain","Salamanca","ES10","NH HOTELES ESPAÑA, S.A","0114","ES10 NH COLLECTION PALACIO CAS",9900000114,"ES10 NH COLLECTION PALACIO CAS","BUSE","SPAIN","EUR","Raúl Fernández","mi.gonzalez@nh-hotels.com"," ",null,null,null,null,"Remedios Madrid Santos","ESSA.CASTE","GT01","G","Y"]
["0115","NH Madrid Atocha","BU Southern Europe","Spain","Madrid","ES10","NH HOTELES ESPAÑA, S.A","0115","ES10 NH ATOCHA",9900000115,"ES10 NH ATOCHA","BUSE","SPAIN","EUR","José Ángel Esteban","m.ramirez.intern@nh-hotels.com"," ",null,null,null,null,"Lucila Olmos","ESMD.SUR","GT01","G","Y"]
["0117","NH Imperial Playa","BU Southern Europe","Spain","Las Palmas de Gran Canaria","ES04","NH LAS PALMAS, S.A.","0117","ES04 NH IMPERIAL PLAYA",9900000117,"ES04 NH IMPERIAL PLAYA","BUSE","SPAIN","EUR","Mariví Motilva","m.ramirez.intern@nh-hotels.com"," ",null,null,null,null,"Dolores de Bethencourt","ESGC.IMPER","GT01","G","Y"]
["0118","NH Las Palmas Playa las Canteras","BU Southern Europe","Spain","Las Palmas de Gran Canaria","ES04","NH LAS PALMAS, S.A.","0118","ES04 NH PLAYA LAS CANTERAS",9900000118,"ES04 NH PLAYA LAS CANTERAS","BUSE","SPAIN","EUR","Mariví Motilva","m.ramirez.intern@nh-hotels.com"," ",null,null,null,null,"Dolores de Bethencourt","ESGC.CANTE","GT01","G","Y"]
["0119","NH Ciudad de Valladolid","BU Southern Europe","Spain","Valladolid","ES10","NH HOTELES ESPAÑA, S.A","0119","ES10 NH CIUDAD DE VALLADOLID",9900000119,"ES10 NH CIUDAD DE VALLADOLID","BUSE","SPAIN","EUR","Raúl Fernández","mi.gonzalez@nh-hotels.com"," ",null,null,null,null,"José Antonio Robles Montero","ESVA.VALLA","GT01","G","Y"]
["0121","NH Collection Barcelona Pódium","BU Southern Europe","Spain","Barcelona","ES02","NH MARIN, S.A.","0121","ES02 NH COLLECTION PODIUM",9900000121,"ES02 NH COLLECTION PODIUM","BUSE","SPAIN","EUR","Mónica Alcoriza","bp.millan@nh-hotels.com"," ",null,null,null,null,"Mª José Valera","ESBA.PODIU","GT01","G","Y"]
["0122","NH Madrid Lagasca","BU Southern Europe","Spain","Madrid","ES07","NH LAGASCA, S.A.","0122","ES07 NH LAGASCA",9900000122,"ES07 NH LAGASCA","BUSE","SPAIN","EUR","José Ángel Esteban","m.ramirez.intern@nh-hotels.com"," ",null,null,null,null,"Arantxa González","ESMD.LAGAS","GT01","G","Y"]
["0123","NH Pamplona Iruña Park","BU Southern Europe","Spain","Pamplona","ES10","NH HOTELES ESPAÑA, S.A","0123","ES10 NH IRUÑA PARK",9900000123,"ES10 NH IRUÑA PARK","BUSE","SPAIN","EUR","Raúl Fernández","mi.gonzalez@nh-hotels.com"," ",null,null,null,null,"Diego Moreno","ESNA.IRUNA","GT01","G","Y"]
["0125","NH Oviedo Principado","BU Southern Europe","Spain","Oviedo","ES27","HOTELES Y TURISMO DEL PRINCIPADO, S.A.","0125","ES27 NH PRINCIPADO",9900000125,"ES27 NH PRINCIPADO","BUSE","SPAIN","EUR","Raúl Fernández","mi.gonzalez@nh-hotels.com"," ",null,null,null,null,"Daniel García","ESAS.PRINC","GT01","G","N"]
["0126","NH Bilbao Deusto","BU Southern Europe","Spain","Bilbao","ES26","HOTEL DE DEUSTO,S.A.","0126","ES26 NH DEUSTO",9900000126,"ES26 NH DEUSTO","BUSE","SPAIN","EUR","Raúl Fernández","mi.gonzalez@nh-hotels.com"," ",null,null,null,null,"Elier Goñi","ESBI.DEUST","GT01","G","N"]
["0127","NH Ciudad Real","BU Southern Europe","Spain","Ciudad Real","ES10","NH HOTELES ESPAÑA, S.A","0127","ES10 NH CIUDAD REAL",9900000127,"ES10 NH CIUDAD REAL","BUSE","SPAIN","EUR","Mariví Motilva","m.ramirez.intern@nh-hotels.com"," ",null,null,null,null,"Guadalupe Carreras Gómez","ESCR.CREAL","GT01","G","Y"]
["0130","NH Marbella","BU Southern Europe","Spain","Marbella","ES32","EDIFICACIONES TIFAN, S.L.","0130","ES32 NH MARBELLA",9900000130,"ES32 NH MARBELLA","BUSE","SPAIN","EUR","Mariví Motilva","m.ramirez.intern@nh-hotels.com"," ",null,null,null,null,"Mamen Ramírez","ESMA.MARBE","GT01","G","Y"]
["0132","NH Lleida Pirineos","BU Southern Europe","Spain","Lleida","ES10","NH HOTELES ESPAÑA, S.A","0132","ES10 NH PIRINEOS",9900000132,"ES10 NH PIRINEOS","BUSE","SPAIN","EUR","Mónica Alcoriza","bp.millan@nh-hotels.com"," ",null,null,null,null,"Neus Guiu Sentis","ESLL.PIRIN","GT01","G","Y"]
["0133","NH Avenida Jerez","BU Southern Europe","Spain","Jerez de la Frontera","ES10","NH HOTELES ESPAÑA, S.A","0133","ES10 NH AVENIDA JEREZ",9900000133,"ES10 NH AVENIDA JEREZ","BUSE","SPAIN","EUR","Mariví Motilva","m.ramirez.intern@nh-hotels.com"," ",null,null,null,null,"Raquel Saborido Merino","ESJE.JEREZ","GT01","G","Y"]
["0138","NH Ciudad de Cuenca","BU Southern Europe","Spain","Cuenca","ES10","NH HOTELES ESPAÑA, S.A","0138","ES10 NH CIUDAD DE CUENCA",9900000138,"ES10 NH CIUDAD DE CUENCA","BUSE","SPAIN","EUR","Mariví Motilva","m.ramirez.intern@nh-hotels.com"," ",null,null,null,null,"Mario Bonilla ","ESCU.CUENC","GT01","G","Y"]
["0140","NH Collection Villa de Bilbao","BU Southern Europe","Spain","Bilbao","ES10","NH HOTELES ESPAÑA, S.A","0140","ES10NH COLLECTION VILLA BILBAO",9900000140,"ES10NH COLLECTION VILLA BILBAO","BUSE","SPAIN","EUR","Raúl Fernández","mi.gonzalez@nh-hotels.com"," ",null,null,null,null,"Juan M. Gómez ","ESBI.VILBI","GT01","G","Y"]
["0142","NH Ciutat de Reus","BU Southern Europe","Spain","Reus","ES09","NH HOTEL CIUTAT DE REUS, S.A.","0142","ES09 NH CIUTAT DE REUS",9900000142,"ES09 NH CIUTAT DE REUS","BUSE","SPAIN","EUR","Mónica Alcoriza","bp.millan@nh-hotels.com"," ",null,null,null,null,"Fanny Batlle Domenech","ESTA.REUS","GT01","G","Y"]
["0143","NH Collection Vigo","BU Southern Europe","Spain","Vigo","ES28","CONSTRUCCIONES AIS, S.L.","0143","ES28 NH COLLECTION VIGO",9900000143,"ES28 NH COLLECTION VIGO","BUSE","SPAIN","EUR","Raúl Fernández","mi.gonzalez@nh-hotels.com"," ",null,null,null,null,"Iván Sánchez ","ESPO.PAVIG","GT01","G","N"]
["0145","NH Leganes","BU Southern Europe","Spain","Madrid","ES10","NH HOTELES ESPAÑA, S.A","0145","ES10 NH LEGANES",9900000145,"ES10 NH LEGANES","BUSE","SPAIN","EUR","José Ángel Esteban","m.ramirez.intern@nh-hotels.com"," ",null,null,null,null,"Alejandro Aranda","ESMD.LEGAN","GT01","G","Y"]
["0147","NH San Pedro de Alcántara","BU Southern Europe","Spain","Marbella","ES31","HOTELES Y TURISMO DEL SUR, S.A.","0147","ES31 NH SAN PEDRO DE ALCANTARA",9900000147,"ES31 NH SAN PEDRO DE ALCANTARA","BUSE","SPAIN","EUR","Mariví Motilva","m.ramirez.intern@nh-hotels.com"," ",null,null,null,null,"David Galeote Alcázar","ESMA.PEDRO","GT01","G","N"]
["0148","NH Zamora Palacio del Duero","BU Southern Europe","Spain","Zamora","ES24","ARQUIVOLTA ORDEN, S.L.","0148","ES24 NH PALACIO DEL DUERO",9900000148,"ES24 NH PALACIO DEL DUERO","BUSE","SPAIN","EUR","Raúl Fernández","mi.gonzalez@nh-hotels.com"," ",null,null,null,null,"Eduardo Peña  ","ESZA.DUERO","GT01","G","N"]
["0149","NH Collection Palacio de Burgos","BU Southern Europe","Spain","Burgos","ES11","PALACIO DE LA MERCED, S.A.","0149","ES11NH COLLECT. PALACIO BURGOS",9900000149,"ES11NH COLLECT. PALACIO BURGOS","BUSE","SPAIN","EUR","Raúl Fernández","mi.gonzalez@nh-hotels.com"," ",null,null,null,null,"Jose Luis Porras Dominguez","ESBU.MERCE","GT01","G","Y"]
["0151","NH Pozuelo Ciudad de la Imagen","BU Southern Europe","Spain","Madrid","ES10","NH HOTELES ESPAÑA, S.A","0151","ES10 NH CIUDAD DE LA IMAGEN",9900000151,"ES10 NH CIUDAD DE LA IMAGEN","BUSE","SPAIN","EUR","José Ángel Esteban","m.ramirez.intern@nh-hotels.com"," ",null,null,null,null,"Lucila Olmos","ESMD.IMAGE","GT01","G","Y"]
["0152","NH Madrid Barajas Airport","BU Southern Europe","Spain","Madrid","ES10","NH HOTELES ESPAÑA, S.A","0152","ES10 NH BARAJAS AIRPORT",9900000152,"ES10 NH BARAJAS AIRPORT","BUSE","SPAIN","EUR","José Ángel Esteban","m.ramirez.intern@nh-hotels.com"," ",null,null,null,null,"Javier Vera","ESMD.BARAJ","GT01","G","Y"]
["0160","NH Buenos Aires Florida","BU America","Argentina","Buenos Aires","AR01","LATINA DE GESTION HOTELERA S.A.","0160","AR01 NH FLORIDA",9900000160,"AR01 NH FLORIDA","BUAM","ARGENTINA","ARS","Diego Agustín Chourrout","ma.badia@nh-hotels.com","d.chourrout@nh-hotels.com",null,null,null,null,"Marisol Badía","ARCC.FLORA","GT16","G","Y"]
["0161","NH Collection Buenos Aires Jousten","BU America","Argentina","Buenos Aires","AR01","LATINA DE GESTION HOTELERA S.A.","0161","AR01 NH COLLECTION JOUSTEN",9900000161,"AR01 NH COLLECTION JOUSTEN","BUAM","ARGENTINA","ARS","Diego Agustín Chourrout","sp.gonzalez@nh-hotels.com","d.chourrout@nh-hotels.com",null,null,null,null,"Silvana Paula González (interino)","ARCC.JOUST","GT16","G","Y"]
["0162","NH Buenos Aires Latino","BU America","Argentina","Buenos Aires","AR01","LATINA DE GESTION HOTELERA S.A.","0162","AR01 NH LATINO",9900000162,"AR01 NH LATINO","BUAM","ARGENTINA","ARS","Diego Agustín Chourrout","ma.badia@nh-hotels.com","d.chourrout@nh-hotels.com",null,null,null,null,"Marisol Badía (interino)","ARCC.LATIN","GT16","G","Y"]
["0163","NH Córdoba Panorama","BU America","Argentina","Cordoba (AR)","AR01","LATINA DE GESTION HOTELERA S.A.","0163","AR01 NH PANORAMA",9900000163,"AR01 NH PANORAMA","BUAM","ARGENTINA","ARS","Diego Agustín Chourrout","cs.alfonso@nh-hotels.com","d.chourrout@nh-hotels.com",null,null,null,null,"Corina Susana Alfonso","ARXX.PANOR","GT16","G","Y"]
["0164","NH Córdoba Urbano","BU America","Argentina","Cordoba (AR)","AR01","LATINA DE GESTION HOTELERA S.A.","0164","AR01 NH URBANO",9900000164,"AR01 NH URBANO","BUAM","ARGENTINA","ARS","Diego Agustín Chourrout","cs.alfonso@nh-hotels.com","d.chourrout@nh-hotels.com",null,null,null,null,"Corina Susana Alfonso","ARXX.URBAN","GT16","G","Y"]
["0165","NH Barcelona Diagonal Center","BU Southern Europe","Spain","Barcelona","ES02","NH MARIN, S.A.","0165","ES02 NH DIAGONAL CENTER",9900000165,"ES02 NH DIAGONAL CENTER","BUSE","SPAIN","EUR","Mónica Alcoriza","bp.millan@nh-hotels.com"," ",null,null,null,null,"Urbici Santamaría Figuls","ESBA.DIAGO","GT01","G","Y"]
["0166","NH Ciudad de Santiago","BU America","Chile","Santiago de Chile","CL02","HOTELERA CHILE  S.A.","0166","CL02 NH CIUDAD DE SANTIAGO",9900000166,"CL02 NH CIUDAD DE SANTIAGO","BUAM","CHILE","CLP","Diego Agustín Chourrout","mv.calderon@nh-hotels.com","d.chourrout@nh-hotels.com",null,null,null,null,"María Virginia Calderón","CLRM.SANTI","GT18","G","Y"]
["0167","NH Montevideo Columbia","BU America","Uruguay","Montevideo","UY02","COLUMBIA PALACE HOTEL S.A","0167","UY02 NH COLUMBIA",9900000167,"UY02 NH COLUMBIA","BUAM","URUGUAY","UYU","Diego Agustín Chourrout","f.frecceroeguren@nh-hotels.com","d.chourrout@nh-hotels.com",null,null,null,null,"Fernando Freccero","UYMO.COLUM","GT19","G","Y"]
["0168","NH Buenos Aires City","BU America","Argentina","Buenos Aires","AR02","CITY HOTEL S.A.","0168","AR02 NH CITY",9900000168,"AR02 NH CITY","BUAM","ARGENTINA","ARS","Diego Agustín Chourrout","me.neira@nh-hotels.com","d.chourrout@nh-hotels.com",null,null,null,null,"Marcela Neira","ARCC.CITYA","-","-","N"]
["0169","NH Mendoza Cordillera","BU America","Argentina","Mendoza","AR01","LATINA DE GESTION HOTELERA S.A.","0169","AR01 NH MENDOZA CORDILLERA",9900000169,"AR01 NH MENDOZA CORDILLERA","BUAM","ARGENTINA","ARS","Diego Agustín Chourrout","f.galante@nh-hotels.com","d.chourrout@nh-hotels.com",null,null,null,null,"Federico Galante","ARMM.CORDI","GT16","G","Y"]
["0178","NH Geneva Airport","BU Northern Europe","Switzerland","Geneva","CH01","NH HOTELES SWITZERLAND GMBH","0178","CH01 NH GENEVA AIRPORT",9900000178,"CH01 NH GENEVA AIRPORT","BUNE","SWITZERLAND","CHF","Andreas Harzer","h.frere@nh-hotels.com","a.harzer@nh-hotels.com",null,null,null,null,"Andreas Harzer","CHGE.GENAI","GT11","G","Y"]
["0181","NH Düsseldorf City","BU Northern Europe","Germany","Düsseldorf","DE01","NH HOTELES DEUTSCHLAND GMBH","0181","DE01 NH DUESSELDORF CITY",9900000181,"DE01 NH DUESSELDORF CITY","BUNE","GERMANY","EUR","Andreas Harzer","g.coco@nh-hotels.com","a.harzer@nh-hotels.com",null,null,null,null,"Giovanni Coco","DENW.DUCIT","GT10","G","Y"]
["0182","NH Dortmund","BU Northern Europe","Germany","Dortmund","DE01","NH HOTELES DEUTSCHLAND GMBH","0182","DE01 NH DORTMUND",9900000182,"DE01 NH DORTMUND","BUNE","GERMANY","EUR","Andreas Harzer","t.boergermann@nh-hotels.com","a.harzer@nh-hotels.com",null,null,null,null,"Tim Börgermann","DENW.DORTM","GT10","G","Y"]
["0183","NH München Ost Conference Center ","BU Northern Europe","Germany","Munich","DE01","NH HOTELES DEUTSCHLAND GMBH","0183","DE01 NH MUENCHEN OST",9900000183,"DE01 NH MUENCHEN OST","BUNE","GERMANY","EUR","Sven Beissel ","m.becker@nh-hotels.com","s.beissel@nh-hotels.com",null,null,null,null,"Marco Becker","DEBY.DORNA","GT10","G","Y"]
["0184","NH Oberhausen","BU Northern Europe","Germany","Oberhausen","DE01","NH HOTELES DEUTSCHLAND GMBH","0184","DE01 NH OBERHAUSEN",9900000184,"DE01 NH OBERHAUSEN","BUNE","GERMANY","EUR","Andreas Harzer","t.boergermann@nh-hotels.com","a.harzer@nh-hotels.com",null,null,null,null,"Tim Boergermann","DENW.OBERH","GT10","G","Y"]
["0185","NH Köln Altstadt","BU Northern Europe","Germany","Cologne","DE01","NH HOTELES DEUTSCHLAND GMBH","0185","DE01 NH KOELN ALTSTADT",9900000185,"DE01 NH KOELN ALTSTADT","BUNE","GERMANY","EUR","Andreas Harzer","p.westphal@nh-hotels.com","a.harzer@nh-hotels.com",null,null,null,null,"Patrick Westphal","DENW.KOCIT","GT10","G","Y"]
["0187","NH Frankfurt Airport","BU Northern Europe","Germany","Frankfurt","DE01","NH HOTELES DEUTSCHLAND GMBH","0187","DE01 NH FRANKFURT AIRPORT",9900000187,"DE01 NH FRANKFURT AIRPORT","BUNE","GERMANY","EUR","Sven Beissel ","t.bartz@nh-hotels.com","s.beissel@nh-hotels.com",null,null,null,null,"Thomas Bartz","DEHE.FRAIR","GT10","G","Y"]
["0188","NH Frankfurt Airport West","BU Northern Europe","Germany","Frankfurt","DE01","NH HOTELES DEUTSCHLAND GMBH","0188","DE01 NH FRANKFURT AIRPORT WEST",9900000188,"DE01 NH FRANKFURT AIRPORT WEST","BUNE","GERMANY","EUR","Sven Beissel ","t.bartz@nh-hotels.com","s.beissel@nh-hotels.com",null,null,null,null,"Thomas Bartz","DEHE.FRHEM","GT10","G","Y"]
["0189","NH Berlin Alexanderplatz","BU Northern Europe","Germany","Berlin","DE01","NH HOTELES DEUTSCHLAND GMBH","0189","DE01 NH BERLIN ALEXANDERPLATZ",9900000189,"DE01 NH BERLIN ALEXANDERPLATZ","BUNE","GERMANY","EUR","Bastian Lang","m.wolf@nh-hotels.com","b.lang@nh-hotels.com",null,null,null,null,"Mike Wolf","DEBE.ALEXA","GT10","G","Y"]
["0190","NH Collection Berlin Mitte am Checkpoint Charlie","BU Northern Europe","Germany","Berlin","DE01","NH HOTELES DEUTSCHLAND GMBH","0190","DE01 NH COLLECTIO BERLIN MITTE",9900000190,"DE01 NH COLLECTIO BERLIN MITTE","BUNE","GERMANY","EUR","Bastian Lang","t.esser@nh-hotels.com","b.lang@nh-hotels.com",null,null,null,null,"Jurek Schwarz","DEBE.MITTE","GT10","G","Y"]
["0194","NH Bingen","BU Northern Europe","Germany","Bingen am Rhein","DE01","NH HOTELES DEUTSCHLAND GMBH","0194","DE01 NH BINGEN",9900000194,"DE01 NH BINGEN","BUNE","GERMANY","EUR","Andreas Harzer","f.sempf@nh-hotels.com","a.harzer@nh-hotels.com",null,null,null,null,"Fabian Sempf","DERP.BINGE","GT10","G","Y"]
["0198","NH Berlin Kurfürstendamm","BU Northern Europe","Germany","Berlin","DE01","NH HOTELES DEUTSCHLAND GMBH","0198","DE01 NH BERLIN KURFUERSTENDAMM",9900000198,"DE01 NH BERLIN KURFUERSTENDAMM","BUNE","GERMANY","EUR","Bastian Lang","s.eichholz@nh-hotels.com","b.lang@nh-hotels.com",null,null,null,null,"Susanne Eichholz","DEBE.KUFUR","GT10","G","Y"]
["0200","NH Groningen","BU Northern Europe","The Netherlands","Groningen","NL46","VELA SECUNDA OMNIUM PRIMUM VIII B.V.","0200","NL46 NH GRONINGEN",9900000200,"NL46 NH GRONINGEN","BUNE","NETHERLANDS","EUR","Walter Kok","e.brinks@nh-hotels.com","w.kok@nh-hotels.com",null,null,null,null,"Egbert Brinks","NLGR.GRON","GT09","G","Y"]
["0201","NH Brussels Stéphanie","BU Northern Europe","Belgium","Brussels","BE02","HOTEL EXPLOITATIEMAATSCHAPPIJ DIEGEM N.V","0201","BE02 NH STEPHANIE",9900000201,"BE02 NH STEPHANIE","BUNE","BELGIUM","EUR","Jan Joris Kriele","o.cadar@nh-hotels.com","jj.kriele@nh-hotels.com",null,null,null,null,"Melanie Doms","BEBR.STEPH","GT06","G","Y"]
["0203","NH Brussels Airport","BU Northern Europe","Belgium","Brussels","BE02","HOTEL EXPLOITATIEMAATSCHAPPIJ DIEGEM N.V","0203","BE02 NH BRUSSELS AIRPORT",9900000203,"BE02 NH BRUSSELS AIRPORT","BUNE","BELGIUM","EUR","Jan Joris Kriele","b.rottiers@nh-hotels.com","jj.kriele@nh-hotels.com",null,null,null,null,"Bart Rottiers ","BEBR.BRUAI","GT06","G","Y"]
["0204","NH Brussels Grand Place Arenberg","BU Northern Europe","Belgium","Brussels","BE02","HOTEL EXPLOITATIEMAATSCHAPPIJ DIEGEM N.V","0204","BE02 NH GRAND PLACE ARENBERG",9900000204,"BE02 NH GRAND PLACE ARENBERG","BUNE","BELGIUM","EUR","Jan Joris Kriele","t.desmedt@nh-hotels.com","jj.kriele@nh-hotels.com",null,null,null,null,"Natalia Serna","BEBR.GPARE","GT06","G","Y"]
["0207","NH Bussum Jan Tabak","BU Northern Europe","The Netherlands","Bussum","NL40","JAN TABAK N.V.","0207","NL40 NH JAN TABAK",9900000207,"NL40 NH JAN TABAK","BUNE","NETHERLANDS","EUR","Walter Kok","b.hauten@nh-hotels.com","w.kok@nh-hotels.com",null,null,null,null,"Bart van den Hauten","NLNH.JANTA","GT09","G","Y"]
["0208","NH Amsterdam Noord","BU Northern Europe","The Netherlands","Amsterdam","NL36","HEM AMSTERDAM NOORD B.V.","0208","NL36 NH AMSTERDAM NOORD",9900000208,"NL36 NH AMSTERDAM NOORD","BUNE","NETHERLANDS","EUR","Walter Kok","g.haagen@nh-hotels.com","w.kok@nh-hotels.com",null,null,null,null,"Gerard van der Haagen","NLNH.GALAX","GT09","G","Y"]
["0209","NH Amsterdam Caransa","BU Northern Europe","The Netherlands","Amsterdam","NL34","EM SCHILLER HOTEL BV","0209","NL34 NH CARANSA",9900000209,"NL34 NH CARANSA","BUNE","NETHERLANDS","EUR","Walter Kok","l.woltjes@nh-hotels.com","w.kok@nh-hotels.com",null,null,null,null,"Lynn Woltjes","NLNH.CARAN","GT09","G","Y"]
["0210","NH Amsterdam Schiller","BU Northern Europe","The Netherlands","Amsterdam","NL34","EM SCHILLER HOTEL BV","0210","NL34 NH SCHILLER",9900000210,"NL34 NH SCHILLER","BUNE","NETHERLANDS","EUR","Walter Kok","l.woltjes@nh-hotels.com","w.kok@nh-hotels.com",null,null,null,null,"Lynn Woltjes","NLNH.SCHIL","GT09","G","Y"]
["0211","Tivoli Doelen Amsterdam","BU Northern Europe","The Netherlands","Amsterdam","NL33","EXPLOITATIEMAATSCHAPPIJ DOELEN HOTEL B.V","0211","NL33 TIVOLI DOELEN",9900000211,"NL33 TIVOLI DOELEN","BUNE","NETHERLANDS","EUR","Walter Kok","l.jong@nh-hotels.com","w.kok@nh-hotels.com",null,null,null,null,"Ludo de Jong","NLNH.DOELE","GT09","G","Y"]
["0213","NH Amsterdam Museum Quarter","BU Northern Europe","The Netherlands","Amsterdam","NL26","MUSEUM QUARTER B.V.","0213","NL26 NH MUSEUM QUARTER",9900000213,"NL26 NH MUSEUM QUARTER","BUNE","NETHERLANDS","EUR","Walter Kok","j.lambrecht@nh-hotels.com","w.kok@nh-hotels.com",null,null,null,null,"Jens Lambrecht","NLNH.MUSEU","GT09","G","Y"]
["0214","NH City Centre Amsterdam","BU Northern Europe","The Netherlands","Amsterdam","NL42","HEM SPUISTRAAT AMSTERDAM B.V.","0214","NL42 NH CITY CENTRE",9900000214,"NL42 NH CITY CENTRE","BUNE","NETHERLANDS","EUR","Walter Kok","a.dongen@nh-hotels.com","w.kok@nh-hotels.com",null,null,null,null,"Aukje van Dongen ","NLNH.CCAMS","GT09","G","Y"]
["0215","NH Amsterdam Leidseplein","BU Northern Europe","The Netherlands","Amsterdam","NL22","HEM STADHOUDERSKADE AMSTERDAM B.V.","0215","NL22 NH AMSTERDAM LEIDSEPLEIN",9900000215,"NL22 NH AMSTERDAM LEIDSEPLEIN","BUNE","NETHERLANDS","EUR","Walter Kok","jm.ripa@nhow-hotels.com","w.kok@nh-hotels.com",null,null,null,null,"Txema Ripa","NLNH.AMSCE","GT09","G","Y"]
["0216","NH Collection Amsterdam Barbizon Palace","BU Northern Europe","The Netherlands","Amsterdam","NL13","PALATIUM AMSTELODAMUM N.V.","0216","NL13 NH COLLEC BARBIZON PALACE",9900000216,"NL13 NH COLLEC BARBIZON PALACE","BUNE","NETHERLANDS","EUR","Walter Kok","l.jong@nh-hotels.com","w.kok@nh-hotels.com",null,null,null,null,"Ludo de Jong","NLNH.BARBI","GT09","G","Y"]
["0217","NH Amsterdam Schiphol Airport","BU Northern Europe","The Netherlands","Amsterdam","NL24","HIGHMARK HOOFDDORP, B.V","0217","NL24 NH SCHIPHOL AIRPORT",9900000217,"NL24 NH SCHIPHOL AIRPORT","BUNE","NETHERLANDS","EUR","Walter Kok","a.dhuij@nh-hotels.com","w.kok@nh-hotels.com",null,null,null,null,"Adhar D'hui","NLNH.SCHIP","GT09","G","Y"]
["0218","Anantara Grand Hotel Krasnapolsky Amsterdam","BU Northern Europe","The Netherlands","Amsterdam","NL49","EM GRAND-HOTEL KRASNAPOLSKY B.V.","0218","NL49 NH C GRAN HO KRASNAPOLSKY",9900000218,"NL49 NH C GRAN HO KRASNAPOLSKY","BUNE","NETHERLANDS","EUR","Sander Creemers","a.heuwekemeijer@anantara-hotels.com","s.creemers@nh-hotels.com",null,null,null,null,"Arne Heuwekemeijer","NLNH.KRASN","GT09","G","Y"]
["0221","NH Utrecht","BU Northern Europe","The Netherlands","Utrecht","NL35","HEM JAARBEURSPLEIN UTRECHT B.V.","0221","NL35 NH UTRECHT",9900000221,"NL35 NH UTRECHT","BUNE","NETHERLANDS","EUR","Walter Kok","r.besselink@nh-hotels.com","w.kok@nh-hotels.com",null,null,null,null,"Rob Besselink","NLUT.UTREC","GT09","G","Y"]
["0222","NH Zandvoort","BU Northern Europe","The Netherlands","Zandvoort","NL27","HEM VAN ALPHENSTRAAT ZANDVOORT B.V.","0222","NL27 NH ZANDVOORT",9900000222,"NL27 NH ZANDVOORT","BUNE","NETHERLANDS","EUR","Walter Kok","m.knoester@nh-hotels.com","w.kok@nh-hotels.com",null,null,null,null,"Michel Knoester ","NLNH.ZANDV","GT09","G","Y"]
["0226","NH Collection Amistad Córdoba","BU Southern Europe","Spain","Cordoba (ES)","ES10","NH HOTELES ESPAÑA, S.A","0226","ES10NH COLLECT AMISTAD CORDOBA",9900000226,"ES10NH COLLECT AMISTAD CORDOBA","BUSE","SPAIN","EUR","Mariví Motilva","m.ramirez.intern@nh-hotels.com"," ",null,null,null,null,"Daniel Betanzos","ESCO.AMICO","GT01","G","Y"]
["0232","NH Zoetermeer","BU Northern Europe","The Netherlands","Zoetermeer","NL28","HEM DANNY KAYELAAN ZOETERMEER B.V.","0232","NL28 NH ZOETERMEER",9900000232,"NL28 NH ZOETERMEER","BUNE","NETHERLANDS","EUR","Walter Kok","h.balegh@nh-hotels.com","w.kok@nh-hotels.com",null,null,null,null,"Hichem Balegh ","NLZH.ZOETE","GT09","G","Y"]
["0234","NH Centre Utrecht","BU Northern Europe","The Netherlands","Utrecht","NL43","HEM JANSKERKHOF UTRECHT B.V.","0234","NL43 NH CENTRE UTRECHT",9900000234,"NL43 NH CENTRE UTRECHT","BUNE","NETHERLANDS","EUR","Walter Kok","r.besselink@nh-hotels.com","w.kok@nh-hotels.com",null,null,null,null,"Rob Besselink","NLUT.CENUT","GT09","G","Y"]
["0235","NH Atlanta Rotterdam","BU Northern Europe","The Netherlands","Rotterdam","NL29","HEM ATLANTA ROTTERDAM B.V.","0235","NL29 NH ATLANTA ROTTERDAM",9900000235,"NL29 NH ATLANTA ROTTERDAM","BUNE","NETHERLANDS","EUR","Walter Kok","b.woude@nh-hotels.com","w.kok@nh-hotels.com",null,null,null,null,"Bouke van der Woude","NLZH.ATLRO","GT09","G","Y"]
["0237","NH Dresden Neustadt","BU Northern Europe","Germany","Dresden","DE01","NH HOTELES DEUTSCHLAND GMBH","0237","DE01 NH DRESDEN NEUSTADT",9900000237,"DE01 NH DRESDEN NEUSTADT","BUNE","GERMANY","EUR","Bastian Lang","h.glasemann@nh-hotels.com","b.lang@nh-hotels.com",null,null,null,null,"Holger Glasemann","DESN.DRESD","GT10","G","Y"]
["0239","NH Düsseldorf City Nord","BU Northern Europe","Germany","Düsseldorf","DE01","NH HOTELES DEUTSCHLAND GMBH","0239","DE01 NH DUESSELDORF CITY NORD",9900000239,"DE01 NH DUESSELDORF CITY NORD","BUNE","GERMANY","EUR","Andreas Harzer","s.kuehn@nh-hotels.com","a.harzer@nh-hotels.com",null,null,null,null,"Sebastian Kühn","DENW.DUNOR","GT10","G","Y"]
["0242","NH Collection Brussels Centre","BU Northern Europe","Belgium","Brussels","BE02","HOTEL EXPLOITATIEMAATSCHAPPIJ DIEGEM N.V","0242","BE02 NH COLLECTION BRUSSELS CE",9900000242,"BE02 NH COLLECTION BRUSSELS CE","BUNE","BELGIUM","EUR","Jan Joris Kriele","g.demoor@nh-hotels.com","jj.kriele@nh-hotels.com",null,null,null,null,"Gaétan Demoor","BEBR.ATLAB","GT06","G","Y"]
["0243","NH Maastricht","BU Northern Europe","The Netherlands","Maastricht","NL23","HEM FORUM MAASTRICHT B.V.","0243","NL23 NH MAASTRICHT",9900000243,"NL23 NH MAASTRICHT","BUNE","NETHERLANDS","EUR","Walter Kok","c.jeunhomme@nh-hotels.com","w.kok@nh-hotels.com",null,null,null,null,"Claire Jeunhomme","NLLI.MAAST","GT09","G","Y"]
["0244","NH Capelle","BU Northern Europe","The Netherlands","Capelle aan den Ijssel","NL25","HEM CAPELLE A/D IJSSEL B.V.","0244","NL25 NH CAPELLE",9900000244,"NL25 NH CAPELLE","BUNE","NETHERLANDS","EUR","Walter Kok","g.haagen@nh-hotels.com","w.kok@nh-hotels.com",null,null,null,null,"Gerard van der Haagen","NLZH.CAPEL","GT09","G","Y"]
["0247","NH Arnhem Rijnhotel","BU Northern Europe","The Netherlands","Arnhem","NL14","HEM ONDERLANGS ARNHEM B.V.","0247","NL14 NH ARNHEM RIJNHOTEL",9900000247,"NL14 NH ARNHEM RIJNHOTEL","BUNE","NETHERLANDS","EUR","Walter Kok","f.jagt@nh-hotels.com","w.kok@nh-hotels.com",null,null,null,null,"Folkert van der Jagt","NLGE.RIJNH","GT09","G","Y"]
["0248","Casino de Madrid","BU Southern Europe","Spain","Madrid","ES16","GRAN CIRCULO DE MADRID, S.A.","0248","ES16 CASINO DE MADRID",9900000248,"ES16 CASINO DE MADRID","BUSE","SPAIN","EUR","José Ángel Esteban","m.ramirez.intern@nh-hotels.com"," ",null,null,null,null,"Paco Roncero / Manuel Ortega","ESMD.CASMA","GT01","G","Y"]
["0252","NH Erlangen","BU Northern Europe","Germany","Erlangen","DE01","NH HOTELES DEUTSCHLAND GMBH","0252","DE01 NH ERLANGEN",9900000252,"DE01 NH ERLANGEN","BUNE","GERMANY","EUR","Andreas Harzer","j.hillebrecht@nh-hotels.com","a.harzer@nh-hotels.com",null,null,null,null,"Jörg Hillebrecht","DEBY.ERLAN","GT10","G","Y"]
["0254","NH Geneva City","BU Northern Europe","Switzerland","Geneva","CH01","NH HOTELES SWITZERLAND GMBH","0254","CH01 NH GENEVA",9900000254,"CH01 NH GENEVA","BUNE","SWITZERLAND","CHF","Andreas Harzer","a.harzer@nh-hotels.com","a.harzer@nh-hotels.com",null,null,null,null,"Andreas Harzer","CHGE.REX","GT11","G","Y"]
["0255","NH Hamburg Mitte","BU Northern Europe","Germany","Hamburg","DE01","NH HOTELES DEUTSCHLAND GMBH","0255","DE01 NH HAMBURG MITTE",9900000255,"DE01 NH HAMBURG MITTE","BUNE","GERMANY","EUR","Bastian Lang","f.luebke@nh-hotels.com","b.lang@nh-hotels.com",null,null,null,null,"Fenja Lubke","DEHH.HAMIT","GT10","G","Y"]
["0256","NH Berlin City Ost","BU Northern Europe","Germany","Berlin","DE01","NH HOTELES DEUTSCHLAND GMBH","0256","DE01 NH BERLIN CITY OST",9900000256,"DE01 NH BERLIN CITY OST","BUNE","GERMANY","EUR","Bastian Lang","sv.mueller@nh-hotels.com","b.lang@nh-hotels.com",null,null,null,null,"Sven Müller","DEBE.FRALL","GT10","G","Y"]
["0258","NH Frankfurt Niederrad","BU Northern Europe","Germany","Frankfurt","DE04","NH CENTRAL EUROPE GMBH & CO. KG","0258","DE04 NH FRANKFURT NIEDERRAD",9900000258,"DE04 NH FRANKFURT NIEDERRAD","BUNE","GERMANY","EUR","Andreas Harzer","f.sempf@nh-hotels.com","a.harzer@nh-hotels.com",null,null,null,null,"Fabian Sempf","DEHE.NIEDE","GT10","G","Y"]
["0260","NH Collection Hamburg City","BU Northern Europe","Germany","Hamburg","DE01","NH HOTELES DEUTSCHLAND GMBH","0260","DE01 NH COLLECTIO HAMBURG CITY",9900000260,"DE01 NH COLLECTIO HAMBURG CITY","BUNE","GERMANY","EUR","Bastian Lang","f.luebke@nh-hotels.com","b.lang@nh-hotels.com",null,null,null,null,"Fenja Lubke","DEHH.HACIT","GT10","G","Y"]
["0261","NH Hamburg Horner Rennbahn","BU Northern Europe","Germany","Hamburg","DE01","NH HOTELES DEUTSCHLAND GMBH","0261","DE01 NH HORNER RENNBAHN",9900000261,"DE01 NH HORNER RENNBAHN","BUNE","GERMANY","EUR","Bastian Lang","a.brinkhoff@nh-hotels.com","b.lang@nh-hotels.com",null,null,null,null,"Susanne Runge","DEHH.HAHOR","GT10","G","Y"]
["0262","NH Hamburg Altona","BU Northern Europe","Germany","Hamburg","DE01","NH HOTELES DEUTSCHLAND GMBH","0262","DE01 NH HAMBURG ALTONA",9900000262,"DE01 NH HAMBURG ALTONA","BUNE","GERMANY","EUR","Bastian Lang","t.stieber@nh-hotels.com","b.lang@nh-hotels.com",null,null,null,null,"Leonel Baptista","DEHH.HAALT","GT10","G","Y"]
["0263","NH Collection Heidelberg","BU Northern Europe","Germany","Heidelberg","DE01","NH HOTELES DEUTSCHLAND GMBH","0263","DE01 NH COLLECTION HEIDELBERG",9900000263,"DE01 NH COLLECTION HEIDELBERG","BUNE","GERMANY","EUR","Andreas Harzer","d.ugursal@nh-hotels.com","a.harzer@nh-hotels.com",null,null,null,null,"Dennis Ugursal","DEBW.HEIDE","GT10","G","Y"]
["0265","NH Hirschberg Heidelberg","BU Northern Europe","Germany","Hirschberg","DE01","NH HOTELES DEUTSCHLAND GMBH","0265","DE01 NH HIRSCHBERG HEIDELBERG",9900000265,"DE01 NH HIRSCHBERG HEIDELBERG","BUNE","GERMANY","EUR","Andreas Harzer","m.zorigtbaatar@nh-hotels.com","a.harzer@nh-hotels.com",null,null,null,null,"Munkhzul Zorigtbaatar","DEBW.HIRSC","GT10","G","Y"]
["0266","NH Ingolstadt","BU Northern Europe","Germany","Ingolstadt","DE01","NH HOTELES DEUTSCHLAND GMBH","0266","DE01 NH INGOLSTADT",9900000266,"DE01 NH INGOLSTADT","BUNE","GERMANY","EUR","Andreas Harzer","j.teichert@nh-hotels.com","a.harzer@nh-hotels.com",null,null,null,null,"Jeannette Teichert","DEBY.INGOL","GT10","G","Y"]
["0268","NH Leipzig Messe","BU Northern Europe","Germany","Leipzig","DE01","NH HOTELES DEUTSCHLAND GMBH","0268","DE01 NH LEIPZIG MESSE",9900000268,"DE01 NH LEIPZIG MESSE","BUNE","GERMANY","EUR","Bastian Lang","a.huepkes@nh-hotels.com","b.lang@nh-hotels.com",null,null,null,null,"Axel Hüpkes","DESN.LEIPZ","GT10","G","Y"]
["0270","NH München Airport","BU Northern Europe","Germany","Munich","DE01","NH HOTELES DEUTSCHLAND GMBH","0270","DE01 NH MUENCHEN AIRPORT",9900000270,"DE01 NH MUENCHEN AIRPORT","BUNE","GERMANY","EUR","Sven Beissel ","pm.stumpp@nh-hotels.com","s.beissel@nh-hotels.com",null,null,null,null,"Pilar Stumpp","DEBY.MUNAI","GT10","G","Y"]
["0271","NH Collection München Bavaria","BU Northern Europe","Germany","Munich","DE01","NH HOTELES DEUTSCHLAND GMBH","0271","DE01 NH COLLEC MÜNCHEN BAVARIA",9900000271,"DE01 NH COLLEC MÜNCHEN BAVARIA","BUNE","GERMANY","EUR","Sven Beissel ","c.gindele@nh-hotels.com","s.beissel@nh-hotels.com",null,null,null,null,"Christian Gindele","DEBY.KAISE","GT10","G","Y"]
["0272","NH München Messe","BU Northern Europe","Germany","Munich","DE01","NH HOTELES DEUTSCHLAND GMBH","0272","DE01 NH MUENCHEN MESSE",9900000272,"DE01 NH MUENCHEN MESSE","BUNE","GERMANY","EUR","Sven Beissel ","t.stopje@nh-hotels.com","s.beissel@nh-hotels.com",null,null,null,null,"Thomas Stopje","DEBY.NEUME","GT10","G","Y"]
["0273","NH München Unterhaching","BU Northern Europe","Germany","Munich","DE01","NH HOTELES DEUTSCHLAND GMBH","0273","DE01 NH MUENCHEN UNTERHACHING",9900000273,"DE01 NH MUENCHEN UNTERHACHING","BUNE","GERMANY","EUR","Sven Beissel ","m.becker@nh-hotels.com","s.beissel@nh-hotels.com",null,null,null,null,"Thomas Stopje","DEBY.UNTER","GT10","G","Y"]
["0274","NH München City Süd","BU Northern Europe","Germany","Munich","DE01","NH HOTELES DEUTSCHLAND GMBH","0274","DE01 NH MUENCHEN CITY SUED",9900000274,"DE01 NH MUENCHEN CITY SUED","BUNE","GERMANY","EUR","Sven Beissel ","t.stopje@nh-hotels.com","s.beissel@nh-hotels.com",null,null,null,null,"Thomas Stopje","DEBY.MAMRI","GT10","G","Y"]
["0275","NH Klösterle Nördlingen","BU Northern Europe","Germany","Nördlingen","DE01","NH HOTELES DEUTSCHLAND GMBH","0275","DE01NH  NOERDLINGEN KLOESTERLE",9900000275,"DE01NH  NOERDLINGEN KLOESTERLE","BUNE","GERMANY","EUR","Andreas Harzer","j.teichert@nh-hotels.com","a.harzer@nh-hotels.com",null,null,null,null,"Jeannette Teichert","DEBY.NORDI","GT10","G","Y"]
["0276","NH Fürth Nürnberg","BU Northern Europe","Germany","Fürth","DE01","NH HOTELES DEUTSCHLAND GMBH","0276","DE01 NH FUERTH NUERNBERG",9900000276,"DE01 NH FUERTH NUERNBERG","BUNE","GERMANY","EUR","Andreas Harzer","j.hillebrecht@nh-hotels.com","a.harzer@nh-hotels.com",null,null,null,null,"Jörg Hillebrecht","DEBY.FURNU","GT10","G","Y"]
["0278","NH Potsdam","BU Northern Europe","Germany","Potsdam","DE01","NH HOTELES DEUTSCHLAND GMBH","0278","DE01 NH POTSDAM CITY CENTER",9900000278,"DE01 NH POTSDAM CITY CENTER","BUNE","GERMANY","EUR","Bastian Lang","y.mueller@nh-hotels.com","b.lang@nh-hotels.com",null,null,null,null,"Yvonne Müller","DEBB.VOLTA","GT10","G","Y"]
["0280","NH Stuttgart Sindelfingen","BU Northern Europe","Germany","Stuttgart","DE01","NH HOTELES DEUTSCHLAND GMBH","0280","DE01 NH STUTTGART SINDELFINGEN",9900000280,"DE01 NH STUTTGART SINDELFINGEN","BUNE","GERMANY","EUR","Andreas Harzer","k.weiss@nh-hotels.com","a.harzer@nh-hotels.com",null,null,null,null,"Katja Weiß","DEBW.SINDE","GT10","G","Y"]
["0281","NH Stuttgart Airport","BU Northern Europe","Germany","Stuttgart","DE01","NH HOTELES DEUTSCHLAND GMBH","0281","DE01 NH STUTTGART AIRPORT",9900000281,"DE01 NH STUTTGART AIRPORT","BUNE","GERMANY","EUR","Andreas Harzer","k.weiss@nh-hotels.com","a.harzer@nh-hotels.com",null,null,null,null,"Katja Weiss","DEBW.STUAI","GT10","G","Y"]
["0282","NH Mannheim Viernheim","BU Northern Europe","Germany","Mannheim","DE01","NH HOTELES DEUTSCHLAND GMBH","0282","DE01 NH MANNHEIM VIERNHEIM",9900000282,"DE01 NH MANNHEIM VIERNHEIM","BUNE","GERMANY","EUR","Andreas Harzer","d.veit@nh-hotels.com","a.harzer@nh-hotels.com",null,null,null,null,"Daniel Veit","DEBW.MANHE","GT10","G","Y"]
["0283","NH Weinheim","BU Northern Europe","Germany","Weinheim","DE01","NH HOTELES DEUTSCHLAND GMBH","0283","DE01 NH WEINHEIM",9900000283,"DE01 NH WEINHEIM","BUNE","GERMANY","EUR","Andreas Harzer","d.cantzler@nh-hotels.com","a.harzer@nh-hotels.com",null,null,null,null,"Dennis Cantzler","DEBW.WEINH","GT10","G","Y"]
["0290","Avani Frankfurt City Hotel","BU Northern Europe","Germany","Frankfurt","DE01","NH HOTELES DEUTSCHLAND GMBH","0290","DE01 NH COLLEC FRANKFURT CITY",9900000290,"DE01 NH COLLEC FRANKFURT CITY","BUNE","GERMANY","EUR","Sven Beissel ","m.lindenberg@nh-hotels.com","s.beissel@nh-hotels.com",null,null,null,null,"Markus Lindenberg","DEHE.FRCIT","GT10","G","Y"]
["0291","NH Budapest City","BU Northern Europe","Hungary","Budapest","HU01","NH HUNGARY SZALLODAUZEMELTETO KFT","0291","HU01 NH BUDAPEST CITY",9900000291,"HU01 NH BUDAPEST CITY","BUNE","HUNGARY","HUF","Andreas Harzer","r.weinraub@nh-hotels.com","a.harzer@nh-hotels.com",null,null,null,null,"Robert Weinraub","HUBU.BUDAP","GT12","G","Y"]
["0300","NH Campo de Gibraltar","BU Southern Europe","Spain","Algeciras","ES10","NH HOTELES ESPAÑA, S.A","0300","ES10 NH CAMPO DE GIBRALTAR",9900000300,"ES10 NH CAMPO DE GIBRALTAR","BUSE","SPAIN","EUR","Mariví Motilva","m.ramirez.intern@nh-hotels.com"," ",null,null,null,null,"Lorena Sillero","ESCA.GIBRA","GT01","G","Y"]
["0301","NH Collection Palacio de Aranjuez","BU Southern Europe","Spain","Aranjuez","ES17","NUEVOS ESPACIOS HOTELEROS, S.A","0301","ES17 NH COLLE PALACIO ARANJUEZ",9900000301,"ES17 NH COLLE PALACIO ARANJUEZ","BUSE","SPAIN","EUR","José Ángel Esteban","m.ramirez.intern@nh-hotels.com"," ",null,null,null,null,"Emiliano Fabaz","ESMD.PAZ","GT01","G","Y"]
["0303","NH Cartagena","BU Southern Europe","Spain","Cartagena (ES)","ES10","NH HOTELES ESPAÑA, S.A","0303","ES10 NH CARTAGENA",9900000303,"ES10 NH CARTAGENA","BUSE","SPAIN","EUR","Mariví Motilva","m.ramirez.intern@nh-hotels.com"," ",null,null,null,null,"Ana Salcedo","ESMU.CARTA","GT01","G","Y"]
["0311","NH Alcorcon","BU Southern Europe","Spain","Madrid","ES10","NH HOTELES ESPAÑA, S.A","0311","ES10 NH ALCORCON",9900000311,"ES10 NH ALCORCON","BUSE","SPAIN","EUR","José Ángel Esteban","m.ramirez.intern@nh-hotels.com"," ",null,null,null,null,"Raúl Ibeas Morante","ESMD.ALCOR","GT01","G","Y"]
["0315","NH Den Haag","BU Northern Europe","The Netherlands","The Hague","NL30","HEM EPEN ZUID-LIMBURG B.V.","0315","NL30 NH DEN HAAG",9900000315,"NL30 NH DEN HAAG","BUNE","NETHERLANDS","EUR","Walter Kok","h.balegh@nh-hotels.com","w.kok@nh-hotels.com",null,null,null,null,"Hichem Balegh","NLZH.DHAAG","GT09","G","Y"]
["0316","NH Collection Granada Victoria","BU Southern Europe","Spain","Grenada","ES10","NH HOTELES ESPAÑA, S.A","0316","ES10 NH COLLECTION VICTORIA",9900000316,"ES10 NH COLLECTION VICTORIA","BUSE","SPAIN","EUR","Mariví Motilva","m.ramirez.intern@nh-hotels.com"," ",null,null,null,null,"Lucía Bermejo Martínez","ESGR.VICTO","GT01","G","Y"]
["0319","NH Collection Santiago de Compostela","BU Southern Europe","Spain","Santiago de Compostela","ES10","NH HOTELES ESPAÑA, S.A","0319","ES10NH COLLECTION SANTIAGO",9900000319,"ES10NH COLLECTION SANTIAGO","BUSE","SPAIN","EUR","Raúl Fernández","mi.gonzalez@nh-hotels.com"," ",null,null,null,null,"Esteban Iglesias","ESCR.OBRAD","GT01","G","Y"]
["0321","NH Collection León Plaza Mayor","BU Southern Europe","Spain","Leon (ES)","ES10","NH HOTELES ESPAÑA, S.A","0321","ES10 NH COLLECTION PLAZA MAYOR",9900000321,"ES10 NH COLLECTION PLAZA MAYOR","BUSE","SPAIN","EUR","Raúl Fernández","mi.gonzalez@nh-hotels.com"," ",null,null,null,null,"Miguel Antonio Domínguez","ESLE.MAYOR","GT01","G","Y"]
["0322","NH Alicante","BU Southern Europe","Spain","Alicante","ES10","NH HOTELES ESPAÑA, S.A","0322","ES10 NH ALICANTE",9900000322,"ES10 NH ALICANTE","BUSE","SPAIN","EUR","Mariví Motilva","m.ramirez.intern@nh-hotels.com"," ",null,null,null,null,"Francisco Pérez García","ESAI.ALICA","GT01","G","Y"]
["0325","NH Collection Nürnberg City","BU Northern Europe","Germany","Nuremberg","DE01","NH HOTELES DEUTSCHLAND GMBH","0325","DE01 NH COLLECT NUERNBERG CITY",9900000325,"DE01 NH COLLECT NUERNBERG CITY","BUNE","GERMANY","EUR","Andreas Harzer","ra.meyer@nh-hotels.com","a.harzer@nh-hotels.com",null,null,null,null,"Ralph Meyer","DEBY.NUCIT","GT10","G","Y"]
["0327","NH Collection Barcelona Constanza","BU Southern Europe","Spain","Barcelona","ES10","NH HOTELES ESPAÑA, S.A","0327","ES10NH COLLECTION CONSTANZA",9900000327,"ES10NH COLLECTION CONSTANZA","BUSE","SPAIN","EUR","Mónica Alcoriza","bp.millan@nh-hotels.com"," ",null,null,null,null,"Cristina León ","ESBA.CONST","GT01","G","Y"]
["0330","NH Timisoara","BU Northern Europe","Romania","Timisoara","RO02","NH MANAGEMENT BLACK SEA SRL","0330","RO02 NH TIMISOARA",9900000330,"RO02 NH TIMISOARA","BUNE","ROMANIA","RON","Andreas Harzer","e.zoican@nh-hotels.com","a.harzer@nh-hotels.com",null,null,null,null,"Elena Zoican","ROTM.TIMIS","GT14","G","Y"]
["0331","NH Gran Hotel Casino de Extremadura","BU Southern Europe","Spain","Badajoz","ES86","GRAN CASINO EXTREMADURA, S.A.","0331","ES86 NH GRAN H CASINO EXTREMAD",9900000331,"ES86 NH GRAN H CASINO EXTREMAD","BUSE","SPAIN","EUR","Mariví Motilva","m.ramirez.intern@nh-hotels.com"," ",null,null,null,null,"Alicia Acedo de Aguirre","ESCC.EXTRE","-","-","N"]
["0332","NH Collection Mexico City Santa Fe","BU America","Mexico","Mexico City","MX15","DESARROLLO INMOBILIARIO SANTA FE MEXICO, SA DE CV","0332","MX15 NH COLLECTION SANTA FE",9900000332,"MX15 NH COLLECTION SANTA FE","BUAM","MEXICO","MXN","Lorenzo Graciano","o.gutierrez@nh-hotels.com","la.graciano@nh-hotels.com",null,null,null,null,"Olivia Gutiérrez Villegas","MXDF.SNTFE","GT22","G","Y"]
["0333","NH Valladolid Bálago","BU Southern Europe","Spain","Valladolid","ES10","NH HOTELES ESPAÑA, S.A","0333","ES10 NH BALAGO",9900000333,"ES10 NH BALAGO","BUSE","SPAIN","EUR","Raúl Fernández","mi.gonzalez@nh-hotels.com"," ",null,null,null,null,"José Antonio Robles Montero","ESVA.BALAG","GT01","G","Y"]
["0334","NH Lisboa Campo Grande","BU Southern Europe","Portugal","Lisbon","PT01","NH HOTEL RALLYE PORTUGAL, LDA","0334","PT01 NH CAMPO GRANDE",9900000334,"PT01 NH CAMPO GRANDE","BUSE","PORTUGAL","EUR","Segundo López","r.cardoso@tivoli-hotels.com"," ",null,null,null,null,"Rui Cardoso","PT11.CAMPO","GT04","G","Y"]
["0339","NH Luxembourg","BU Northern Europe","Luxembourg","Luxembourg","LU03","NH PRIVATE EQUITY B.V.","0339","LU03 NH LUXEMBOURG",9900000339,"LU03 NH LUXEMBOURG","BUNE","LUXEMBOURG","EUR","Jan Joris Kriele","c.schumacher@nh-hotels.com","jj.kriele@nh-hotels.com",null,null,null,null,"Christoph Schumacher","LULU.LUXEM","GT08","G","Y"]
["0345","NH Gent Belfort","BU Northern Europe","Belgium","Ghent","BE02","HOTEL EXPLOITATIEMAATSCHAPPIJ DIEGEM N.V","0345","BE02 NH GENT BELFORT",9900000345,"BE02 NH GENT BELFORT","BUNE","BELGIUM","EUR","Jan Joris Kriele","K.rijcke@nh-hotels.com","jj.kriele@nh-hotels.com",null,null,null,null,"Koen de Rijcke","BEOV.BELFO","GT06","G","Y"]
["0346","NH Brugge","BU Northern Europe","Belgium","Bruges","BE02","HOTEL EXPLOITATIEMAATSCHAPPIJ DIEGEM N.V","0346","BE02 NH BRUGGE",9900000346,"BE02 NH BRUGGE","BUNE","BELGIUM","EUR","Jan Joris Kriele","y.keyser@nh-hotels.com","jj.kriele@nh-hotels.com",null,null,null,null,"Yves de Keyser","BEWV.BRUGG","GT06","G","Y"]
["0347","NH Poznan","BU Northern Europe","Poland","Poznan","PL01","AIS POLSKA SP.Z.O.O.","0347","PL01NH POZNAN",9900000347,"PL01NH POZNAN","BUNE","POLAND","PLN","Bastian Lang","a.ocwieja@nh-hotels.com","b.lang@nh-hotels.com",null,null,null,null,"Agnieszka Ocwieja","PLWP.POZNA","-","-","N"]
["0363","NH Bratislava Gate One","BU Northern Europe","Slovakia","Bratislava","SK01","EUROHOTEL A.S.","0363","SK01 NH GATE ONE",9900000363,"SK01 NH GATE ONE","BUNE","SLOVAKIA","EUR","Andreas Harzer","j.kotulan@nh-hotels.com","a.harzer@nh-hotels.com",null,null,null,null,"Jiri Kotulán","SKBL.GTONE","-","-","N"]
["0365","NH Haiti El Rancho","BU America","Haiti","Port au Prince","HT01","SOCIETE IMMOBILIERE FINANCIERE S.A (SIF SA)","0365","HT01 NH HAITI EL RANCHO",9900000365,"HT01 NH HAITI EL RANCHO","BUAM","HAITI","HTG","Oscar Restrepo","g.coca@nh-hotels.com","oj.restrepo@nh-hotels.com",null,null,null,null,"Gregorio Coca","HTOU.HAITI","-","-","N"]
["0371","NH Madrid Ribera del Manzanares","BU Southern Europe","Spain","Madrid","ES10","NH HOTELES ESPAÑA, S.A","0371","ES10 NH RIBERA DEL MANZANARES",9900000371,"ES10 NH RIBERA DEL MANZANARES","BUSE","SPAIN","EUR","José Ángel Esteban","m.ramirez.intern@nh-hotels.com"," ",null,null,null,null,"Victor Fran","ESMD.RIBER","GT01","G","Y"]
["0372","NH Amsterdam Zuid","BU Northern Europe","The Netherlands","Amsterdam","NL31","HEM LEIJENBERGHLAAN AMSTERDAM B.V.","0372","NL31 NH AMSTERDAM ZUID",9900000372,"NL31 NH AMSTERDAM ZUID","BUNE","NETHERLANDS","EUR","Walter Kok","dm.gielens@nh-hotels.com","w.kok@nh-hotels.com",null,null,null,null,"Dagmar Daniels-Gielens","NLNH.MUSIC","GT09","G","Y"]
["0375","NH Atlantic Den Haag","BU Northern Europe","The Netherlands","The Hague","NL11","ATLANTIC HOTEL EXPLOITATIE B.V.","0375","NL11 NH ATLANTIC DEN HAAG",9900000375,"NL11 NH ATLANTIC DEN HAAG","BUNE","NETHERLANDS","EUR","Walter Kok","m.knoester@nh-hotels.com","w.kok@nh-hotels.com",null,null,null,null,"Michel Knoester","NLZH.ATLDH","GT09","G","Y"]
["0376","NH Collection Cáceres Palacio de Oquendo","BU Southern Europe","Spain","Caceres","ES10","NH HOTELES ESPAÑA, S.A","0376","ES10 NH COLLEC PALACIO OQUENDO",9900000376,"ES10 NH COLLEC PALACIO OQUENDO","BUSE","SPAIN","EUR","Mariví Motilva","m.ramirez.intern@nh-hotels.com"," ",null,null,null,null,"Felisa Acedo Benítez","ESCC.OQUEN","GT01","G","Y"]
["0378","NH Madrid Las Tablas","BU Southern Europe","Spain","Madrid","ES10","NH HOTELES ESPAÑA, S.A","0378","ES10 NH LAS TABLAS",9900000378,"ES10 NH LAS TABLAS","BUSE","SPAIN","EUR","José Ángel Esteban","m.ramirez.intern@nh-hotels.com"," ",null,null,null,null,"Inmaculada Manzanares ","ESMD.TABLA","GT01","G","Y"]
["0380","NH Collection Mexico City Airport T2","BU America","Mexico","Mexico City","MX19","CONSORCIO GRUPO HOTELERO T2, S.A. DE C.V","0380","MX19 NH COLLE AEROPUERTO T2 ME",9900000380,"MX19 NH COLLE AEROPUERTO T2 ME","BUAM","MEXICO","MXN","Lorenzo Graciano","r.hernandez@nh-hotels.com","la.graciano@nh-hotels.com",null,null,null,null,"Roberto Hernandez","MXDF.MEXAI","-","-","N"]
["0384","NH Collection Guadalajara Providencia","BU America","Mexico","Guadalajara (MX)","MX20","MIL NOVECIENTOS DOCE SA DE CV","0384","MX20 NH COLLEC GUADALAJARA PRO",9900000384,"MX20 NH COLLEC GUADALAJARA PRO","BUAM","MEXICO","MXN","Lorenzo Graciano","m.ahumada@nh-hotels.com","la.graciano@nh-hotels.com",null,null,null,null,"Mariano Gastón Ahumada","MXJC.GUAD","-","-","N"]
["0386","NH Collection Madrid Palacio de Tepa","BU Southern Europe","Spain","Madrid","ES10","NH HOTELES ESPAÑA, S.A","0386","ES10NH COLLECTION PALACIO TEPA",9900000386,"ES10NH COLLECTION PALACIO TEPA","BUSE","SPAIN","EUR","José Ángel Esteban","m.ramirez.intern@nh-hotels.com"," ",null,null,null,null,"José Cejudo","ESMD.TEPA","GT01","G","Y"]
["0408","NH Mechelen","BU Northern Europe","Belgium","Mechlin","BE02","HOTEL EXPLOITATIEMAATSCHAPPIJ DIEGEM N.V","0408","BE02 NH MECHELEN",9900000408,"BE02 NH MECHELEN","BUNE","BELGIUM","EUR","Jan Joris Kriele","j.doise@nh-hotels.com","jj.kriele@nh-hotels.com",null,null,null,null,"Jurgen Doise","BEAN.MECHE","GT06","G","Y"]
["0410","NH Collection Wien Zentrum","BU Northern Europe","Austria","Vienna","AT01","NH HOTELES AUSTRIA GMBH","0410","AT01 NH COLLECTIO WIEN ZENTRUM",9900000410,"AT01 NH COLLECTIO WIEN ZENTRUM","BUNE","AUSTRIA","EUR","Sven Beissel ","nd.hamel@nh-hotels.com","s.beissel@nh-hotels.com",null,null,null,null,"Nicola Dominik Hamel","AT09.ATTER","GT13","G","Y"]
["0411","NH Wien Belvedere","BU Northern Europe","Austria","Vienna","AT01","NH HOTELES AUSTRIA GMBH","0411","AT01 NH WIEN BELVEDERE",9900000411,"AT01 NH WIEN BELVEDERE","BUNE","AUSTRIA","EUR","Sven Beissel ","d.schmid@nh-hotels.com","s.beissel@nh-hotels.com",null,null,null,null,"Dominic Schmid","AT09.BELVE","GT13","G","Y"]
["0413","NH Collection Salzburg City","BU Northern Europe","Austria","Salzburg","AT01","NH HOTELES AUSTRIA GMBH","0413","AT01 NH SALZBURG CITY",9900000413,"AT01 NH SALZBURG CITY","BUNE","AUSTRIA","EUR","Sven Beissel ","mw.kaiser@nh-hotels.com","s.beissel@nh-hotels.com",null,null,null,null,"Michael Kaiser","AT05.SALZB","GT13","G","Y"]
["0414","NH Vienna Airport Conference Center","BU Northern Europe","Austria","Vienna","AT01","NH HOTELES AUSTRIA GMBH","0414","AT01 NH VIENNA AIRPORT",9900000414,"AT01 NH VIENNA AIRPORT","BUNE","AUSTRIA","EUR","Sven Beissel ","r.edelsbrunner@nh-hotels.com","s.beissel@nh-hotels.com",null,null,null,null,"Robert Edelsbrunner","AT09.VIEAI","GT13","G","Y"]
["0415","NH Wien City","BU Northern Europe","Austria","Vienna","AT01","NH HOTELES AUSTRIA GMBH","0415","AT01 NH WIEN CITY ",9900000415,"AT01 NH WIEN CITY ","BUNE","AUSTRIA","EUR","Sven Beissel ","nd.hamel@nh-hotels.com","s.beissel@nh-hotels.com",null,null,null,null,"Nicola Dominik Hamel","AT09.WIEN","GT13","G","Y"]
["0419","NH Düsseldorf Königsallee ","BU Northern Europe","Germany","Düsseldorf","DE01","NH HOTELES DEUTSCHLAND GMBH","0419","DE01 NH DUESSELDO KOENIGSALLEE",9900000419,"DE01 NH DUESSELDO KOENIGSALLEE","BUNE","GERMANY","EUR","Andreas Harzer","g.coco@nh-hotels.com","a.harzer@nh-hotels.com",null,null,null,null,"Giovanni Coco","DENW.DUCCE","GT10","G","Y"]
["0425","NH Collection Roma Fori Imperiali","BU Southern Europe","Italy","Rome","IT01","NH ITALIA, SPA","0425","IT01 NH COLLEC FORI IMPERIALI",9900000425,"IT01 NH COLLEC FORI IMPERIALI","BUSE","ITALY","EUR","Michela Camillo","s.masic@nh-hotels.com","m.camillo@nh-hotels.com","f.maio@nh-hotels.com",null,null,null,"SABRINA MASIC","ITRM.FORIM","GT15","G","Y"]
["0429","Anantara Villa Padierna Palace Benahavís Marbella Resort","BU Southern Europe","Spain","Marbella","ES10","NH HOTELES ESPAÑA, S.A","0429","ES10 ANANTARA VILLA PADIERNA ",9900000429,"ES10 ANANTARA VILLA PADIERNA ","BUSE","SPAIN","EUR","Jorge Beldade","am.montanez@anantarahotels.com","rsv.villapadierna@anantarahotels.com",null,null,null,null,"Jorge Manzur","ESMA.VILPA","GT01","G","Y"]
["0432","NH Collection Buenos Aires Lancaster","BU America","Argentina","Buenos Aires","AR04","HOTELERA LANCASTER S.A.","0432","AR04 NH COLLECTION LANCASTER",9900000432,"AR04 NH COLLECTION LANCASTER","BUAM","ARGENTINA","ARS","Diego Agustín Chourrout","sp.gonzalez@nh-hotels.com","d.chourrout@nh-hotels.com",null,null,null,null,"Silvana Paula González","ARCC.LANCA","-","-","Y"]
["0436","NH Gran Hotel Provincial","BU America","Argentina","Mar del Plata","AR07","HOTELERA DEL MAR SA","0436","AR07 NH GRAN HOTEL PROVINCIAL",9900000436,"AR07 NH GRAN HOTEL PROVINCIAL","BUAM","ARGENTINA","ARS","Diego Agustín Chourrout","gc.villegas@nh-hotels.com","d.chourrout@nh-hotels.com",null,null,null,null,"Gastón Villegas","ARBB.PROVI","-","-","N"]
["0441","NH La Avanzada","BU Southern Europe","Spain","Bilbao","ES49","HOTEL LA AVANZADA S.L.","0441","ES49 NH LA AVANZADA",9900000441,"ES49 NH LA AVANZADA","BUSE","SPAIN","EUR","Raúl Fernández","mi.gonzalez@nh-hotels.com"," ",null,null,null,null,"Elier Goñi ","ESBI.AVANZ","GT01","G","N"]
["0442","NH Berlin Potsdamer Platz","BU Northern Europe","Germany","Berlin","DE03","NH HOTELBETRIEBS - U. ENTWICKLUNGS GMBH","0442","DE03 NH BERLIN POTSDAMER PLATZ",9900000442,"DE03 NH BERLIN POTSDAMER PLATZ","BUNE","GERMANY","EUR","Bastian Lang","sv.mueller@nh-hotels.com","b.lang@nh-hotels.com",null,null,null,null,"Sven Müller ","DEBE.PPLAT","GT10","G","Y"]
["0443","NH Collection Dresden Altmarkt","BU Northern Europe","Germany","Dresden","DE02","NH HOTELBETRIEBS-U. DIENSTLEISTUNGS GMBH","0443","DE02 NH COLLE DRESDEN ALTMARKT",9900000443,"DE02 NH COLLE DRESDEN ALTMARKT","BUNE","GERMANY","EUR","Bastian Lang","h.glasemann@nh-hotels.com","b.lang@nh-hotels.com",null,null,null,null,"Holger Glasemann","DESN.DALTM","GT10","G","Y"]
["0451","NH Collection Olomouc Congress","BU Northern Europe","Czech Republic","Olomouc","CZ02","HOTELPARK STADION A.S.","0451","CZ02 NH COLLECT OLOMOUC CONGR",9900000451,"CZ02 NH COLLECT OLOMOUC CONGR","BUNE","CZECH RPC","CZK","Bastian Lang","t.rousek@nh-hotels.com","b.lang@nh-hotels.com",null,null,null,null,"Tomas Rousek","CZOL.OLOMO","-","-","N"]
["0457","NH Ludwigsburg","BU Northern Europe","Germany","Ludwigsburg","DE01","NH HOTELES DEUTSCHLAND GMBH","0457","DE01 NH LUDWIGSBURG",9900000457,"DE01 NH LUDWIGSBURG","BUNE","GERMANY","EUR","Andreas Harzer","a.steinbach@nh-hotels.com","a.harzer@nh-hotels.com",null,null,null,null,"Andre Steinbach","DEBW.LUDWI","GT10","G","Y"]
["0458","nhow Berlin","BU Northern Europe","Germany","Berlin","DE01","NH HOTELES DEUTSCHLAND GMBH","0458","DE01 NHOW BERLIN",9900000458,"DE01 NHOW BERLIN","BUNE","GERMANY","EUR","Bastian Lang","j.bachmann@nh-hotels.com","b.lang@nh-hotels.com",null,null,null,null,"Janina Bachmann Graffunder","DEBE.WBERL","GT10","G","Y"]
["0460","NH Frankfurt Messe","BU Northern Europe","Germany","Frankfurt","DE03","NH HOTELBETRIEBS - U. ENTWICKLUNGS GMBH","0460","DE03 NH FRANKFURT MESSE",9900000460,"DE03 NH FRANKFURT MESSE","BUNE","GERMANY","EUR","Sven Beissel ","m.lindenberg@nh-hotels.com","s.beissel@nh-hotels.com",null,null,null,null,"Markus Lindenberg","DEHE.FRMES","GT10","G","Y"]
["0461","NH Hotel Casino","BU America","Argentina","Mar del Plata","AR07","HOTELERA DEL MAR SA","0461","AR07 NH HOTEL CASINO",9900000461,"AR07 NH HOTEL CASINO","BUAM","ARGENTINA","ARS","Diego Agustín Chourrout","gc.villegas@nh-hotels.com","d.chourrout@nh-hotels.com",null,null,null,null,"Gastón Villegas","ARBB.CASIA","-","-","N"]
["0468","NH Ourense","BU Southern Europe","Spain","Ourense","ES53","DOMEN OURENSE SL","0468","ES53 NH OURENSE",9900000468,"ES53 NH OURENSE","BUSE","SPAIN","EUR","Raúl Fernández","mi.gonzalez@nh-hotels.com"," ",null,null,null,null,"Esteban Iglesias","ESOU.OUREN","GT01","G","N"]
["0469","NH Prague City","BU Northern Europe","Czech Republic","Prague","CZ03","MPDEVELOPMENT AKCIOVA SPOLECNOST","0469","CZ03 NH PRAGUE CITY",9900000469,"CZ03 NH PRAGUE CITY","BUNE","CZECH RPC","CZK","Bastian Lang","p.nespurek@nh-hotels.com","b.lang@nh-hotels.com",null,null,null,null,"Petr Nespurek","CZPR.PRAGU","-","-","N"]
["0489","Centro de Formación BBVA La Moraleja","BU Southern Europe","Spain","Madrid","ES10","NH HOTELES ESPAÑA, S.A","0489","ES10 NH CAMPUS LA MORALEJA",9900000489,"ES10 NH CAMPUS LA MORALEJA","BUSE","SPAIN","EUR","José Ángel Esteban","m.ramirez.intern@nh-hotels.com"," ",null,null,null,null,"Hortensia Santolaya","ESMD.BBVA","GT01","G","Y"]
["0490","NH Collection Madrid Suecia","BU Southern Europe","Spain","Madrid","ES10","NH HOTELES ESPAÑA, S.A","0490","ES10 NH COLLECTION SUECIA",9900000490,"ES10 NH COLLECTION SUECIA","BUSE","SPAIN","EUR","José Ángel Esteban","m.ramirez.intern@nh-hotels.com"," ",null,null,null,null,"Rubén Olmedo ","ESMD.CIBEL","GT01","G","Y"]
["0491","nhow Amsterdam Rai","BU Northern Europe","The Netherlands","Amsterdam","NL53","NHOW AMSTERDAM B.V","0491","NL53 NHOW AMSTERDAM B.V.",9900000491,"NL53 NHOW AMSTERDAM B.V.","BUNE","NETHERLANDS","EUR","Walter Kok","r.komarzinska@nhow-hotels.com","w.kok@nh-hotels.com",null,null,null,null,"Renata Komarzinska","NLNH.WAMST","GT09","G","Y"]
["0492","NH Collection Buenos Aires Centro Histórico","BU America","Argentina","Buenos Aires","AR02","CITY HOTEL S.A.","0492","AR02 NH COLLECTION CENTRO HIST",9900000492,"AR02 NH COLLECTION CENTRO HIST","BUAM","ARGENTINA","ARS","Diego Agustín Chourrout","me.neira@nh-hotels.com","d.chourrout@nh-hotels.com",null,null,null,null,"Marcela Neira","ARCC.TOWAR","-","-","N"]
["0495","NH Collection Madrid Gran Vía","BU Southern Europe","Spain","Madrid","ES10","NH HOTELES ESPAÑA, S.A","0495","ES10 NH COLLECTION GRAN VIA",9900000495,"ES10 NH COLLECTION GRAN VIA","BUSE","SPAIN","EUR","José Ángel Esteban","m.ramirez.intern@nh-hotels.com"," ",null,null,null,null,"Carlos Manso","ESMD.GRVIA","GT01","G","Y"]
["0517","NH Collection A Coruña Finisterre","BU Southern Europe","Spain","A Coruña","ES10","NH HOTELES ESPAÑA, S.A","0517","ES10 NH COLLECTION FINISTERRE",9900000517,"ES10 NH COLLECTION FINISTERRE","BUSE","SPAIN","EUR","Raúl Fernández","mi.gonzalez@nh-hotels.com"," ",null,null,null,null,"Agustín Collazos Martín","ESCR.CORFI","GT01","G","Y"]
["0570","Tivoli Coimbra Hotel","BU Southern Europe","Portugal","Coimbra","PT03","COIMBRA JARDIM HOTEL-SOCIEDADE DE GESTAO HOTELERIA SA","0570","PT03 TIVOLI COIMBRA",9900000570,"PT03 TIVOLI COIMBRA","BUSE","PORTUGAL","EUR","Segundo López","h.sequeira@nh-hotels.com"," ",null,null,null,null,"Helena Sequeira","PT06.COIMB","GT24","G","N"]
["0574","NH Marina Portimão Resort","BU Southern Europe","Portugal","Portimao","PT04","HOTELAGOS SA","0574","PT04 NH MARINA PORTIMÃO RESORT",9900000574,"PT04 NH MARINA PORTIMÃO RESORT","BUSE","PORTUGAL","EUR","Jorge Beldade","ma.pinto@nh-hotels.com"," ",null,null,null,null,"Marta Pinto","PT08.PORTI","GT24","G","Y"]
["0577","NH Andorra la Vella","BU Southern Europe","Andorra","Andorra La Vella","AD01","ALIAT S.L.U","0577","AD01 NH ANDORRA LA VELLA",9900000577,"AD01 NH ANDORRA LA VELLA","BUSE","ANDORRA","EUR","Mónica Alcoriza","bp.millan@nh-hotels.com"," ",null,null,null,null,"Manel Ara","AD07.ANDOR","GT01","G","N"]
["0580","Tivoli Lagos Algarve Resort","BU Southern Europe","Portugal","Lagos","PT04","HOTELAGOS SA","0580","PT04 TIVOLI LAGOS",9900000580,"PT04 TIVOLI LAGOS","BUSE","PORTUGAL","EUR","Jorge Beldade","m.alves@tivoli-hotels.com"," ",null,null,null,null,"Miguel Alves","PT08.LAGOS","GT24","G","Y"]
["0581","NH Campo Cartagena","BU Southern Europe","Spain","Cartagena (ES)","ES10","NH HOTELES ESPAÑA, S.A","0581","ES10 NH CAMPO CARTAGENA",9900000581,"ES10 NH CAMPO CARTAGENA","BUSE","SPAIN","EUR","Mariví Motilva","m.ramirez.intern@nh-hotels.com"," ",null,null,null,null,"Ana Salcedo","ESMU.CACAR","GT01","G","Y"]
["0627","NH Brussels Carrefour de l’Europe","BU Northern Europe","Belgium","Brussels","BE02","HOTEL EXPLOITATIEMAATSCHAPPIJ DIEGEM N.V","0627","BE02 NH CARREFOUR BRUSSELS",9900000627,"BE02 NH CARREFOUR BRUSSELS","BUNE","BELGIUM","EUR","Jan Joris Kriele","t.desmedt@nh-hotels.com","jj.kriele@nh-hotels.com",null,null,null,null,"Natalia Serna","BEBR.EUROP","GT06","G","Y"]
["0629","NH Collection New York Madison Avenue","BU Southern Europe","USA","New York","US04","JOLLY HOTELS USA INC","0629","US04 NH JOLLY MADISON TOWERS ",9900000629,"US04 NH JOLLY MADISON TOWERS ","BUSE","US","USD","Marco Gilardi","c.salomon@nh-hotels.com"," ",null,null,null,null,"Carlos Salomon","USNY.MADIS","GT23","G","Y"]
["0632","NH Collection Porto Batalha","BU Southern Europe","Portugal","Oporto","PT02","PALACIO BATALHA HOTEL UTILIDADES TURISTICAS, LDA","0632","PT02 NH COLLECTI PORTO BATALHA",9900000632,"PT02 NH COLLECTI PORTO BATALHA","BUSE","PORTUGAL","EUR","Segundo López"," f.brito@nh-hotels.com"," ",null,null,null,null,"Francisco Viana Brito","PT13.PORTO","-","-","N"]
["0638","NH Bariloche Edelweiss","BU America","Argentina","Bariloche","AR09","HOTEL EDELWEISS SA","0638","AR09 NH EDELWEISS",9900000638,"AR09 NH EDELWEISS","BUAM","ARGENTINA","ARS","Diego Agustín Chourrout","n.salaberry@nh-hotels.com","d.chourrout@nh-hotels.com",null,null,null,null,"Natalia Salaberry","ARRR.EDELW","-","-","N"]
["0649","NH Mexico City Valle Dorado","BU America","Mexico","Mexico City","MX12","CHARTWELL DE NUEVO LAREDO, S.A. DE C.V.","0649","MX12 NH VALLE DORADO",9900000649,"MX12 NH VALLE DORADO","BUAM","MEXICO","MXN","Lorenzo Graciano","ja.faltan@nh-hotels.com","la.graciano@nh-hotels.com",null,null,null,null,"Juan Alberto Falfan Cornejo","MXPL.VALDO","GT22","G","Y"]
["0652","NH Collection Mexico City Centro Histórico","BU America","Mexico","Mexico City","MX02","OPERADORA NACIONAL HISPANA, S.A. DE C.V.","0652","MX02 NH CENTRO HISTORICO",9900000652,"MX02 NH CENTRO HISTORICO","BUAM","MEXICO","MXN","Lorenzo Graciano","ab.sanchez@nh-hotels.com","la.graciano@nh-hotels.com",null,null,null,null,"Álvaro Barush Sánchez Gamiño","MXDF.CENHI","GT22","G","Y"]
["0653","NH Puebla Centro Histórico","BU America","Mexico","Puebla","MX23","INMOBILIARIA 3 PONIENTE S.A. DE C.V.","0653","MX23 NH PUEBLA CENTRO HISTÓRIC",9900000653,"MX23 NH PUEBLA CENTRO HISTÓRIC","BUAM","MEXICO","MXN","Lorenzo Graciano","k.perea@nh-hotels.com","la.graciano@nh-hotels.com",null,null,null,null,"Karen Perea Garcia","MXPL.PUEBL","-","-","N"]
["0655","NH Queretaro","BU America","Mexico","Queretaro","MX16","GRUPO HOTELERO QUERETARO, SA DE CV","0655","MX16 NH QUERETARO",9900000655,"MX16 NH QUERETARO","BUAM","MEXICO","MXN","Lorenzo Graciano","g.quiroz@nh-hotels.com","la.graciano@nh-hotels.com",null,null,null,null,"Gabriela Quiroz","MXQT.QUERE","GT22","G","Y"]
["0657","NH Danube City","BU Northern Europe","Austria","Vienna","AT01","NH HOTELES AUSTRIA GMBH","0657","AT01 NH DANUBE CITY",9900000657,"AT01 NH DANUBE CITY","BUNE","AUSTRIA","EUR","Sven Beissel ","d.schmid@nh-hotels.com","s.beissel@nh-hotels.com",null,null,null,null,"Dominic Schmid","AT09.DANUB","GT13","G","Y"]
["0659","NH Collection Monterrey San Pedro","BU America","Mexico","Monterrey","MX10","GRUPO HOTELERO MONTERREY, S.A. DE C.V.","0659","MX10 NH COLLECTION MONTERREY",9900000659,"MX10 NH COLLECTION MONTERREY","BUAM","MEXICO","MXN","Lorenzo Graciano","l.limon@nh-hotels.com","la.graciano@nh-hotels.com",null,null,null,null,"Luis Limon Tenorio","MXNL.MNREY","GT22","G","Y"]
["0660","NH Veluwe Sparrenhorst","BU Northern Europe","The Netherlands","Nunspeet","NL48","DE SPARRENHORST B.V.","0660","NL48 NH SPARRENHORST",9900000660,"NL48 NH SPARRENHORST","BUNE","NETHERLANDS","EUR","Walter Kok","t.holtrop@nh-hotels.com","w.kok@nh-hotels.com",null,null,null,null,"Tjeerd Holtrop","NLGE.SPARR","GT09","G","Y"]
["0661","NH Collection Madrid Paseo del Prado","BU Southern Europe","Spain","Madrid","ES10","NH HOTELES ESPAÑA, S.A","0661","ES10NH COLLECTION PASEO PRADO",9900000661,"ES10NH COLLECTION PASEO PRADO","BUSE","SPAIN","EUR","José Ángel Esteban","m.ramirez.intern@nh-hotels.com"," ",null,null,null,null,"Mónica Torres ","ESMD.PRADO","GT01","G","Y"]
["0662","NH Amersfoort","BU Northern Europe","The Netherlands","Amersfoort","NL71","HEM STATIONSSTRAAT AMERSFOORT B.V.","0662","NL71 NH AMERSFOORT",9900000662,"NL71 NH AMERSFOORT","BUNE","NETHERLANDS","EUR","Walter Kok","h.bunt@nh-hotels.com","w.kok@nh-hotels.com",null,null,null,null,"Henriette van de Bunt","NLUT.AMERS","GT09","G","Y"]
["0663","Tivoli Marina Vilamoura Algarve Resort","BU Southern Europe","Portugal","Vilamoura","PT05","MARINOTEIS SOCIEDADE DE PROMOÇAO E CONSTRUÇAO DE HOTEIS, S.A. ","0663","PT05 TIVOLI MARINA VILAMOURA",9900000663,"PT05 TIVOLI MARINA VILAMOURA","BUSE","PORTUGAL","EUR","Jorge Beldade","h.goncalves@tivoli-hotels.com"," ",null,null,null,null,"Hugo Gonçalves","PT08.MAVIL","-","-","Y"]
["0667","NH Collection Plaza Santiago","BU America","Chile","Santiago de Chile","CL04","ROYAL SANTIAGO HOTEL S.A.","0667","CL04 NH COLLECTION PLZ SANTIA",9900000667,"CL04 NH COLLECTION PLZ SANTIA","BUAM","CHILE","CLP","Diego Agustín Chourrout","c.amado@nh-hotels.com","d.chourrout@nh-hotels.com",null,null,null,null,"Carla Amado","CLSC.PSANT","GT18","G","Y"]
["0669","NH Iquique","BU America","Chile","Iquique","CL04","ROYAL SANTIAGO HOTEL S.A.","0669","CL04 NH IQUIQUE COSTA",9900000669,"CL04 NH IQUIQUE COSTA","BUAM","CHILE","CLP","Diego Agustín Chourrout","vc.alvarado@nh-hotels.com","d.chourrout@nh-hotels.com",null,null,null,null,"Veronica Cecilia Alvarado","CLSC.IQUIU","GT18","G","Y"]
["0670","NH Antofagasta","BU America","Chile","Antofagasta","CL04","ROYAL SANTIAGO HOTEL S.A.","0670","CL04 NH ANTOFAGASTA",9900000670,"CL04 NH ANTOFAGASTA","BUAM","CHILE","CLP","Diego Agustín Chourrout","mngmnt.nhantofagasta@nh-hotels.com","d.chourrout@nh-hotels.com",null,null,null,null,"Juan Carlos Gajardo","CLSC.ANTOF","GT18","G","Y"]
["0680","NH Collection Bogotá WTC Royal","BU America","Colombia","Bogota","CO07","SOCIEDAD HOTELERA CIEN INTERNACIONAL S.A.","0680","CO07 NH COLLECT. ROYAL WTC BO",9900000680,"CO07 NH COLLECT. ROYAL WTC BO","BUAM","COLOMBIA","COP","Oscar Restrepo","d.lucas@nh-hotels.com","oj.restrepo@nh-hotels.com",null,null,null,null,"David Lucas Pons","COBO.WTCBO","GT20","G","Y"]
["0693","NH Collection Quito Royal","BU America","Ecuador","Quito","EC01","SOCIEDAD HOTELERA COTOPAXI S.A. COPAXI","0693","EC01 NH COLLECTION ROYAL QUITO",9900000693,"EC01 NH COLLECTION ROYAL QUITO","BUAM","ECUADOR","USD","Oscar Restrepo","ca.mazzeo@nh-hotels.com","oj.restrepo@nh-hotels.com",null,null,null,null,"Carlos A Mazzeo","ECQU.QUITO","GT21","G","Y"]
["0701","NH Venezia Laguna Palace","BU Southern Europe","Italy","Venice","IT01","NH ITALIA, SPA","0701","IT01 NH LAGUNA PALACE",9900000701,"IT01 NH LAGUNA PALACE","BUSE","ITALY","EUR","Michela Camillo","r.panariello@nh-hotels.com","m.camillo@nh-hotels.com","f.maio@nh-hotels.com",null,null,null,"PANARIELLO RAFFAELLO","ITVE.LAGUN","GT15","G","Y"]
["0703","nhow Milano","BU Southern Europe","Italy","Milan","IT01","NH ITALIA, SPA","0703","IT01 NHOW MILANO",9900000703,"IT01 NHOW MILANO","BUSE","ITALY","EUR","Domenico Forte","p.comparozzi@nh-hotels.com","d.forte@nh-hotels.com","s.galea@nh-hotels.com",null,null,null,"PAOLO COMPAROZZI","ITMI.WMILA","GT15","G","Y"]
["0706","NH Orio al Serio","BU Southern Europe","Italy","Bergamo","IT01","NH ITALIA, SPA","0706","IT01 NH ORIO AL SERIO",9900000706,"IT01 NH ORIO AL SERIO","BUSE","ITALY","EUR","Domenico Forte","m.redolfi@nh-hotels.com","d.forte@nh-hotels.com",null,null,null,null,"REDOLFI MICHAEL","ITBG.ORIO","GT15","G","Y"]
["0708","NH Collection Milano Porta Nuova","BU Southern Europe","Italy","Milan","IT01","NH ITALIA, SPA","0708","IT01 NH COLLECTION PORTA NUOVA",9900000708,"IT01 NH COLLECTION PORTA NUOVA","BUSE","ITALY","EUR","Domenico Forte","ba.schembri@nh-hotels.com","d.forte@nh-hotels.com","s.galea@nh-hotels.com",null,null,null,"SCHEMBRI BALDASSARE","ITMI.VERDI","GT15","G","Y"]
["0713","NH Caltagirone Villa San Mauro","BU Southern Europe","Italy","Caltagirone","IT01","NH ITALIA, SPA","0713","IT01 NH VILLA SAN MAURO",9900000713,"IT01 NH VILLA SAN MAURO","BUSE","ITALY","EUR","Michela Camillo","s.messina@nh-hotels.com","m.camillo@nh-hotels.com",null,null,null,null,"MESSINA SIMONE","ITCT.MAURO","GT15","G","Y"]
["0716","NH Collection Roma Giustiniano","BU Southern Europe","Italy","Rome","IT01","NH ITALIA, SPA","0716","IT01 NH COLLECTION GIUSTINIANO",9900000716,"IT01 NH COLLECTION GIUSTINIANO","BUSE","ITALY","EUR","Michela Camillo","r.depascale@nh-hotels.com","m.camillo@nh-hotels.com","f.maio@nh-hotels.com",null,null,null,"DE PASCALE ROCCO","ITRM.GIUST","GT15","G","Y"]
["0717","NH Padova","BU Southern Europe","Italy","Padua","IT01","NH ITALIA, SPA","0717","IT01 NH PADOVA",9900000717,"IT01 NH PADOVA","BUSE","ITALY","EUR","Michela Camillo","c.zambianchi@nh-hotels.com","m.camillo@nh-hotels.com",null,null,null,null,"CHIARA ZAMBIANCHI","ITPD.MANTE","GT15","G","Y"]
["0718","Anantara Convento di Amalfi Grand Hotel","BU Southern Europe","Italy","Amalfi Coast","IT01","NH ITALIA, SPA","0718","IT01 ANANTARA CONVENTO DI AMALFI GRAND HOTEL",9900000718,"IT01 ANANTARA CONVENTO DI AMALFI GRAND HOTEL","BUSE","ITALY","EUR","Michela Camillo","ei.vassallo@nh-hotels.com","m.camillo@nh-hotels.com",null,null,null,null,"ESTELLE VASSALLO","ITSA.AMALF","GT15","G","Y"]
["0720","NH Catania Parco Degli Aragonesi","BU Southern Europe","Italy","Catania","IT01","NH ITALIA, SPA","0720","IT01 NH PARCO DEGLI ARAGONESI",9900000720,"IT01 NH PARCO DEGLI ARAGONESI","BUSE","ITALY","EUR","Michela Camillo","s.messina@nh-hotels.com","m.camillo@nh-hotels.com",null,null,null,null,"MESSINA SIMONE","ITCT.PARCO","GT15","G","Y"]
["0729","NH Ancona","BU Southern Europe","Italy","Ancona","IT01","NH ITALIA, SPA","0729","IT01 NH ANCONA",9900000729,"IT01 NH ANCONA","BUSE","ITALY","EUR","Michela Camillo","e.smorlesi@nh-hotels.com","m.camillo@nh-hotels.com",null,null,null,null,"ELEONORA SMORLESI","ITAN.ANCON","GT15","G","Y"]
["0730","NH Bergamo","BU Southern Europe","Italy","Bergamo","IT01","NH ITALIA, SPA","0730","IT01 NH BERGAMO",9900000730,"IT01 NH BERGAMO","BUSE","ITALY","EUR","Domenico Forte","m.redolfi@nh-hotels.com","d.forte@nh-hotels.com",null,null,null,null,"REDOLFI MICHAEL","ITBG.BERGA","GT15","G","Y"]
["0731","NH Bologna de la Gare","BU Southern Europe","Italy","Bologna","IT01","NH ITALIA, SPA","0731","IT01 NH BOLOGNA DE LA GARE",9900000731,"IT01 NH BOLOGNA DE LA GARE","BUSE","ITALY","EUR","Michela Camillo","a.lucini@nh-hotels.com","m.camillo@nh-hotels.com",null,null,null,null,"ALESSANDRO LUCINI","ITBO.BOGAR","GT15","G","Y"]
["0732","NH Bologna Villanova","BU Southern Europe","Italy","Bologna","IT01","NH ITALIA, SPA","0732","IT01 NH BOLOGNA VILLANOVA",9900000732,"IT01 NH BOLOGNA VILLANOVA","BUSE","ITALY","EUR","Michela Camillo","a.lucini@nh-hotels.com","m.camillo@nh-hotels.com",null,null,null,null,"ALESSANDRO LUCINI","ITBO.BOVIL","GT15","G","Y"]
["0735","NH Catania Centro","BU Southern Europe","Italy","Catania","IT01","NH ITALIA, SPA","0735","IT01 NH CATANIA CENTRO",9900000735,"IT01 NH CATANIA CENTRO","BUSE","ITALY","EUR","Michela Camillo","s.messina@nh-hotels.com","m.camillo@nh-hotels.com",null,null,null,null,"MESSINA SIMONE","ITCT.BELLI","GT15","G","Y"]
["0736","NH Firenze","BU Southern Europe","Italy","Florence","IT01","NH ITALIA, SPA","0736","IT01 NH FIRENZE",9900000736,"IT01 NH FIRENZE","BUSE","ITALY","EUR","Michela Camillo","s.cardinali@nh-hotels.com","m.camillo@nh-hotels.com","f.maio@nh-hotels.com",null,null,null,"CARDINALI SANDRO","ITFI.FIREN","GT15","G","Y"]
["0737","NH Collection Genova Marina ","BU Southern Europe","Italy","Genoa","IT01","NH ITALIA, SPA","0737","IT01 NH COLLECTION MARINA",9900000737,"IT01 NH COLLECTION MARINA","BUSE","ITALY","EUR","Domenico Forte","m.calistri@nh-hotels.com","d.forte@nh-hotels.com",null,null,null,null,"CALISTRI MANUELA","ITGE.MARIN","GT15","G","Y"]
["0738","NH Genova Centro","BU Southern Europe","Italy","Genoa","IT01","NH ITALIA, SPA","0738","IT01 NH GENOVA CENTRO",9900000738,"IT01 NH GENOVA CENTRO","BUSE","ITALY","EUR","Domenico Forte","p.saglietti@nh-hotels.com","d.forte@nh-hotels.com",null,null,null,null,"SAGLIETTI PAOLO","ITGE.PLAZA","GT15","G","Y"]
["0740","NH La Spezia","BU Southern Europe","Italy","La Spezia - Cinque Terre","IT01","NH ITALIA, SPA","0740","IT01 NH LA SPEZIA",9900000740,"IT01 NH LA SPEZIA","BUSE","ITALY","EUR","Domenico Forte","f.trivelloni@nh-hotels.com","d.forte@nh-hotels.com",null,null,null,null,"TRIVELLONI FABRIZIO","ITSP.SPEZI","GT15","G","Y"]
["0741","NH Lecco Pontevecchio","BU Southern Europe","Italy","Lecco - Lago di Como","IT01","NH ITALIA, SPA","0741","IT01 NH PONTEVECCHIO",9900000741,"IT01 NH PONTEVECCHIO","BUSE","ITALY","EUR","Domenico Forte","e.scuteri@nh-hotels.com","d.forte@nh-hotels.com",null,null,null,null,"ETTORE SCUTERI","ITLC.PONTE","GT15","G","Y"]
["0742","NH Milano 2","BU Southern Europe","Italy","Milan","IT01","NH ITALIA, SPA","0742","IT01 NH MILANO 2",9900000742,"IT01 NH MILANO 2","BUSE","ITALY","EUR","Domenico Forte","mm.awad@nh-hotels.com","d.forte@nh-hotels.com","s.galea@nh-hotels.com",null,null,null,"AWAD MOUSTAFA MOHAMED  ","ITMI.MILA2","GT15","G","Y"]
["0743","NH Milano Machiavelli","BU Southern Europe","Italy","Milan","IT01","NH ITALIA, SPA","0743","IT01 NH MACHIAVELLI",9900000743,"IT01 NH MACHIAVELLI","BUSE","ITALY","EUR","Domenico Forte","d.vaccari@nh-hotels.com","d.forte@nh-hotels.com","s.galea@nh-hotels.com",null,null,null,"VACCARI DAVIDE","ITMI.MACHI","GT15","G","Y"]
["0744","NH Collection Milano President","BU Southern Europe","Italy","Milan","IT01","NH ITALIA, SPA","0744","IT01 NH COLLECTION PRESIDENT",9900000744,"IT01 NH COLLECTION PRESIDENT","BUSE","ITALY","EUR","Domenico Forte","e.miranda@nh-hotels.com","d.forte@nh-hotels.com","s.galea@nh-hotels.com",null,null,null,"MIRANDA ERNESTO","ITMI.MPRES","GT15","G","Y"]
["0745","NH Collection Milano Touring","BU Southern Europe","Italy","Milan","IT01","NH ITALIA, SPA","0745","IT01 NH COLLECTION MILANO TOURING",9900000745,"IT01 NH COLLECTION MILANO TOURING","BUSE","ITALY","EUR","Domenico Forte","m.bendotti@nh-hotels.com","d.forte@nh-hotels.com","s.galea@nh-hotels.com",null,null,null,"BENDOTTI MARCO","ITMI.TOURI","GT15","G","Y"]
["0746","NH Milano Congress Centre","BU Southern Europe","Italy","Milan","IT01","NH ITALIA, SPA","0746","IT01 NH MILANO CONGRESS CENTRE",9900000746,"IT01 NH MILANO CONGRESS CENTRE","BUSE","ITALY","EUR","Domenico Forte","p.zanghellini@nh-hotels.com","d.forte@nh-hotels.com","s.galea@nh-hotels.com",null,null,null,"PAOLO ZANGHELLINI","ITMI.FIORI","GT15","G","Y"]
["0747","NH Napoli Panorama","BU Southern Europe","Italy","Naples","IT01","NH ITALIA, SPA","0747","IT01 NH AMBASSADOR",9900000747,"IT01 NH AMBASSADOR","BUSE","ITALY","EUR","Michela Camillo","a.morelli@nh-hotels.com","m.camillo@nh-hotels.com",null,null,null,null,"MORELLI ALESSANDRO","ITNA.AMDOR","GT15","G","Y"]
["0748","NH Palermo","BU Southern Europe","Italy","Palermo","IT01","NH ITALIA, SPA","0748","IT01 NH PALERMO",9900000748,"IT01 NH PALERMO","BUSE","ITALY","EUR","Michela Camillo","g.maffi@nh-hotels.com","m.camillo@nh-hotels.com",null,null,null,null,"MAFFI GIULIANO","ITPA.PALER","GT15","G","Y"]
["0749","NH Pisa ","BU Southern Europe","Italy","Pisa","IT01","NH ITALIA, SPA","0749","IT01 NH PISA",9900000749,"IT01 NH PISA","BUSE","ITALY","EUR","Domenico Forte","f.barbera@nh-hotels.com","d.forte@nh-hotels.com",null,null,null,null,"BARBERA FRANCESCO","ITPI.CAVAL","GT15","G","Y"]
["0753","NH Nice","BU Southern Europe","France","Nice","FR01","NH HOTELES FRANCE S.A.S.U.","0753","FR01 NH NICE",9900000753,"FR01 NH NICE","BUSE","FRANCE","EUR","Serge Foulon","a.kostanyan@nh-hotels.com"," ",null,null,null,null,"Anna Kostanyan ","FR06.NICE","GT07","G","Y"]
["0754","nhow Marseille","BU Southern Europe","France","Marseille","FR03","SAS SOCIÉTÉ HOTELIÈRE DU PALM BEACH","0754","FR03 NHOW MARSEILLE",9900000754,"FR03 NHOW MARSEILLE","BUSE","FRANCE","EUR","Serge Foulon","jj.arnedo@nh-hotels.com"," ",null,null,null,null,"Jesús Arnedo","FR13.MARSE","GT07","G","N"]
["0757","NH Milano Fiera","BU Southern Europe","Italy","Milan","IT01","NH ITALIA, SPA","0757","IT01 NH FIERA",9900000757,"IT01 NH FIERA","BUSE","ITALY","EUR","Domenico Forte","g.scarcia@nh-hotels.com","d.forte@nh-hotels.com","s.galea@nh-hotels.com",null,null,null,"SCARCIA GIOVANNI","ITMI.FIERA","GT15","G","Y"]
["0758","NH Lyon Airport","BU Southern Europe","France","Lyon","FR01","NH HOTELES FRANCE S.A.S.U.","0758","FR01 NH LYON AIRPORT",9900000758,"FR01 NH LYON AIRPORT","BUSE","FRANCE","EUR","Serge Foulon","v.joly@nh-hotels.com"," ",null,null,null,null,"Vincent Joly","FR69.LYONA","GT07","G","Y"]
["0759","NH Collection Amsterdam Flower Market","BU Northern Europe","The Netherlands","Amsterdam","NL59","HEM VIJZELSTRAAT AMSTERDAM B.V.","0759","NL59 NH COLL AMS FLOWER MARKET",9900000759,"NL59 NH COLL AMS FLOWER MARKET","BUNE","NETHERLANDS","EUR","Walter Kok","e.kiers@nh-hotels.com","w.kok@nh-hotels.com",null,null,null,null,"Erik Kiers","NLNH.CARLT","GT09","G","Y"]
["0761","NH Ravenna","BU Southern Europe","Italy","Ravenna","IT01","NH ITALIA, SPA","0761","IT01 NH RAVENNA",9900000761,"IT01 NH RAVENNA","BUSE","ITALY","EUR","Michela Camillo","b.sedazzari@nh-hotels.com","m.camillo@nh-hotels.com",null,null,null,null,"BARBARA SEDAZZARI","ITRA.RAVEN","GT15","G","Y"]
["0762","NH Collection Roma Centro","BU Southern Europe","Italy","Rome","IT01","NH ITALIA, SPA","0762","IT01 NH COLLECTION ROMA CENTRO",9900000762,"IT01 NH COLLECTION ROMA CENTRO","BUSE","ITALY","EUR","Michela Camillo","m.pignatelli@nh-hotels.com","m.camillo@nh-hotels.com","f.maio@nh-hotels.com",null,null,null,"PIGNATELLI MICHELE","ITRM.LEONA","GT15","G","Y"]
["0764","NH Collection Roma Vittorio Veneto","BU Southern Europe","Italy","Rome","IT01","NH ITALIA, SPA","0764","IT01 NH COLLEC VITTORIO VENETO",9900000764,"IT01 NH COLLEC VITTORIO VENETO","BUSE","ITALY","EUR","Michela Camillo","g.giacchetti@nh-hotels.com","m.camillo@nh-hotels.com","f.maio@nh-hotels.com",null,null,null,"GIACCHETTI GINO","ITRM.VITTO","GT15","G","Y"]
["0765","NH Roma Villa Carpegna","BU Southern Europe","Italy","Rome","IT01","NH ITALIA, SPA","0765","IT01 NH VILLA CARPEGNA",9900000765,"IT01 NH VILLA CARPEGNA","BUSE","ITALY","EUR","Michela Camillo","r.pinotti@nh-hotels.com","m.camillo@nh-hotels.com","f.maio@nh-hotels.com",null,null,null,"ROBERTA PINOTTI","ITRM.CARPE","GT15","G","Y"]
["0766","NH Siena","BU Southern Europe","Italy","Sienna","IT01","NH ITALIA, SPA","0766","IT01 NH SIENA",9900000766,"IT01 NH SIENA","BUSE","ITALY","EUR","Michela Camillo","ma.sano@nh-hotels.com","m.camillo@nh-hotels.com",null,null,null,null,"SANO' MARGHERITA","ITSI.EXCEL","GT15","G","Y"]
["0767","NH Torino Centro","BU Southern Europe","Italy","Turin","IT01","NH ITALIA, SPA","0767","IT01 NH TORINO CENTRO",9900000767,"IT01 NH TORINO CENTRO","BUSE","ITALY","EUR","Domenico Forte","g.grimaldi@nh-hotels.com","d.forte@nh-hotels.com","s.galea@nh-hotels.com",null,null,null,"GRIMALDI GABRIELLA","ITTO.AMORI","GT15","G","Y"]
["0769","NH Trieste","BU Southern Europe","Italy","Trieste","IT01","NH ITALIA, SPA","0769","IT01 NH TRIESTE",9900000769,"IT01 NH TRIESTE","BUSE","ITALY","EUR","Michela Camillo","p.bortolotto@nh-hotels.com","m.camillo@nh-hotels.com",null,null,null,null,"BORTOLOTTO PATRIZIA","ITTS.TRIES","GT15","G","Y"]
["0771","NH Milano 2 Residence","BU Southern Europe","Italy","Milan","IT01","NH ITALIA, SPA","0771","IT01 NH MILANO 2 RESIDENCE",9900000771,"IT01 NH MILANO 2 RESIDENCE","BUSE","ITALY","EUR","Domenico Forte","mm.awad@nh-hotels.com","d.forte@nh-hotels.com","s.galea@nh-hotels.com",null,null,null,"AWAD MOUSTAFA MOHAMED  ","ITMI.RESID","GT15","G","Y"]
["0772","NH Collection Berlin Mitte Friedrichstrasse","BU Northern Europe","Germany","Berlin","DE07","JOLLY HOTELS  DEUTSCHLAND GMBH","0772","DE07 NH C BER FRIEDRICHSTRASSE",9900000772,"DE07 NH C BER FRIEDRICHSTRASSE","BUNE","GERMANY","EUR","Bastian Lang","t.esser@nh-hotels.com","b.lang@nh-hotels.com",null,null,null,null,"Till Esser","DEBE.FRIED","GT10","G","Y"]
["0773","NH Collection Köln Mediapark","BU Northern Europe","Germany","Cologne","DE07","JOLLY HOTELS  DEUTSCHLAND GMBH","0773","DE07 NH COLLEC KOELN MEDIAPARK",9900000773,"DE07 NH COLLEC KOELN MEDIAPARK","BUNE","GERMANY","EUR","Andreas Harzer","p.westphal@nh-hotels.com","a.harzer@nh-hotels.com",null,null,null,null,"Patrick Westphal","DENW.KOMED","GT10","G","Y"]
["0781","NH Savona Darsena","BU Southern Europe","Italy","Savona","IT01","NH ITALIA, SPA","0781","IT01 NH SAVONA DARSENA",9900000781,"IT01 NH SAVONA DARSENA","BUSE","ITALY","EUR","Domenico Forte","m.colangelo@nh-hotels.com","d.forte@nh-hotels.com",null,null,null,null,"COLANGELO MARCO","ITSV.DARSE","GT15","G","Y"]
["0782","NH Linate","BU Southern Europe","Italy","Milan","IT01","NH ITALIA, SPA","0782","IT01 NH LINATE",9900000782,"IT01 NH LINATE","BUSE","ITALY","EUR","Domenico Forte","mm.awad@nh-hotels.com","d.forte@nh-hotels.com","s.galea@nh-hotels.com",null,null,null,"AWAD MOUSTAFA MOHAMED  ","ITMI.LINAT","GT15","G","Y"]
["0783","NH Collection Firenze Porta Rossa","BU Southern Europe","Italy","Florence","IT01","NH ITALIA, SPA","0783","IT01 NH COLLECTION PORTA ROSSA",9900000783,"IT01 NH COLLECTION PORTA ROSSA","BUSE","ITALY","EUR","Michela Camillo","g.sarnataro@nh-hotels.com","m.camillo@nh-hotels.com","f.maio@nh-hotels.com",null,null,null,"SARNATARO GIACOMO","ITFI.ROSSA","GT15","G","Y"]
["0789","NH Parma","BU Southern Europe","Italy","Parma","IT01","NH ITALIA, SPA","0789","IT01 NH PARMA",9900000789,"IT01 NH PARMA","BUSE","ITALY","EUR","Domenico Forte","g.angioletti@nh-hotels.com","d.forte@nh-hotels.com",null,null,null,null,"GIORGIO ANGIOLETTI","ITPR.PARMA","GT15","G","Y"]
["0792","NH Torino Lingotto Congress","BU Southern Europe","Italy","Turin","IT04","LINGOTTO HOTELS SRL","0792","IT04 NH LINGOTTO CONGRESS",9900000792,"IT04 NH LINGOTTO CONGRESS","BUSE","ITALY","EUR","Domenico Forte","l.bertoncellobrotto@nh-hotels.com","d.forte@nh-hotels.com","s.galea@nh-hotels.com",null,null,null,"BERTONCELLO BROTTO LUCIO","ITTO.LINGO","-","-","N"]
["0793","NH Collection Torino Piazza Carlina","BU Southern Europe","Italy","Turin","IT05","CARLINA SRL","0793","IT05 NH COLLECT PIAZZA CARLINA",9900000793,"IT05 NH COLLECT PIAZZA CARLINA","BUSE","ITALY","EUR","Domenico Forte","v.borreca@nh-hotels.com","d.forte@nh-hotels.com","s.galea@nh-hotels.com",null,null,null,"BORRECA VELIA","ITTO.CARLI","-","-","N"]
["0801","NH Trento","BU Southern Europe","Italy","Trent","IT06","LE ALBERE HOTELS SRL","0801","IT06 NH TRENTO",9900000801,"IT06 NH TRENTO","BUSE","ITALY","EUR","Domenico Forte","r.santi@nh-hotels.com","d.forte@nh-hotels.com",null,null,null,null,"SANTI ROBERTO","ITTN.TRENT","-","-","N"]
["0805","NH Collection Taormina","BU Southern Europe","Italy","Taormina","IT01","NH ITALIA, SPA","0805","IT01 NH COLLECTION TAORMINA",9900000805,"IT01 NH COLLECTION TAORMINA","BUSE","ITALY","EUR","Michela Camillo","a.luca@nh-hotels.com","m.camillo@nh-hotels.com",null,null,null,null,"LUCA ANDREA","ITME.TAORM","GT15","G","Y"]
["0806","Avani Palazzo Moscova Milan Hotel","BU Southern Europe","Italy","Milan","IT01","NH ITALIA, SPA","0806","IT01 AVANI PALAZZO MOSCOVA",9900000806,"IT01 AVANI PALAZZO MOSCOVA","BUSE","ITALY","EUR","Domenico Forte","ba.schembri@nh-hotels.com","d.forte@nh-hotels.com","s.galea@nh-hotels.com",null,null,null,"SCHEMBRI BALDASSARE","ITMI.MOSCO","GT15","G","Y"]
["0807","NH Collection Roma Palazzo Cinquecento","BU Southern Europe","Italy","Rome","IT01","NH ITALIA, SPA","0807","IT01 NH COLLECTION PALAZZO CIN",9900000807,"IT01 NH COLLECTION PALAZZO CIN","BUSE","ITALY","EUR","Michela Camillo","s.trani@nh-hotels.com","m.camillo@nh-hotels.com","f.maio@nh-hotels.com",null,null,null,"TRANI SALVATORE","ITRM.CINQU","GT15","G","Y"]
["0808","NH Essen","BU Northern Europe","Germany","Essen","DE01","NH HOTELES DEUTSCHLAND GMBH","0808","DE01 NH ESSEN",9900000808,"DE01 NH ESSEN","BUNE","GERMANY","EUR","Andreas Harzer","b.kruse@nh-hotels.com","a.harzer@nh-hotels.com",null,null,null,null,"Brita-Sanna Kruse","DENW.ESSEN","GT10","G","Y"]
["0809","NH Collection Eindhoven Centre","BU Northern Europe","The Netherlands","Eindhoven","NL06","HOTELEXPLOITATIEMAATSCHAPPIJ EINDHOVEN B.V.","0809","NL06 NH COLLECTION EINDHOVEN",9900000809,"NL06 NH COLLECTION EINDHOVEN","BUNE","NETHERLANDS","EUR","Walter Kok","j.renders@nh-hotels.com","w.kok@nh-hotels.com",null,null,null,null,"Jeroen Renders","NLNB.EINDH","GT09","G","Y"]
["0810","NH Curitiba The Five","BU America","Brasil","Curitiba","BR03","LATINOAMERICANA CURITIBA ADMINISTRACAO DE HOTEIS LTDA","0810","BR03 NH CURITIBA THE FIVE",9900000810,"BR03 NH CURITIBA THE FIVE","BUAM","BRASIL","BRL","Diego Agustín Chourrout","ai.mendesdealbuquerque@nh-hotels.com","d.chourrout@nh-hotels.com",null,null,null,null,"Antonio Albuquerque",null,"-","-","Y"]
["0812","NH Collection Venezia Murano Villa","BU Southern Europe","Italy","Murano","IT09","LEON SRL ","0812","IT09 NHCOLLECTION MURANO VILLA",9900000812,"IT09 NHCOLLECTION MURANO VILLA","BUSE","ITALY","EUR","Michela Camillo","t.viljaca@nh-hotels.com","m.camillo@nh-hotels.com","f.maio@nh-hotels.com",null,null,null,"TONY VELJACA","ITVE.MURVI","-","-","N"]
["0813","Avani Rio Novo Venice Hotel","BU Southern Europe","Italy","Venice","IT01","NH ITALIA, SPA","0813","IT01 NH RIO NOVO",9900000813,"IT01 NH RIO NOVO","BUSE","ITALY","EUR","Michela Camillo","s.botteon@nh-hotels.com","m.camillo@nh-hotels.com","f.maio@nh-hotels.com",null,null,null,"STEFANO BOTTEON","ITVE.RIONO","GT15","G","Y"]
["0816","NH Puebla Finsa","BU America","Mexico","Puebla","MX23","INMOBILIARIA 3 PONIENTE S.A. DE C.V.","0816","MX23 NH PUEBLA FINSA",9900000816,"MX23 NH PUEBLA FINSA","BUAM","MEXICO","MXN","Lorenzo Graciano","k.perea@nh-hotels.com","la.graciano@nh-hotels.com",null,null,null,null,"Karen Perea Garcia","MXPL.PUFIN","-","-","N"]
["0817","NH Monterrey La Fe","BU America","Mexico","Monterrey","MX11","CHARTWELL DE MEXICO, S.A. DE C.V.","0817","MX11 NH MONTERREY LA FE",9900000817,"MX11 NH MONTERREY LA FE","BUAM","MEXICO","MXN","Lorenzo Graciano","pm.gonzalez@nh-hotels.com","la.graciano@nh-hotels.com",null,null,null,null,"Patricia María González Medina","MXNL.MONFE","GT22","G","Y"]
["0818","NH Leipzig Zentrum","BU Northern Europe","Germany","Leipzig","DE01","NH HOTELES DEUTSCHLAND GMBH","0818","DE01 NH LEIPZIG ZENTRUM",9900000818,"DE01 NH LEIPZIG ZENTRUM","BUNE","GERMANY","EUR","Bastian Lang","a.huepkes@nh-hotels.com","b.lang@nh-hotels.com",null,null,null,null,"Thomas Stieber","DESN.LEZEN","GT10","G","Y"]
["0819","NH Mannheim","BU Northern Europe","Germany","Mannheim","DE01","NH HOTELES DEUTSCHLAND GMBH","0819","DE01 NH MANNHEIM",9900000819,"DE01 NH MANNHEIM","BUNE","GERMANY","EUR","Andreas Harzer","d.veit@nh-hotels.com","a.harzer@nh-hotels.com",null,null,null,null,"Daniel Veit","DEBW.MANNH","GT10","G","Y"]
["0820","NH San Luis Potosí","BU America","Mexico","San Luis Potosi","MX30","MX30OPERADORA DE HOTELES ABBA S.A DE C.V","0820","MX30 NH SAN LUIS POTOSI",9900000820,"MX30 NH SAN LUIS POTOSI","BUAM","MEXICO","MXN","Lorenzo Graciano","ae.contreras@nh-hotels.com","la.graciano@nh-hotels.com",null,null,null,null,"Ana Elena Contreras Mauleon","MXSL.SNLPT","-","-","N"]
["0821","NH Collection Frankfurt Spin Tower","BU Northern Europe","Germany","Frankfurt","DE01","NH HOTELES DEUTSCHLAND GMBH","0821","DE01 NH COLLECTION  FRANKFURT SPIN TOWER",9900000821,"DE01 NH COLLECTION  FRANKFURT SPIN TOWER","BUNE","GERMANY","EUR","Sven Beissel ","n.post@nh-hotels.com","s.beissel@nh-hotels.com",null,null,null,null,"Nathalie Post","DEHE.SPINT","GT10","G","Y"]
["0822","nhow Frankfurt","BU Northern Europe","Germany","Frankfurt","DE01","NH HOTELES DEUTSCHLAND GMBH","0822","DE01 NHOW FRANKFURT",9900000822,"DE01 NHOW FRANKFURT","BUNE","GERMANY","EUR","Sven Beissel ","h.spatt@nhow-hotels.com","s.beissel@nh-hotels.com",null,null,null,null,"Hermann Spatt","DEHE.WFRAN","GT10","G","Y"]
["0823","NH Milano Corso Buenos Aires","BU Southern Europe","Italy","Milan","IT01","NH ITALIA, SPA","0823","IT01 NH MILANO BUENOS AIRES",9900000823,"IT01 NH MILANO BUENOS AIRES","BUSE","ITALY","EUR","Domenico Forte","am.marino@nh-hotels.com","d.forte@nh-hotels.com","s.galea@nh-hotels.com",null,null,null,"ANNA MARIA MARINO","ITMI.BUEMI","GT15","G","Y"]
["0826","NH Collection Marseille","BU Southern Europe","France","Marseille","FR01","NH HOTELES FRANCE S.A.S.U.","0826","FR01 NH COLLECION MARSEILLE",9900000826,"FR01 NH COLLECION MARSEILLE","BUSE","FRANCE","EUR","Serge Foulon","jj.arnedo@nh-hotels.com"," ",null,null,null,null,"Antonio Debeaupte ","FR13.COLMA","GT07","G","Y"]
["0833","NH Graz City","BU Northern Europe","Austria","Graz","AT01","NH HOTELES AUSTRIA GMBH","0833","AT01 NH GRAZ CITY",9900000833,"AT01 NH GRAZ CITY","BUNE","AUSTRIA","EUR","Sven Beissel ","m.ludolf@nh-hotels.com","s.beissel@nh-hotels.com",null,null,null,null,"Matthias Ludolf","AT06.GRAZC","GT13","G","Y"]
["0834","NH Collection Valencia Colón","BU Southern Europe","Spain","Valencia","ES95","HOTEL VALENCIA COLON 32 SL","0834","ES95 NH COLLECT VALENCIA COLON",9900000834,"ES95 NH COLLECT VALENCIA COLON","BUSE","SPAIN","EUR","Mónica Alcoriza","bp.millan@nh-hotels.com"," ",null,null,null,null,"Pedro Pablo Escobar","ESVL.COVAL","GT01","G","N"]
["0835","NH Toulouse Airport","BU Southern Europe","France","Toulouse","FR01","NH HOTELES FRANCE S.A.S.U.","0835","FR01 NH TOULOUSE AIRPORT",9900000835,"FR01 NH TOULOUSE AIRPORT","BUSE","FRANCE","EUR","Serge Foulon","j.delemos@nh-hotels.com"," ",null,null,null,null,"Jérémy de Lemos","FR31.TOUAI","GT07","G","Y"]
["0853","Tivoli Carvoeiro Algarve Resort","BU Southern Europe","Portugal","Carvoeiro","PT07","SOTAL SOCIEDADE GESTAO HOTELERIA SA","0853","PT07 TIV CARVOEIRO ALGARVE RES",9900000853,"PT07 TIV CARVOEIRO ALGARVE RES","BUSE","PORTUGAL","EUR","Jorge Beldade","j.cortereal@tivoli-hotels.com"," ",null,null,null,null,"Joao Corte-Real","PT08.CARVO","-","-","Y"]
["0877","AVANI Avenida Liberdade Lisbon","BU Southern Europe","Portugal","Lisbon","PT01","NH HOTEL RALLYE PORTUGAL, LDA","0877","PT01 AVANI AVENIDA LIBERDADE",9900000877,"PT01 AVANI AVENIDA LIBERDADE","BUSE","PORTUGAL","EUR","Segundo López","p.frazao@nh-hotels.com"," ",null,null,null,null,"Pedro Frazao","PT11.LISBO","GT04","G","Y"]
["0887","Tivoli Avenida Liberdade Lisboa","BU Southern Europe","Portugal","Lisbon","PT01","NH HOTEL RALLYE PORTUGAL, LDA","0887","PT01 TIVOLI AVENIDA LIBERDADE",9900000887,"PT01 TIVOLI AVENIDA LIBERDADE","BUSE","PORTUGAL","EUR","Jacobo Bello","j.prista@tivoli-hotels.com"," ",null,null,null,null,"Joao Prista Von Bonhorst","PT11.LILIS","GT04","G","Y"]
["0935","NH Collection Santiago Casacostanera","BU America","Chile","Santiago de Chile","CL08","INVERSIONES HOTELERAS SPA","0935","CL08 NH COLLECTI CASACOSTANERA",9900000935,"CL08 NH COLLECTI CASACOSTANERA","BUAM","CHILE","CLP","Diego Agustín Chourrout","mv.calderon@nh-hotels.com","d.chourrout@nh-hotels.com",null,null,null,null,"María Virginia Calderón","CLSC.COSTA","-","-","N"]
["0937","NH Collection Antwerp Centre","BU Northern Europe","Belgium","Antwerp","BE02","HOTEL EXPLOITATIEMAATSCHAPPIJ DIEGEM N.V","0937","BE02 NH COLLECT ANTWERP CENTRE",9900000937,"BE02 NH COLLECT ANTWERP CENTRE","BUNE","BELGIUM","EUR","Jan Joris Kriele","jh.doise@nh-hotels.com","jj.kriele@nh-hotels.com",null,null,null,null,"Jurgen Doise","BEVA.ANTCE","GT06","G","Y"]
["0940","NH Brussels EU Berlaymont","BU Northern Europe","Belgium","Brussels","BE02","HOTEL EXPLOITATIEMAATSCHAPPIJ DIEGEM N.V","0940","BE02 NH BRUSSELS EU BERLAYMONT",9900000940,"BE02 NH BRUSSELS EU BERLAYMONT","BUNE","BELGIUM","EUR","Jan Joris Kriele","m.kautz@nh-hotels.com","jj.kriele@nh-hotels.com",null,null,null,null,"Maurits Kautz","BEBR.BERLA","GT06","G","Y"]
["0941","nhow Brussels Bloom","BU Northern Europe","Belgium","Brussels","BE02","HOTEL EXPLOITATIEMAATSCHAPPIJ DIEGEM N.V","0941","BE02 NH BRUSSELS BLOOM",9900000941,"BE02 NH BRUSSELS BLOOM","BUNE","BELGIUM","EUR","Jan Joris Kriele","a.bouchat@nhow-hotels.com","jj.kriele@nh-hotels.com",null,null,null,null,"Alain Bouchat","BEBR.BLOOM","GT06","G","Y"]
["0947","Tivoli Oriente Lisboa Hotel","BU Southern Europe","Portugal","Lisbon","PT01","NH HOTEL RALLYE PORTUGAL, LDA","0947","PT01 TIVOLI ORIENTE ",9900000947,"PT01 TIVOLI ORIENTE ","BUSE","PORTUGAL","EUR","Segundo López","v.matias@tivoli-hotels.com"," ",null,null,null,null,"Vitor Matias","PT11.ORIEN","GT04","G","Y"]
["0948","NH Eindhoven Conference Centre Koningshof","BU Northern Europe","The Netherlands","Eindhoven","NL37","KONINGSHOF B.V.","0948","NL37 NH CONF CENTRE KONINGSHOF",9900000948,"NL37 NH CONF CENTRE KONINGSHOF","BUNE","NETHERLANDS","EUR","Walter Kok","j.hermans@nh-hotels.com","w.kok@nh-hotels.com",null,null,null,null,"Jos Hermans","NLNB.KONIN","GT09","G","Y"]
["0949","NH Noordwijk Conference Centre Leeuwenhorst","BU Northern Europe","The Netherlands","Noordwijkerhout","NL38","LEEUWENHORST CONGRES CENTRE B.V.","0949","NL38 NH CONF CENT LEEUWENHORST",9900000949,"NL38 NH CONF CENT LEEUWENHORST","BUNE","NETHERLANDS","EUR","Walter Kok","m.conings@nh-hotels.com","w.kok@nh-hotels.com",null,null,null,null,"Martine Conings","NLZH.LEEUW","GT09","G","Y"]
["0960","NH Collection Prague","BU Northern Europe","Czech Republic","Prague","CZ03","MPDEVELOPMENT AKCIOVA SPOLECNOST","0960","CZ03 NH COLLECTION PRAGUE CITY",9900000960,"CZ03 NH COLLECTION PRAGUE CITY","BUNE","CZECH RPC","CZK","Bastian Lang","p.nespurek@nh-hotels.com","b.lang@nh-hotels.com",null,null,null,null,"Petr Nespurek","CZPR.COPRA","-","-","N"]
["0962","NH Hannover","BU Northern Europe","Germany","Hannover","DE01","NH HOTELES DEUTSCHLAND GMBH","0962","DE01 NH HANNOVER",9900000962,"DE01 NH HANNOVER","BUNE","GERMANY","EUR","Bastian Lang","al.clarke@nh-hotels.com","b.lang@nh-hotels.com",null,null,null,null,"Anna Lena Brinkhoff ","DENI.HANNO","GT10","G","Y"]
["0964","NH Collection Mérida Paseo Montejo","BU America","Mexico","Merida (MX)","MX02","OPERADORA NACIONAL HISPANA, S.A. DE C.V.","0964","MX02 NH COL MERIDA PASEO 60",9900000964,"MX02 NH COL MERIDA PASEO 60","BUAM","MEXICO","MXN","Lorenzo Graciano","fj.rivera@nh-hotels.com","la.graciano@nh-hotels.com",null,null,null,null,"Fernando Jose Rivera  Aguilar","MXYN.MERID","GT22","G","Y"]
["0968","NH Porto Jardim","BU Southern Europe","Portugal","Oporto","PT02","PALACIO BATALHA HOTEL UTILIDADES TURISTICAS, LDA","0968","PT02 NH PORTO JARDIM",9900000968,"PT02 NH PORTO JARDIM","BUSE","PORTUGAL","EUR","Segundo López"," f.brito@nh-hotels.com"," ",null,null,null,null,"Francisco Viana Brito","PT13.JARDI","-","-","N"]
["0969","nhow London","BU Northern Europe","United Kingdom","London","UK03","SERAPHIM (OPCO) LTD","0969","UK03 NHOW LONDON",9900000969,"UK03 NHOW LONDON","BUNE","UK","GBP","Jan Joris Kriele","s.azimian@nhow-hotels.com","jj.kriele@nh-hotels.com",null,null,null,null,"Sheila Azimian","GBLO.WLOND","GT05","G","Y"]
["0971","nhow Rotterdam","BU Northern Europe","The Netherlands","Rotterdam","NL52","NHOW ROTTERDAM B.V.","0971","NL52 NHOW ROTTERDAM",9900000971,"NL52 NHOW ROTTERDAM","BUNE","NETHERLANDS","EUR","Walter Kok","b.woude@nh-hotels.com","w.kok@nh-hotels.com",null,null,null,null,"Bouke van der Woude","NLZH.WROTT","GT09","G","Y"]
["0990","NH Collection Palazzo Verona","BU Southern Europe","Italy","Verona","IT01","NH ITALIA, SPA","0990","IT01 NH COLLECTION PALAZZO VER",9900000990,"IT01 NH COLLECTION PALAZZO VER","BUSE","ITALY","EUR","Domenico Forte","f.chironna@nh-hotels.com","d.forte@nh-hotels.com",null,null,null,null,"CHIRONNA FABIANA","ITVE.VERON","GT15","G","Y"]
["0999","Avani Cancún Airport","BU America","Mexico","Cancun","MX02","OPERADORA NACIONAL HISPANA, S.A. DE C.V.","0999","MX02 AVANI CANCUN AIRPORT",9900000999,"MX02 AVANI CANCUN AIRPORT","BUAM","MEXICO","MXN","Lorenzo Graciano","d.saavedra@nh-hotels.com","la.graciano@nh-hotels.com",null,null,null,null,"David Saavedra Rivera","MXQR.CANCU","GT22","G","Y"]
[1001,"NH Collection Murano","BU Southern Europe","Italy","Murano","IT09","LEON SRL ","1001","IT09 NH COLLECTION MURANO",9900001001,"IT09 NH COLLECTION MURANO","BUSE","ITALY","EUR","Michela Camillo","m.camillo@nh-hotels.com","m.camillo@nh-hotels.com",null,null,null,null,"TBA","ITVE.MURAN","-","-","N"]
[1002,"Anantara Plaza Nice Hotel","BU Southern Europe","France","Nice","FR01","NH HOTELES FRANCE S.A.S.U.","1002","FR01 ANANTARA PLAZA NICE HOTEL",9900001002,"FR01 ANANTARA PLAZA NICE HOTEL","BUSE","FRANCE","EUR","Serge Foulon","l.cuartero@anantara-hotels.com"," ",null,null,null,null,"TBD","FR06.PLAZA","GT07","G","Y"]
[1003,"NH Collection Prague Carlo IV","BU Northern Europe","Czech Republic","Prague","CZ04","AGAGA, S.R.O.","1003","CZ04 NH COLLEC PRAGUE CARLO IV",9900001003,"CZ04 NH COLLEC PRAGUE CARLO IV","BUNE","CZECH RPC","CZK","Bastian Lang","m.zidek@nh-hotels.com","b.lang@nh-hotels.com",null,null,null,null,"Martin Zidek","CZPR.CARLO","GT26","G","Y"]
[1004,"NH Collection Firenze Palazzo Gaddi","BU Southern Europe","Italy","Florence","IT12","ROCO HOSPITALITY GROUP S.R.L.","1004","IT12 NH COLL FI PALAZZO GADDI",9900001004,"IT12 NH COLL FI PALAZZO GADDI","BUSE","ITALY","EUR","Michela Camillo","p.chiavetta@nh-hotels.com","m.camillo@nh-hotels.com","f.maio@nh-hotels.com",null,null,null,"CHIAVETTA PIERLUCA","ITFI.GADDI","GT15","G","Y"]
[1005,"NH Venezia Santa Lucia","BU Southern Europe","Italy","Venice","IT12","ROCO HOSPITALITY GROUP S.R.L.","1005","IT12 NH VENEZIA SANTA LUCIA",9900001005,"IT12 NH VENEZIA SANTA LUCIA","BUSE","ITALY","EUR","Michela Camillo","r.furlan@nh-hotels.com","m.camillo@nh-hotels.com","f.maio@nh-hotels.com",null,null,null,"FURLAN RONALDO","ITVE.BELLI","GT15","G","Y"]
[1006,"Anantara Palazzo Naiadi Rome Hotel","BU Southern Europe","Italy","Rome","IT12","ROCO HOSPITALITY GROUP S.R.L.","1006","IT12 ANANTARA PALAZZO NAIADI R",9900001006,"IT12 ANANTARA PALAZZO NAIADI R","BUSE","ITALY","EUR","Michela Camillo","f.mennella@anantara-hotels.com","m.camillo@nh-hotels.com","f.maio@nh-hotels.com",null,null,null,"MENNELLA FRANCESCO","ITRM.NAIDI","GT15","G","Y"]
[1007,"NH Collection Venezia Grand Hotel Palazzo Dei Dogi","BU Southern Europe","Italy","Venice","IT12","ROCO HOSPITALITY GROUP S.R.L.","1007","IT12 NH CO VE GRAND H PAL DOGI",9900001007,"IT12 NH CO VE GRAND H PAL DOGI","BUSE","ITALY","EUR","Michela Camillo","r.panariello@nh-hotels.com","m.camillo@nh-hotels.com","f.maio@nh-hotels.com",null,null,null,"PANARIELLO RAFFAELLO","ITVE.DDOGI","GT15","G","Y"]
[1008,"Anantara New York Palace Budapest Hotel","BU Northern Europe","Hungary","Budapest","HU02","NEW YORK PALACE KFT ","1008","HU02 ANANTARA NEW YORK PALACE",9900001008,"HU02 ANANTARA NEW YORK PALACE","BUNE","HUNGARY","HUF","Alexander Dürr","t.fazekas@anantara-hotels.com","a.duerr@nh-hotels.com",null,null,null,null,"Tamás Fazekas","HUBU.NYPAL","GT12","G","Y"]
[1009,"NH Collection Budapest City Center","BU Northern Europe","Hungary","Budapest","HU02","NEW YORK PALACE KFT ","1009","HU02 NH C BUDAPEST CITY CENTER",9900001009,"HU02 NH C BUDAPEST CITY CENTER","BUNE","HUNGARY","HUF","Andreas Harzer","t.fazekas@anantara-hotels.com","a.harzer@nh-hotels.com",null,null,null,null,"Tamás Fazekas","HUBU.NYRES","GT12","G","Y"]
[1010,"NH Collection Copenhagen","BU Northern Europe","Denmark","Copenhagen","DK01","NH STRANDGADE APS","1010","DK01 NH COLLECTION COPENHAGUE",9900001010,"DK01 NH COLLECTION COPENHAGUE","BUNE","DENMARK","DKK","Alexander Dürr","jj.kriele@nh-hotels.com","a.duerr@nh-hotels.com",null,null,null,null,"Jan Joris Kriele","DKCO.STRAN","GT27","G","Y"]
[1012,"Anantara Sahara Tozeur Resorts & Villas","BU Southern Europe","Tunisia","Tozeur","TN01","QATARI DIAR REAL ESTATE INVESTMENT TOZEUR","1012","TN01 ANANTARA SAHARA TOZEUR",9900001012,"TN01 ANANTARA SAHARA TOZEUR","MINOR","TUNEZ","TND","Serge Foulon","s.foulon@nh-hotels.com",null,null,null,null,null,"TBD",null,"-","-","N"]
[1014,"NH Collection Milano City Life","BU Southern Europe","Italy","Milan","IT01","NH ITALIA, SPA","1014","IT01 NH COLLECTION MILANO CITY LIFE",9900001014,"IT01 NH COLLECTION MILANO CITY LIFE","BUSE","ITALY","EUR","Domenico Forte","r.bombaci@nh-hotels.com","d.forte@nh-hotels.com","s.galea@nh-hotels.com",null,null,null,"BOMBACI RICCARDO","ITMI.MLIFE","GT15","G","Y"]
[1016,"NH Santiago del Estero","BU America","Argentina","Santiago del Estero","AR13","NUEVO HOLDING BILBAO S.A.","1016","AR13 NH SANTIAGO DEL ESTERO",9900001016,"AR13 NH SANTIAGO DEL ESTERO","BUAM","ARGENTINA","ARS","Diego Agustín Chourrout","jm.remo@nh-hotels.com","d.chourrout@nh-hotels.com",null,null,null,null,"Juan Martín Remo","ARGG.SESTE","-","-","N"]
[1017,"NH Dona Ines Coimbra","BU Southern Europe","Portugal","Coimbra","PT13","HOTEL DONA INES LDA","1017","PT13 NH DONA INES",9900001017,"PT13 NH DONA INES","BUSE","PORTUGAL","EUR","Segundo López","h.sequeira@nh-hotels.com"," ",null,null,null,null,"Helena Sequeira","PT06.DINES","-","-","N"]
[1018,"NH Cali Boulevard del Rio","BU America","Colombia","Cali","CO22","EL VINCULO XXI SAS","1018","CO22 NH CALI BOULEVARD DEL RIO",9900001018,"CO22 NH CALI BOULEVARD DEL RIO","BUAM","COLOMBIA","COP","Oscar Restrepo","ok.tsuchiya@nh-hotels.com","oj.restrepo@nh-hotels.com",null,null,null,null,"Oscar Kiyoshi Tsuchiya González","COCA.BURIO ","-","-","Y"]
[1020,"NH Iquique Pacifico","BU America","Chile","Iquique","CL09","HOTELERA PLAYA BRAVA S.A","1020","CL09 NH IQUIQUE PACIFICO",9900001020,"CL09 NH IQUIQUE PACIFICO","BUAM","CHILE","CLP","Diego Agustín Chourrout","e.aldana@nh-hotels.com","d.chourrout@nh-hotels.com",null,null,null,null,"Ezequiel Aldana","CLSC.PACIF","-","-","N"]
[1021,"NH Collection Andorra Palomé","BU Southern Europe","Andorra","La Massana","AD01","ALIAT S.L.U","1021","AD01 NHC ANDORRA PALOMÉ",9900001021,"AD01 NHC ANDORRA PALOMÉ","BUSE","ANDORRA","EUR","Mónica Alcoriza","bp.millan@nh-hotels.com"," ",null,null,null,null,"Manel Ara","AD07.PALOM","GT01","G","N"]
[1022,"Tivoli La Caleta Tenerife Resort","BU Southern Europe","Spain","Tenerife","ESA2","ARCHIPIÉLAGO Y TURISMO, S.A.","1022","ESA2 TIVOLI LA CALETA",9900001022,"ESA2 TIVOLI LA CALETA","BUSE","SPAIN","EUR","Jorge Beldade","j.garciaolivares@nh-hotels.com"," ",null,null,null,null,"Javier Garcia Olivares ","ESTF.CALET","GT01","G","N"]
[1023,"NH Bern The Bristol","BU Northern Europe","Switzerland","Bern","CH01","NH HOTELES SWITZERLAND GMBH","1023","CH01 NH BERN","9900001023","CH01 NH BERN","BUNE","SWITZERLAND","CHF","Andreas Harzer","a.harzer@nh-hotels.com","a.harzer@nh-hotels.com",null,null,null,null,"Andreas Harzer","CHBE.BERNA","GT11","G","Y"]
[1024,"Tivoli Alvor Algarve - All Inclusive Resort","BU Southern Europe","Portugal","Alvor","PT14","OCEANPANOPLY S.A.",1024,"PT14 TIVOLI ALVOR ALGARVE RESORT",9900001024,"PT14 TIVOLI ALVOR ALGARVE RESORT","BUSE","PORTUGAL","EUR","Jorge Beldade","ma.bayo@tivoli-hotels.com"," ",null,null,null,null,"Mar Bayo","PT08.ALVOR","-","-","Y"]
[1031,"Tivoli Portopiccolo Sistiana Resort & Spa","BU Southern Europe","Italy","Trieste","IT01","NH ITALIA, SPA","1031","IT01 TIVOLI PORTOPICCOLO",9900001031,"IT01 TIVOLI PORTOPICCOLO","BUSE","ITALY","EUR","Michela Camillo","d.fraga@nh-hotels.com","m.camillo@nh-hotels.com",null,null,null,null,"FRAGA ANGULO DAVID","ITTS.PORPI","GT15",null,"Y"]
[1033,"NH Collection Helsinki Grand Hansa","BU Northern Europe","Finland","Helsinki","FI02","NH HOTELS FINLAND OY",1033,"FI02 NHC HELSINKI GRAND HANSA",9900001033,"FI02 NHC HELSINKI GRAND HANSA","BUNE","FINLAND","EUR","Alexander Dürr","t.strandberg@nh-hotels.com","a.duerr@nh-hotels.com",null,null,null,null,"STRANDBERG TOM","FI18.HELSI","-","-","Y"]
[1034,"NH Paris Gare de l´Est","BU Southern Europe","France","Paris","FR04","CPH PARIS OPERA / GRANDS BOULEVARDS SASU",1034,"FR04 NH PARIS GARE DE L'EST",9900001034,"FR04 NH PARIS GARE DE L'EST","BUSE","FRANCE","EUR","Serge Foulon","b.manceaux@nh-hotels.com","s.foulon@nh-hotels.com",null,null,null,null,"BENOIT MANCEAUX","FR75.GAEST",null,"G","Y"]
[1035,"NH Paris Opéra Faubourg","BU Southern Europe","France","Paris","FR04","CPH PARIS OPERA / GRANDS BOULEVARDS SASU",1035,"FR04 NH PARIS OPERA LA FAYETTE",9900001035,"FR04 NH PARIS OPERA LA FAYETTE","BUSE","FRANCE","EUR","Serge Foulon","g.bazenet@nh-hotels.com","s.foulon@nh-hotels.com",null,null,null,null,"GUILLAUME BAZENET","FR75.OPERA",null,"G","Y"]
[1036,"NH Paris Champs-Elysées","BU Southern Europe","France","Paris","FR05","CPH PARIS CHAMPS ELYSEES SASU","1036","FR05 NH C PARIS CHAMPS ELYSEES PONTHIEU",9900001036,"FR05 NH C PARIS CHAMPS ELYSEES PONTHIEU","BUSE","FRANCE","EUR","Serge Foulon","c.marais@nh-hotels.com","s.foulon@nh-hotels.com",null,null,null,null,"CATHERINE MARAIS","FR75.CHAMP",null,"G","Y"]
[1037,"Anantara Palais Hansen Vienna",null,null,null,"AT01",null,1037,null,null,null,null,null,"EUR"]
[5045,"NH Malaga","BU Southern Europe","Spain","Malaga","ES01","NH HOTEL GROUP, S.A","5045","ES01 NH MALAGA",9900005045,"ES01 NH MALAGA","BUSE","SPAIN","EUR","Mariví Motilva","m.ramirez.intern@nh-hotels.com"," ",null,null,null,null,"Javier Friera Acebal / Patricia Trenado Peláez (Ops. Director)","ESMA.MALAG","GT01","G","Y"]
[5124,"NH Logroño Herencia Rioja","BU Southern Europe","Spain","Logrono","ES10","NH HOTELES ESPAÑA, S.A","5124","ES10 NH HERENCIA RIOJA",9900005124,"ES10 NH HERENCIA RIOJA","BUSE","SPAIN","EUR","Raúl Fernández","mi.gonzalez@nh-hotels.com"," ",null,null,null,null,"Sara Gómez Chivite","ESLO.HEREN","GT01","G","Y"]
[5170,"NH Tenerife","BU Southern Europe","Spain","Santa Cruz de Tenerife","ES04","NH LAS PALMAS, S.A.","5170","ES04 NH TENERIFE",9900005170,"ES04 NH TENERIFE","BUSE","SPAIN","EUR","Mariví Motilva","m.ramirez.intern@nh-hotels.com"," ",null,null,null,null,"Alejandro Caride","ESTF.TENER","GT01","G","Y"]
[5430,"NH Collection Buenos Aires Crillon","BU America","Argentina","Buenos Aires","AR01","LATINA DE GESTION HOTELERA S.A.","5430","AR01 NH CRILLON",9900005430,"AR01 NH CRILLON","BUAM","ARGENTINA","ARS","Diego Agustín Chourrout","mj.collado@nh-hotels.com","d.chourrout@nh-hotels.com",null,null,null,null,"Maria Jimena Collado","ARCC.CRILL","GT16","G","Y"]
[5433,"NH Buenos Aires Tango","BU America","Argentina","Buenos Aires","AR01","LATINA DE GESTION HOTELERA S.A.","5433","AR01 NH TANGO",9900005433,"AR01 NH TANGO","BUAM","ARGENTINA","ARS","Diego Agustín Chourrout","p.sanchezsierra@nh-hotels.com","d.chourrout@nh-hotels.com",null,null,null,null,"Pablo Daniel Sanchez Sierra","ARCC.TANGO","GT16","G","Y"]
[5435,"NH Buenos Aires 9 de Julio","BU America","Argentina","Buenos Aires","AR01","LATINA DE GESTION HOTELERA S.A.","5435","AR01 NH 9 DE JULIO",9900005435,"AR01 NH 9 DE JULIO","BUAM","ARGENTINA","ARS","Diego Agustín Chourrout","mc.barrio@nh-hotels.com","d.chourrout@nh-hotels.com",null,null,null,null,"María Constanza Barrio","ARCC.JULIO","GT16","G","Y"]
[5440,"NH Gijon","BU Southern Europe","Spain","Gijon","ES91","LUBOPAMA 4, S.L.","5440","ES91 NH GIJON",9900005440,"ES91 NH GIJON","BUSE","SPAIN","EUR","Raúl Fernández","mi.gonzalez@nh-hotels.com"," ",null,null,null,null,"Montse Cañón","ESAS.GIJON","GT01","G","N"]
[5651,"Anantara Vilamoura Algarve Resort","BU Southern Europe","Portugal","Vilamoura","PT12","MINOR LUXURY HOTELS VILAMOURA S.A.","5651","PT12 ANANTARA VILAMOURA",9900005651,"PT12 ANANTARA VILAMOURA","BUSE","PORTUGAL","EUR","Jorge Beldade","wsoueid@anantara.com"," ",null,null,null,null,"Wael Souid","PT08.VILAM","GT24","G","Y"]
[5665,"The Residences at Victoria Algarve","BU Southern Europe","Portugal","Vilamoura","PT12","MINOR LUXURY HOTELS VILAMOURA S.A.","5665","PT12 TIV RESIDENCES VICTORIA G",9900005665,"PT12 TIV RESIDENCES VICTORIA G","BUSE","PORTUGAL","EUR","Jorge Beldade","ma.pinto@nh-hotels.com"," ",null,null,null,null,"Marta Pinto","PT08.VICAL","GT24","G","Y"]
[5677,"NH Bogotá Urban 26 Royal","BU America","Colombia","Bogota","CO01","HOTELES ROYAL S.A.","5677","CO01 NH ROYAL URBAN 26",9900005677,"CO01 NH ROYAL URBAN 26","BUAM","COLOMBIA","COP","Oscar Restrepo","mc.ortiz@nh-hotels.com","oj.restrepo@nh-hotels.com",null,null,null,null,"María Constanza Ortíz","COBO.URB26","GT20","G","Y"]
[5678,"NH Bogotá Urban 93 Royal","BU America","Colombia","Bogota","CO01","HOTELES ROYAL S.A.","5678","CO01 NH ROYAL URBAN 93",9900005678,"CO01 NH ROYAL URBAN 93","BUAM","COLOMBIA","COP","Oscar Restrepo","mf.pulido@nh-hotels.com","oj.restrepo@nh-hotels.com",null,null,null,null,"Maria Fernanda Pulido","COBO.URB93","GT20","G","Y"]
[5679,"NH Bogotá Pavillon Royal","BU America","Colombia","Bogota","CO01","HOTELES ROYAL S.A.","5679","CO01 NH ROYAL PAVILLON",9900005679,"CO01 NH ROYAL PAVILLON","BUAM","COLOMBIA","COP","Oscar Restrepo","u.porras@nh-hotels.com","oj.restrepo@nh-hotels.com",null,null,null,null,"Uriel Porras","COBO.PAVIL","GT20","G","Y"]
[5682,"NH Collection Bogotá Terra 100 Royal","BU America","Colombia","Bogota","CO01","HOTELES ROYAL S.A.","5682","CO01 NH COLLECTION ROYAL TERRA",9900005682,"CO01 NH COLLECTION ROYAL TERRA","BUAM","COLOMBIA","COP","Oscar Restrepo","jp.becker@nh-hotels.com","oj.restrepo@nh-hotels.com",null,null,null,null,"Juan Pablo Becker","COBO.TERRA","GT20","G","Y"]
[5683,"NH Collection Bogotá Teleport Royal","BU America","Colombia","Bogota","CO01","HOTELES ROYAL S.A.","5683","CO01 NH COLLECT. ROYAL BOGOTA",9900005683,"CO01 NH COLLECT. ROYAL BOGOTA","BUAM","COLOMBIA","COP","Oscar Restrepo","cm.morales@nh-hotels.com","oj.restrepo@nh-hotels.com",null,null,null,null,"Carolina Maria Morales Saenz","COBO.BOGOT","GT20","G","Y"]
[5684,"NH Collection Bogotá Hacienda Royal","BU America","Colombia","Bogota","CO01","HOTELES ROYAL S.A.","5684","CO01 NH COLLECT. ROYAL HACIEN",9900005684,"CO01 NH COLLECT. ROYAL HACIEN","BUAM","COLOMBIA","COP","Oscar Restrepo","cm.morales@nh-hotels.com","oj.restrepo@nh-hotels.com",null,null,null,null,"Carolina Morales","COBO.HACIE","GT20","G","Y"]
[5685,"NH Collection Bogotá Andino Royal","BU America","Colombia","Bogota","CO01","HOTELES ROYAL S.A.","5685","CO01 NH COLLECT. ROYAL ANDINO",9900005685,"CO01 NH COLLECT. ROYAL ANDINO","BUAM","COLOMBIA","COP","Oscar Restrepo","cc.rodriguez@nh-hotels.com","oj.restrepo@nh-hotels.com",null,null,null,null,"Claudia Rodríguez González","COBO.ANDIN","GT20","G","Y"]
[5686,"Avani Royal Zona T Bogota Hotel","BU America","Colombia","Bogota","CO01","HOTELES ROYAL S.A.","5686","CO01 NH ROYAL LA BOHEME",9900005686,"CO01 NH ROYAL LA BOHEME","BUAM","COLOMBIA","COP","Oscar Restrepo","jv.torres@nh-hotels.com","oj.restrepo@nh-hotels.com",null,null,null,null,"Juanita Torres","COBO.BOHEM","GT20","G","Y"]
[5687,"NH Collection Medellín Royal","BU America","Colombia","Medellin","CO01","HOTELES ROYAL S.A.","5687","CO01 NH COLLECT. ROYAL MEDELL",9900005687,"CO01 NH COLLECT. ROYAL MEDELL","BUAM","COLOMBIA","COP","Oscar Restrepo","r.gutierrez@nh-hotels.com","oj.restrepo@nh-hotels.com",null,null,null,null,"Ricardo Gutíerrez","COME.MEDEL","GT20","G","Y"]
[5688,"NH Collection Barranquilla Smartsuites Royal","BU America","Colombia","Barranquilla","CO01","HOTELES ROYAL S.A.","5688","CO01 NH COLLECT. ROYAL SMARTS",9900005688,"CO01 NH COLLECT. ROYAL SMARTS","BUAM","COLOMBIA","COP","Oscar Restrepo","c.salgar@nh-hotels.com","oj.restrepo@nh-hotels.com",null,null,null,null,"Camila Salgar","COBA.SMART","GT20","G","Y"]
[5689,"NH Cali Royal","BU America","Colombia","Cali","CO01","HOTELES ROYAL S.A.","5689","CO01 NH ROYAL CALI",9900005689,"CO01 NH ROYAL CALI","BUAM","COLOMBIA","COP","Oscar Restrepo","si.ricaurte@nh-hotels.com","oj.restrepo@nh-hotels.com",null,null,null,null,"Sylvia Ricaurte","COCA.CALI","GT20","G","Y"]
[5690,"NH Cartagena Urban Royal","BU America","Colombia","Cartagena (CO)","CO01","HOTELES ROYAL S.A.","5690","CO01 NH ROYAL URBAN CARTAGENA",9900005690,"CO01 NH ROYAL URBAN CARTAGENA","BUAM","COLOMBIA","COP","Oscar Restrepo","kt.buritica@nh-hotels.com","oj.restrepo@nh-hotels.com",null,null,null,null,"Kelly Tatiana Buritica","COCG.CARTA","GT20","G","Y"]
[5702,"NH Collection Torino Santo Stefano","BU Southern Europe","Italy","Turin","IT01","NH ITALIA, SPA","5702","IT01 NH SANTO STEFANO",9900005702,"IT01 NH SANTO STEFANO","BUSE","ITALY","EUR","Domenico Forte","g.grimaldi@nh-hotels.com","d.forte@nh-hotels.com","s.galea@nh-hotels.com",null,null,null,"GRIMALDI GABRIELLA","ITTO.STEFA","GT15","G","Y"]
[5760,"NH Collection Brussels Grand Sablon","BU Northern Europe","Belgium","Brussels","BE02","HOTEL EXPLOITATIEMAATSCHAPPIJ DIEGEM N.V","5760","BE02 NH COLLECT GRAND SABLON",9900005760,"BE02 NH COLLECT GRAND SABLON","BUNE","BELGIUM","EUR","Jan Joris Kriele","j.mathelart@nh-hotels.com","jj.kriele@nh-hotels.com",null,null,null,null,"Julien Mathelart","BEBR.SABLO","GT06","G","Y"]
[5832,"NH Sintra Centro","BU Southern Europe","Portugal","Sintra","PT08","MINOR HOTELS PORTUGAL, SA","5832","PT08 NH SINTRA CENTRO",9900005832,"PT08 NH SINTRA CENTRO","BUSE","PORTUGAL","EUR","Segundo López","p.goncalves@tivoli-hotels.com"," ",null,null,null,null,"Patricia Gonçalves","PT11.SINTR","GT24","G","Y"]
[8003,"COPERAMA PORTUGAL",null,null,null,"PT11","COPERAMA PORTUGAL, UNIPESSOAL LDA",8003,"PT11 COPERAMA PORTUGAL",9900008003,"PT11 COPERAMA PORTUGAL","COPERAMA","PORTUGAL","EUR",null,null,null,null,null,null,null,null,null,"GT04","G","Y"]
[8008,"CS ROCO HOSPITALITY GROUP",null,null,null,"IT12","ROCO HOSPITALITY GROUP S.R.L.","8008","IT12 CS ROCO HOSPITALITY",9900008008,"IT12 CS ROCO HOSPITALITY","BUSE","ITALY","EUR",null,null,null,null,null,null,null,null,null,"GT15","G","Y"]
[9039,"HQ CORPORATE",null,null,null,"ES01","NH HOTEL GROUP, S.A","9039","ES01 CS CORPORATE",9900009039,"ES01 CS CORPORATE","CORPORATE","SPAIN","EUR",null,null," ",null,null,null,null,null,null,"GT01","G","Y"]
[9044,"NH CASH LINK",null,null,null,"ESA1","NH CASH LINK S.L","9044","ESA1 NH CASH LINK",9900009044,"ESA1 NH CASH LINK","BUAM","SPAIN","EUR",null,null,null,null,null,null,null,null,null,"-","-","Y"]
[9103,"CS SPAIN MADRID",null,null,null,"ES10","NH HOTELES ESPAÑA, S.A","9103","ES10 CS SPAIN MADRID",9900009103,"ES10 CS SPAIN MADRID","BUSE","SPAIN","EUR",null,null,null,null,null,null,null,null,null,"GT01","G","Y"]
[9159,"COPERAMA HOLDING",null,null,null,"ES44","COPERAMA HOLDING SL","9159","ES44COPERAMA HOLDING",9900009159,"ES44COPERAMA HOLDING","COPERAMA","SPAIN","EUR",null,null,null,null,null,null,null,null,null,"GT01","G","Y"]
[9296,"CS AUSTRIA",null,null,null,"AT01","NH HOTELES AUSTRIA GMBH","9296","AT01 CS AUSTRIA",9900009296,"AT01 CS AUSTRIA","BUNE","AUSTRIA","EUR",null,null,null,null,null,null,null,null,null,"GT13","G","Y"]
[9297,"CS BELGIUM",null,null,null,"BE01","NH BELGIUM C.V.B.A.","9297","BE01 CS BELGIUM",9900009297,"BE01 CS BELGIUM","BUNE","BELGIUM","EUR",null,null,null,null,null,null,null,null,null,"GT06","G","Y"]
[9336,"CRO-CENTRAL DE RESERVAS",null,null,null,"ES15","NH CENTRAL RESERVATION OFFICE S.A","9336","ES15 CENTRAL DE RESERVAS (CRO)",9900009336,"ES15 CENTRAL DE RESERVAS (CRO)","CORPORATE","SPAIN","EUR",null,null,null,null,null,null,null,null,null,"GT01","G","Y"]
[9403,"CS TIVOLI",null,null,null,"PT08","MINOR HOTELS PORTUGAL, SA",9403,"PT08 CENTRAL SERVICE TIVOLI",9900009403,"PT08 CENTRAL SERVICE TIVOLI","BUSE","PORTUGAL","EUR",null,null,null,null,null,null,null,null,null,"GT24","G","Y"]
[9478,"CS SERVICIOS CORPORATIVOS MEXICO",null,null,null,"MX04","SERVICIOS CORPORATIVOS HOTELEROS, S.A. DE C.V.","9478","MX04 SERVICIOS CORP MEXICO",9900009478,"MX04 SERVICIOS CORP MEXICO","BUAM","MEXICO","MXN",null,null,null,null,null,null,null,null,null,"GT22","G","Y"]
[9509,"CS ARGENTINA",null,null,null,"AR01","LATINA DE GESTION HOTELERA S.A.","9509","AR01 CS ARGENTINA",9900009509,"AR01 CS ARGENTINA","BUAM","ARGENTINA","ARS",null,null,null,null,null,null,null,null,null,"GT16","G","Y"]
[9510,"CS SWITZERLAND",null,null,null,"CH01","NH HOTELES SWITZERLAND GMBH","9510","CH01 CENTRAL SERVICES SWITZERL",9900009510,"CH01 CENTRAL SERVICES SWITZERL","BUNE","SWITZERLAND","CFH",null,null,null,null,null,null,null,null,null,"GT11","G","Y"]
[9511,"CRO-BOOKING OFFICE BERLIN",null,null,null,"DE01","NH HOTELES DEUTSCHLAND GMBH","9511","DE01 CS BOOKING OFFICE BERLIN",9900009511,"DE01 CS BOOKING OFFICE BERLIN","BUNE","GERMANY","EUR",null,null,null,null,null,null,null,null,null,"GT10","G","Y"]
[9598,"COPERAMA SPAIN",null,null,null,"ES88","COPERAMA SPAIN SLU","9598","ES88 COPERAMA SPAIN SL",9900009598,"ES88 COPERAMA SPAIN SL","COPERAMA","SPAIN","EUR",null,null,null,null,null,null,null,null,null,"GT01","G","Y"]
[9600,"CS GERMANY",null,null,null,"DE01","NH HOTELES DEUTSCHLAND GMBH","9600","DE01 CS GERMANY",9900009600,"DE01 CS GERMANY","BUNE","GERMANY","EUR",null,null,null,null,null,null,null,null,null,"GT10","G","Y"]
[9601,"CS PORTUGAL",null,null,null,"PT01","NH HOTEL RALLYE PORTUGAL, LDA","9601","PT01 CS PORTUGAL",9900009601,"PT01 CS PORTUGAL","BUSE","PORTUGAL","EUR",null,null,null,null,null,null,null,null,null,"GT04","G","Y"]
[9674,"CS ROYAL COLOMBIA",null,null,null,"CO01","HOTELES ROYAL S.A.",9674,"CO01 SERVICIOS CENTRALES ROYAL",9900009674,"CO01 SERVICIOS CENTRALES ROYAL","BUAM","COLOMBIA","COP",null,null,null,null,null,null,null,null,null,"GT20","G","Y"]
[9696,"CS ROYAL CHILE",null,null,null,"CL04","ROYAL SANTIAGO HOTEL S.A.",9696,"CL04 SERVICIOS CENTRALES CHILE",9900009696,"CL04 SERVICIOS CENTRALES CHILE","BUAM","CHILE","CLP",null,null,null,null,null,null,null,null,null,"GT18","G","Y"]
[9700,"CS ITALY",null,null,null,"IT01","NH ITALIA, SPA","9700","IT01 CS ITALY",9900009700,"IT01 CS ITALY","BUSE","ITALY","EUR",null,null,null,null,null,null,null,null,null,"GT15","G","Y"]
[9799,"COPERAMA ITALY",null,null,null,"IT07","COPERAMA ITALIA S.r.l.","9799","IT07 COPERAMA ITALIA",9900009799,"IT07 COPERAMA ITALIA","COPERAMA","ITALY","EUR",null,null,null,null,null,null,null,null,null,"GT15","G","Y"]
[9831,"CS FRANCE",null,null,null,"FR01","NH HOTELES FRANCE S.A.S.U.","9831","FR01 CS FRANCE",9900009831,"FR01 CS FRANCE","BUSE","FRANCE","EUR",null,null,null,null,null,null,null,null,null,"GT07","G","Y"]
[9859,"COPERAMA CENTRAL EUROPE",null,null,null,"DE17","COPERAMA CENTRAL EUROPE GMBH","9859","DE17 COPERAMA CENTRAL EUROPE",9900009859,"DE17 COPERAMA CENTRAL EUROPE","COPERAMA","GERMANY","EUR",null,null,null,null,null,null,null,null,null,"GT10","G","Y"]
[9903,"CS NH THE NETHERLANDS",null,null,null,"NL03","NH THE NETHERLANDS B.V.","9903","NL03 CS NETHERLANDS",9900009903,"NL03 CS NETHERLANDS","BUNE","NETHERLANDS","EUR",null,null,null,null,null,null,null,null,null,"GT09","G","Y"]
[9931,"CS LATAM",null,null,null,"CO01","HOTELES ROYAL S.A.","9931","CO01 SERVICIOS CENTRALES LATAM",9900009931,"CO01 SERVICIOS CENTRALES LATAM","BUAM","COLOMBIA","COP",null,null,null,null,null,null,null,null,null,"GT20","G","Y"]
[9936,"CS CHILE",null,null,null,"CL02","HOTELERA CHILE  S.A.","9936","CL02 CS CHILE",9900009936,"CL02 CS CHILE","BUAM","CHILE","CLP",null,null,null,null,null,null,null,null,null,"GT18","G","Y"]
[9944,"COPERAMA COLOMBIA",null,null,null,"CO20","COPERAMA COLOMBIA SAS ","9944","CO20 COPERAMA COLOMBIA-SSCC",9900009944,"CO20 COPERAMA COLOMBIA-SSCC","COPERAMA","COLOMBIA","COP",null,null,null,null,null,null,null,null,null,"GT20","G","Y"]
[9945,"CS ARGENTINA LATAM",null,null,null,"AR01","LATINA DE GESTION HOTELERA S.A.","9945","AR01 CS ARGENTINA LATAM",9900009945,"AR01 CS ARGENTINA LATAM","BUAM","ARGENTINA","ARS",null,null,null,null,null,null,null,null,null,"GT16","G","Y"]
[9946,"CS MEXICO LATAM ",null,null,null,"MX04","SERVICIOS CORPORATIVOS HOTELEROS, S.A. DE C.V.","9946","MX04  SSCC MEXICO LATAM",9900009946,"MX04  SSCC MEXICO LATAM","BUAM","MEXICO","MXN",null,null,null,null,null,null,null,null,null,"GT22","G","Y"]
[9973,"COPERAMA BENELUX",null,null,null,"NL54","COPERAMA BENELUX B.V","9973","NL54 COPERAMA BENELUX",9900009973,"NL54 COPERAMA BENELUX","COPERAMA","NETHERLANDS","EUR",null,null,null,null,null,null,null,null,null,"GT09","G","Y"]
[9995,"COPERAMA MEXICO",null,null,null,"MX32","COPERAMA MEXICO S.A. DE C.V.",9995,"MX32 COPERAMA MEXICO",9900009995,"MX32 COPERAMA MEXICO","COPERAMA","MEXICO","MXN",null,null,null,null,null,null,null,null,null,"GT22","G","Y"]